{"text_format":"1","workbook":"xlsx","n_sheets":12,"sheets":["zadanie 11-12","Zadanie13","Załącznik 1 - F.O. Części 1-2","Załącznik 2 dla Części 1","Załącznik 3 dla Części 2","zad1","zad2","zad3","zad4","zad5","zad6","zad7"],"not_rendered":{"charts":0,"images":2,"macros":1,"external_links":0,"defined_names":4,"comments":0,"pivot_tables":0},"unopened":[],"bounds":{"document_bytes":16777216,"sheet_cells":100000,"rows_first":2000,"rows_last":500,"rows_between":2000,"halvings":0,"cell_chars":16384,"cell_head_chars":4096},"cells_cut":0,"cells_raw":0,"read":"whole","date_system":"1900"}

{"sheet":"zadanie 11-12","index":0,"n_rows":157,"n_cols":6,"rows_kept":157,"cut":false,"hidden":true,"merged":[]}
[1,"DIAMANT CUKIER BIAŁY KOSTKA 1KG","Cukier biały DIAMANT w kostkach, 1 kg","1 op. ( 1 kg.)",null,1]
[2,"DIAMANT CUKIER BIAŁY W SASZET OPK100X5G","Cukier biały DIAMANT, saszetki 100 sztuk x 5 g","1 op. (100 sztuk)",null,1]
[3,"DIAMANT CUKIER DRY DEMERARA SYPKI 0,5KG","Cukier trzcinowy DIAMANT Dry Demerara, sypki, 500 g","1 op. ( 500 g)",null,1]
[4,"DIAMANT CUKIER KRYSZTAŁ BIAŁY 1KG","Cukier biały DIAMANT sypki, 1 kg","1 op.( 1 kg.)",null,1]
[5,"AHMAD HERBATA EARL GREY OPK100","Herbata czarna AHMAD Earl Grey, 100 torebek","1 op. (100 torobek)",null,1]
[6,"BIG-ACTIVE PURE CEYLON HERBATA OPK100","Herbata czarna BIG-ACTIVE Pure Ceylon, 100 torebek","1 op. (100 torobek)",null,1]
[7,"DILMAH CEYLON GOLD HERBATA 200G OPK100","Herbata czarna DILMAH Ceylon Gold, 100 torebek","1 op. (100 torobek)",null,1]
[8,"DILMAH EARL GREY HERBATA LIŚCIASTA 125G","Herbata czarna liściasta DILMAH Earl Grey, 125 g","1 op. ( 125 g)",null,1]
[9,"HERBAPOL BREAKFAST HERB MIĘTOWA OPK20 ","Herbata miętowa HERBAPOL Breakfast, 20 kopert","1 op.(  20 torebek)",null,1]
[10,"HERBAPOL HERBATA MALINOWA OPK20","Herbata owocowa HERBAPOL Herbaciany Ogród malinowa, 20 torebek","1 op.(  20 torebek)",null,1]
[11,"HERBAPOL PROSTO Z LASU OPK20","Herbata owocowa HERBAPOL Herbaciany Ogród, Prosto z lasu, 20 torebek","1 op.(  20 torebek)",null,1]
[12,"HERBAPOL ZIELONA HERBATA OPK20","Herbata zielona HERBAPOL, 20 torebek bez zawieszki","1 op.(  20 torebek)",null,1]
[13,"Herbata zielona Lipton Piramidki","Herbata zielona LIPTON  20 torebek piramidek","1 op.(  20 torebek)",null,1]
[14,"IRVING BIAŁ POZIOMK/MANDAR HERBATA OPK20","Harbata biała IRVING poziomkowa z mandarynką, 20 kopert","1 op.(  20 torebek)",null,1]
[15,"IRVING HERBATA CLASSIC OPK100","Herbata czarna IRVING Classic, 100 torebek","1 op.(  100 torebek)",null,1]
[16,"LIPTON EARL GREY HERBATA OPK100","Herbata czarna LIPTON Earl Grey, 100 torebek","1 op. (100 torebek)",null,1]
[17,"LIPTON MELISA/WIŚNIA HERBATAOPK20","Herbata ziołowa LIPTON Melisa z wiśnią, 20 torebek","1 op. (20 torebek)",null,1]
[18,"LIPTON PYRAMID CYTRYNOWA Z MELISĄ OPK20","Herbata czarna LIPTON cytrynowa z melisą, 20 torebek piramidek","1 op. (20 torebek)",null,1]
[19,"LIPTON PYRAMID FOREST FRUIT","Herbata owocowa LIPTON owoce leśne, 20 torebek piramidek","1 op. (20 torebek)",null,1]
[20,"LIPTON YELLOW LABEL HERBATA  OPK100","Herbata czarna LIPTON Yellow Label, 100 torebek","1 op. (100 torebek)",null,1]
[21,"LIPTON YELLOW LABEL HERBATA  OPK50","Herbata czarna LIPTON Yellow Label, 50 torebek","1 op. (50 torebek)",null,1]
[22,"LIPTON ZIELONA CITRUS HERBATA OPK25","Herbata zielona LIPTON cytrusowa, 25 torebek","1 op. (25 torebek)",null,1]
[23,"LIPTON ZIELONA MIĘTOWA HERBATA OPK25 ","Herbata zielona LIPTON miętowa, 25 torebek","1 op. (25 torebek)",null,1]
[24,"TEEKANNE BLACK CURRANT HERBATA OPK20","Herbata owocowa TEEKANNE World of Fruits, Black Currant, 20 kopert","1 op. (20 torebek)",null,1]
[25,"TEEKANNE EARL GREY HERBATA  OPK100","Herbata czarna TEEKANNE Earl Grey, 100 torebek","1 op. (100 torebek)",null,1]
[26,"TEEKANNE WORLD OF FRUITS ZESTAW OPK30","Zestaw herbat owocowych TEEKANNE World of Fruits, 30 kopert","1 op. (30 torebek)",null,1]
[27,"TEEKANNE ZIELON OPUNCJA HERBATA OPK20 ","Herbata zielona TEEKANNE z opuncją, 20 kopert","1 op. (20 torebek)",null,1]
[28,"VITAX HERBATA MELISA I POMARAŃCZA OPK20","Herbata owocowa VITAX Inspirations melisa & pomarańcza, 20 torebek","1 op. (20 torebek)",null,1]
[29,"VITAX HERBATA ZIOŁOWA MELISA OPK20","Herbata ziołowa VITAX melisa, 20 okrągłych torebek bez zawieszki","1 op. (20 torebek)",null,1]
[30,"VITAX HERBATA ZIOŁOWA MIĘTA OPK20","Herbata ziołowa VITAX mięta, 20 okrągłych torebek bez zawieszki","1 op. (20 torebek)",null,1]
[31,"VITAX HERBATA ŻURAWINA I MALINA OPK20","Herbata owocowa VITAX Inspirations żurawina & malina, 20 torebek","1 op. (20 torebek)",null,1]
[32,"VITAX NAPAR RUMIANEK OPK20","Herbata ziołowa VITAX rumianek, 20 kwadratowych torebek bez zawieszki","1 op. (20 torebek)",null,1]
[33,"ASTRA ŁAGODNA TRADYCYJNA KAWA MIEL 250 G","Kawa ziarnista Astra Łagodna 250 g","1 op. (250 g)",null,1]
[34,"ASTRA ŁAGODNA TRADYCYJNA KAWA ZIARN 1 KG","Kawa ziarnista Astra Łagodna 1 kg","1 op. (1 kg)",null,1]
[35,"DUNI KUBEK PAPIER BIAŁY 210ML OPK50","Kubek papierowy do gorących i zminych napojów 210 ml","1 op. (50 szt.)",null,1]
[36,"EDUSCHO CAFFE CREMA KAWA ZIARNISTA 1KG","Kawa ziarnista EDUSCHO Caffe Crema, 1 kg","1 op. ( 1 kg.)",null,1]
[37,"ESPRESSO KARMELOWE OPK50 NNSA 8868","Kawa w kapsułkach NESPRESSO ESPRESSO CARAMEL, 50 szt. (box)","1 op. (50 szt.)",null,1]
[38,"ESPRESSO WANILIOWE OPK50 NNSA 8869","Kawa w kapsułkach NESPRESSO ESPRESSO VANILLA, 50 szt. (box)","2 op. (50 szt.)",null,1]
[39,"INKA KAWA ZBOŻOWA 200G","Kawa zbożowa INKA, puszka 200 g","1 op.( 200 g.)",null,1]
[40,"JACOBS BARISTA AMERICANO KAWA ROZPU 155G","Kawa rozpuszczalna JACOBS Barista Americano 155 g","1 op. (słoik 155g)",null,1]
[41,"JACOBS CRONAT GOLD KAWA MIELONA 500G","Kawa mielona JACOBS Cronat Gold, 500 g","1 op. (500 g.)",null,1]
[42,"JACOBS CRONAT GOLD KAWA ROZPUSZCZ 200G","Kawa rozpuszczalna JACOBS Cronat Gold, 200 g","1 op.( 200 g.)",null,1]
[43,"JACOBS GOLD CREMA KAWA ROZPUSZCZ 200G","Kawa rozpuszczalna JACOBS Crema Gold, 200 g","1 op.( 200 g.)",null,1]
[44,"JACOBS KRONUNG KAWA MIELONA 250G","Kawa mielona JACOBS Kronung, 250 g","1 op. (250 g.)",null,1]
[45,"JACOBS KRONUNG KAWA ROZPUSZCZALNA 200G","Kawa rozpuszczalna JACOBS Kronung, 200 g","1 op.( 200 g.)",null,1]
[46,"KUBEK PAPIEROWY 110ML OPK50 ","Kubek papierowy do gorących napojów 110 ml","1 op. (50 szt.)",null,1]
[47,"KUBEK PAPIEROWY 360ML OPK35","Kubek papierowy do gorących napojów 360 ml","1 op. (35 szt.)",null,1]
[48,"KUBEK PLASTIK 200ML BIAŁE OPK100","Kubek plastikowy do zimnych napojów 200 ml Biały","1 op. (100 szt.)",null,1]
[49,"LAVAZZA CREMA AROMA KAWA ZIARNISTA 1KG","Kawa ziarnista LAVAZZA Crema Aroma, 1 kg","1 op. (1 kg)",null,1]
[50,"LAVAZZA PRONTOCREMA GRANDE AROMA ZIA 1KG","Kawa ziarnista LAVAZZA Pronto Crema Grande Aroma 1 kg","1 op. (1 kg)",null,1]
[51,"LAVAZZA QUALITA ORO KAWA MIELONA 250G","Kawa mielona LAVAZZA Qualita Oro, 250 g","1 op. (250 g)",null,1]
[52,"LAVAZZA QUALITA ORO KAWA ZIARNISTA 1 KG","Kawa ziarnista LAVAZZA Qualita Oro, 1 kg","1 op. (1 kg)",null,1]
[53,"LAVAZZA QUALITA ROSSA KAWA ZIARNISTA 1KG","Kawa ziarnista LAVAZZA Qualita Rossa, 1 kg","1 op. (1 kg)",null,1]
[54,"NESCAFE SENSAZIONE CREME KAWA ROZP 200G","Kawa rozpuszczalna NESCAFÉ Sensazione Creme, 200 g","1 op.( 200 g.)",null,1]
[55,"TCHIBO EXCLUSIVE KAWA MIELONA 250G","Kawa mielona TCHIBO Exclusive, 250 g","1 op. (250 g)",null,1]
[56,"TCHIBO FAMILY KAWA MIELONA 250G","Kawa mielona TCHIBO Family, 250 g","1 op. (250 g)",null,1]
[57,"TCHIBO FAMILY KAWA ROZPUSZCZALNA 200G","Kawa rozpuszczalna TCHIBO Family, 200 g","1 op. (200 g)",null,1]
[58,"TCHIBO PROFESSIONAL CREMA ZIARNISTA 1KG","Kawa ziarnista TCHIBO Profesional  Crema  1 kg ","1 op. (1 kg)",null,1]
[59,"GOSTYŃ MLEKO SKONDENS NIESŁODZONE 500G","Mleko zagęszczone GOSTYŃ 7,5% niesłodzone, 500 g","1 op. ( 1 karton 500 g)",null,1]
[60,"ŁACIATA ŚMIETANKA UHT 12% 500ML","Śmietanka do kawy ŁACIATA 12%, 500 ml","1 op. (500 ml)",null,1]
[61,"ŁACIATA ŚMIETANKA W KUBECZKACH OPK10X10G","Śmietanka do kawy ŁACIATA 10%, 10 kubeczków x 10 g","1 op. (10 kubeczków)",null,1]
[62,"ŁACIATE MLEKO UHT 2% 0,5L","Mleko ŁACIATE UHT 2,0%, 0,5 l","1 op. (500 ml)",null,1]
[63,"ŁACIATE MLEKO UHT 2% 1L","Mleko ŁACIATE UHT 2,0%, 1 l","1 op. (1 l)",null,1]
[64,"ŁACIATE MLEKO UHT 3,2% 0,5L","Mleko ŁACIATE UHT 3,2%, 0,5 l","1 op. (500 ml)",null,1]
[65,"ŁACIATE MLEKO UHT 3,2% 1L","Mleko ŁACIATE UHT 3,2%, 1 l","1 op. (1 l)",null,1]
[66,"ŁACIATE MLEKO ZAGĘSZCZONE 7,5% 0,5L","Mleko zagęszczone ŁACIATE UHT 7,5%, 0,5 l","1 op. (500 ml)",null,1]
[67,"MLEKOVITA BEZ LAKTOZY UHT WYDOJONE 1,5%","Mleko WYDOJONE UHT, bez laktozy 1,5%, 1 l","1 op. (1 l)",null,1]
[68,"MLEKOVITA BEZ LAKTOZY UHT WYDOJONE 3,2%","Mleko WYDOJONE UHT, bez laktozy, 3,2%, 1 l","1 op. (1 l)",null,1]
[69,"ZAMBROWSKIE MLEKO UHT 3,2% 1L","Mleko ZAMBROWSKIE UHT 3,2 %, 1 l","1 op. (1 l)",null,1]
[70,"BAKALLAND BAKALIE STUDENCKI MIX 200G","Cukierki Mieszanka bakaliowa BAKALLAND Studencki Mix, 200 g","1 op (200 g)",null,1]
[71,"BAKALLAND MIGDAŁY 300G","Migdały BAKALLAND, 300 g","1 op. (300 g)",null,1]
[72,"BAKALLAND ORZECHY NERKOWCA 300G","Orzechy nerkowca BAKALLAND, 300 g","1 op. (300 g)",null,1]
[73,"BELVITA CIASTKA KAKAOWE 300G","Ciastka BELVITA, kakaowe, 300 g, 24 ciasteczka","1 op. (300 g)",null,1]
[74,"BELVITA CIASTKA MUSLI+OWOCE 300G","Ciastka BELVITA Musli z owocami, 24 ciasteczka pakowane po 4 sztuki, 300 g","1 op. (300 g)",null,1]
[75,"CISOWIANKA WODA GAZOWANA 0,5L OPK12","Woda mineralna CISOWIANKA gazowana, zgrzewka 12 butelek x 0,5 l","1 op. (12 butelek)",null,1]
[76,"DELICJE SZAMPAŃSKIE MALINA 147G","Ciastka DELICJE Szampańskie malinowe, 147 g","1 op. (147 g)",null,1]
[77,"DELICJE SZAMPAŃSKIE POMARAŃCZA 147G","Ciastka DELICJE Szampańskie pomarańczowe, 147 g","1 op. (147 g)"]
[78,"DELICJE SZAMPAŃSKIE WIŚNIA 147G","Ciastka DELICJE Szampańskie wiśniowe, 147 g","1 op. (147 g)"]
[79,"DELICJE SZAMPAŃSKIE WIŚNIOWE 294G","Ciastka DELICJE Szampańskie wiśniowe, podwójne opakowanie, 294 g","1 op. ( 294 g)"]
[80,"FERRERO RAFFAELLO PRALINY 230G","Praliny RAFFAELLO, 230 g","1 op.(  230 g.)"]
[81,"Ferrero Rocher Praliny 200g","Czekoladki FERRERO ROCHER, 200 g","3 op.(  200 g.)"]
[82,"GOPLANA TOFFINO CHOCO 1KG","Cukierki Goplana Toffino Choco Toffi mleczne z kremem czekoladowym 1 kg","1 op. ( 1 kg.)"]
[83,"HIT MARKIZY CZEKOLADOWE 220G","Ciastka BAHLSEN HIT czekoladowe, 220 g","1 op.(  220 g)"]
[84,"JUTRZENKA JEŻYKI CAFE CIASTKA 140G","Ciasta JEŻYKI Cafe, 140 g","1 op. (140 g)"]
[85,"JUTRZENKA JEŻYKI CIASTKA 140G","Ciasta JEŻYKI Classic, 140 g","1 op. (140 g)"]
[86,"JUTRZENKA WAFLE FAMILIJNE ŚMIET-KAK 180G","Wafle FAMILIJNE śmietankowo-kakaowe, 180 g","1 op. (180 g)"]
[87,"ŁAKOTKI DESEROWE Z CUKREM 168G","Ciastka SAN ŁAKOTKI deserowe z cukrem, 168 g","1 op. (168 g)"]
[88,"ŁAKOTKI KAKAOWE 168G","Ciastka SAN ŁAKOTKI kakaowe, 168 g","1 op. (168 g)"]
[89,"ŁAKOTKI KOKOSOWE 168G","Ciastka SAN ŁAKOTKI kokosowe, 168 g","1 op. (168 g)"]
[90,"MERCI CZEKOLADKI 400 G","Czekoladki MERCI, 400 g","1 op.(400 g.)"]
[91,"MILKA CHOCO GRAINS CIASTKA 126 G","Ciastka MILKA Chocograins, 126 g","1 op.(126 g.)"]
[92,"MILKA CHOCOWAFER CIASTKA 150G","Wafle MILKA ChocoWafer, 150 g","1 op.(150g.)"]
[93,"MILKA MOMENTS CZEKOL MIX 11X97G","Praliny MILKA Moments Mix, 11 czekoladek","1 op. (11 sztuk)"]
[94,"MILKA MOMENTS TOFF/ORZECH 11x97G","Praliny MILKA Moments Toffee Wholenut, 11 czekoladek","1 op. (11 sztuk)"]
[95,"MILKA PIEGUSKI CZEKOLADA ORZECHY 135G","Ciastka MILKA Pieguski, czekolada i orzechy, 135 g","1 op. (135 g)"]
[96,"MILKA SINGLES CZEKOLADKI 138G","Czekoladki MILKA Singles, 32 czekoladki pakowane osobno"," 1 op. (32 szt.)"]
[97,"NESPRESSO CZEKOLADKI BLOND 200G","Czekoladki NESPRESSO blond, 200 g","1 op ( 200 g.)"]
[98,"NESPRESSO CZEKOLADKI MILK 200G","Czekoladki NESPRESSO mleczne, 200 g","1 op  ( 200 g.)"]
[99,"PASTYLKI MIĘTOWEW CZEKOLADZIE WAWEL","Cukierki Pastylka miętowa WAWEL, 1 kg","1 op. (1 kg)"]
[100,"SOLIDARNOŚĆ ŚLIWKA NALECZOWSKA 1KG","CukierkiŚliwka Nałęczowska SOLIDARNOŚĆ, 1 kg","2 op. (1 kg)"]
[101,"TAGO CIASTECZKA KORZENNE 4,8G OPK125 ","Ciastka TAGO korzenne, 125 ciasteczek po 4,8 g","1 op. (125 szt.)"]
[102,"TAGO OWSIANE DE LUX CIASTECZKA 210G","Ciastka TAGO Owsiane de Lux, 210 g","1 op. (210 g)"]
[103,"TAGO PRECLE MAŚLANE 158 G","Francuskie precle z masłem TAGO, 158 g","1 op. ( 158 g)"]
[104,"WAWEL MICHAŁKI 1 KG","Cukierki WAWEL Michałki Klasyczne 1 kg","1 op. (1 kg)"]
[105,"WAWEL MICHAŁKI CLASSIC 300G","Cukierki WAWEL Michałki Klasyczne 300 g","1 op. (300 g)"]
[106,"WAWEL MIESZANKA KRAKOWSKA 1 KG","Cukierki Mieszanka krakowska WAWEL, 1 kg","1 op. (1 kg)"]
[107,"WAWEL TRUFLE 1 KG","Cukierki WAWEL Trufle","1 op. (1 kg)"]
[108,"WEDEL AMERYKANKI KLASYCZNE 125 G","Ciastka AMERYKANKI, klasyczne, 125 g","1 op. (125 g)"]
[109,"WEDEL MIESZANKA CUKIERKI DISPLAY 3KG","Cukierki MIESZANKA WEDLOWSKA Classic, 3 kg w formie dyspensera","1 op. (3 kg)"]
[110,"WEDEL PTASIE MLECZKO WANILIOWE 360G","Ptasie mleczko WEDEL, waniliowe, 360 g","1 op.( 360 g.)"]
[111,"WEDEL WAFLE TORCIKOWE MINI ORZECHOWE 160","Wafle Torcikowe WEDEL MINI orzechowe, 160 g","1 op. ( 160 g)"]
[112,"BAKALLAND MIGDAŁY SOLONE 90G","Migdały lekko solone BAKALLAND, 90 g","1 op. (90 g)"]
[113,"BAKALLAND ORZECHY LASKOWE 300G","Orzechy laskowe BAKALLAND, 300 g","1 op. (300 g)"]
[114,"BAKALLAND ORZECHY NERKOWCA SOLONE 70G","Orzechy nerkowca  solone BAKALLAND, 70 g","1 op. (70 g)"]
[115,"BAKALLAND ORZECHY WŁOSKIE 300G","Orzechy włoskie BAKALLAND, 300 g","1 op. (300 g)"]
[116,"LAJKONIK PALUSZKI 200G","Paluszki LAJKONIK solone, 200 g","1 op. (200 g)"]
[117,"CAPPY NEKTAR MULTIWIT PET 0,33L OPK12 ","Nektar multiwitamina CAPPY, 12 butelek x 0,33 l","1 op. (12 butelek)"]
[118,"CAPPY SOK POMARAŃCZOWY PET 0,33L OPK12","Sok pomarańczowy CAPPY, 12 butelek x 0,33 l","1 op. (12 butelek)"]
[119,"CHAMPION SOK CYTRYNOWY OPK10X7,5G","Zagęszczony sok cytrynowy CHAMPION, 10 kubeczków x 7,5 g","1 op. (10 kubeczków)"]
[120,"COCA-COLA BUTELKA PET 0,5L OPK18 ","Napój gazowany COCA-COLA, zgrzewka 18 butelek x 0,5 l","1 op. (18 butelek)"]
[121,"COCA-COLA PUSZKA 0,33L OPK24","Napój gazowany COCA-COLA, 24 puszki x 0,33 l","1 op. (24 puszki 0,33 l)"]
[122,"COCA-COLA ZERO BUTELKA PET 0,5L OPK12","Napój gazowany COCA-COLA Zero, 12 butelek x 0,5 l","1 op. (12 butelek)"]
[123,"FORTUNA NEKTAR CZ.PORZECZKA 0,3L OPK15","Nektar czarna porzeczka FORTUNA, 15 butelek x 0,3 l","1 op. (15 butelek)"]
[124,"FORTUNA SOK MULTIWITAMINA 0,3 L OPK15","Sok multiwitamina FORTUNA, 15 butelek x 0,3 l","1 op. (15 butelek)"]
[125,"FORTUNA SOK POMARAŃCZOWY 0,3L OPK15 ","Sok pomarańczowy FORTUNA, 15 butelek x 0,3 l","1 op. (15 butelek)"]
[126,"FORTUNA SOK POMIDOROWY 0,3L OPK15","Sok pomidorowy FORTUNA, 15 butelek x 0,3 l","1 op. (15 butelek)"]
[127,"TARCZYN NEKTAR CZ.PORZECZKA 0,3L OPK15","Nektar czarna porzeczka TARCZYN, 15 butelek x 0,3 l","1 op. (15 butelek)"]
[128,"TARCZYN NEKTAR GREJPFRUT 0,3L OPK15","Nektar czerwony grejpfrut TARCZYN, zgrzewka 15 butelek x 0,3 l","1 op. (15 butelek)"]
[129,"TARCZYN SOK JABŁKOWY 0,3L OPK15","Sok jabłkowy TARCZYN, 15 butelek x 0,3 l","1 op. (15 butelek)"]
[130,"TARCZYN SOK POMARAŃCZOWY 0,3L OPK15","Sok pomarańczowy TARCZYN, 15 butelek x 0,3 l","1 op. (15 butelek)"]
[131,"TARCZYN SOK POMIDOROWY 300ML OPK15 ","Sok pomidorowy TARCZYN, zgrzewka 15 butelek x 0,3 l","1 op. (15 butelek)"]
[132,"TYMBARK JABŁKO SOK 100% 300ML OPK12","Sok TYMBARK jabłko 100%, 12 butelek x 300 ml","1 op. (12 butelek)"]
[133,"TYMBARK POMARAŃCZ SOK 100% 300ML OPK12","Sok TYMBARK pomarańcza 100%, 12 butelek x 300 ml","1 op. (12 butelek)"]
[134,"TYMBARK POMIDOR SOK 100% 300ML OPK12","Sok TYMBARK pomidor 100%, 12 butelek x 300 ml","1 op. (12 butelek)"]
[135,"TYMBARK VITAMINI BAN/MAR/JAB 300ML OPK12","Sok TYMBARK Vitamini banan, marchewka, jabłko, 12 butelek x 300 ml","1 op. (12 butelek)"]
[136,"CISOWIANKA LEKKOGAZOWANA WODA 0,5L  OPK12 ","Woda mineralna CISOWIANKA lekko gazowana, zgrzewka 12 butelek x 0,5 l","1 op. (12 butelek)"]
[137,"CISOWIANKA PERLAGE GAZ SZKŁO 300ML  OPK24 ","Woda mineralna CISOWIANKA Perlage gazowana, zgrzewka 24 butelki x 300 ml","1 op. (24 butelki)"]
[138,"CISOWIANKA WODA GAZOWANA 1,5L OPK6","Woda mineralna CISOWIANKA gazowana, zgrzewka 6 butelek x 1,5 l","1 op. (6 butelek)"]
[139,"CISOWIANKA WODA NIEGAZ SZKŁO 300ML OPK24","Woda mineralna CISOWIANKA niegazowana szklane butelki x 300 ml","1 op. (24 butelki)"]
[140,"CISOWIANKA WODA NIEGAZOWANA 0,5L OPK12 ","Woda mineralna CISOWIANKA niegazowana, zgrzewka 12 butelek x 0,5 l","1 op. (12 butelek)"]
[141,"CISOWIANKA WODA NIEGAZOWANA 1,5L OPK6","Woda mineralna CISOWIANKA niegazowana, zgrzewka 6 butelek x 1,5 l","1 op. (6 butelek)"]
[142,"CISOWIANKA WODA SPORT NIEGAZ 0,7L OPK8","Woda mineralna CISOWIANKA Sport niegazowana, zgrzewka 8 butelek x 0,7 l","1 op. (8 butelek)"]
[143,"KINGA PIENINSKA WODA GAZOWANA 0,5L OPK12","Woda mineralna KINGA PIENIŃSKA gazowana 0,5 l","1 op. (12 butelek)"]
[144,"KINGA PIENINSKA WODA NIEGAZOW 0,5L OPK12","Woda mineralna KINGA PIENIŃSKA niegazowana, zgrzewka 12 butelek x 0,5 l","1 op. (12 butelek)"]
[145,"KROPLA BESKIDU WODA GAZ 0,5L OPK12","Woda mineralna KROPLA BESKIDU gazowana, zgrzewka 12 butelek x 0,5 l","1 op. (12 butelek)"]
[146,"KROPLA BESKIDU WODA GAZ 1,5L OPK6","Woda mineralna KROPLA BESKIDU gazowana, zgrzewka 6 butelek x 1,5 l","1 op. (6 butelek)"]
[147,"KROPLA BESKIDU WODA NIEGAZ 0,5L  OPK12","Woda mineralna KROPLA BESKIDU niegazowana, zgrzewka 12 butelek x 0,5 l","1 op. (12 butelek)"]
[148,"KROPLA BESKIDU WODA NIEGAZ 1,5L OPK6","Woda mineralna KROPLA BESKIDU niegazowana, zgrzewka 6 butelek x 1,5 l","1 op. (6 butelek)"]
[149,"NAŁĘCZOWIANKA WODA NIEGAZ 0,5L OPK12","Woda mineralna NAŁĘCZOWIANKA niegazowana, zgrzewka 12 butelek x 0,5 l","1 op. (12 butelek)"]
[150,"NAŁĘCZOWIANKA WODA NIEGAZ 1,5L OPK6","Woda mineralna NAŁĘCZOWIANKA niegazowana, zgrzewka 6 butelek x 1,5 l","1 op. (6 butelek)"]
[151,"NESTLE PURE LIFE WODA GAZ 1,5L OPK6","Woda źródlana NESTLÉ Pure Life gazowana, zgrzewka 6 butelek x 1,5 l","1 op. (6 butelek)"]
[152,"NESTLE PURE LIFE WODA NIEGAZ 0,5L OPK12","Woda źródlana NESTLÉ Pure Life niegazowana, zgrzewka 12 butelek x 0,5 l","1 op. (12 butelek)"]
[153,"NESTLE PURE LIFE WODA NIEGAZ 1,5L OPK6","Woda źródlana NESTLÉ Pure Life niegazowana, zgrzewka 6 butelek x 1,5 l","1 op. (6 butelek)"]
[154,"ŻYWIEC ZDRÓJ WODA GAZOWANA 0.5L OPK24","Woda źródlana ŻYWIOŁ od ŻYWIEC ZDRÓJ gazowana, 24 butelki x 0,5 l","1 op. (24 butelki)"]
[155,"ŻYWIEC ZDRÓJ WODA GAZOWANA 1,5L OPK6","Woda źródlana ŻYWIOŁ od ŻYWIEC ZDRÓJ gazowana, zgrzewka 6 butelek x 1,5 l","1 op. ( 6 butelek)"]
[156,"ŻYWIEC ZDRÓJ WODA NIEGAZOWANA 0.5L OPK24 ","Woda źródlana ŻYWIEC ZDRÓJ niegazowana, 24 butelki x 0,5 l","1 op. (24 butelki)"]
[157,"ŻYWIEC ZDRÓJ WODA NIEGAZOWANA 1,5L  OPK6 ","Woda źródlana ŻYWIEC ZDRÓJ niegazowana, zgrzewka 6 butelek x 1,5 l","1 op. (6 butelek)"]

{"sheet":"Zadanie13","index":1,"n_rows":148,"n_cols":4,"rows_kept":148,"cut":false,"hidden":true,"merged":[]}
[1,"DIAMANT CUKIER BIAŁY KOSTKA 1KG","Cukier biały DIAMANT w kostkach, 1 kg","1 op. ( 1 kg.)"]
[2,"DIAMANT CUKIER BIAŁY W SASZET OPK100X5G","Cukier biały DIAMANT, saszetki 100 sztuk x 5 g","1 op. (100 sztuk)"]
[3,"DIAMANT CUKIER DRY DEMERARA SYPKI 0,5KG","Cukier trzcinowy DIAMANT Dry Demerara, sypki, 500 g","1 op. ( 500 g)"]
[4,"DIAMANT CUKIER KRYSZTAŁ BIAŁY 1KG","Cukier biały DIAMANT sypki, 1 kg","1 op.( 1 kg.)"]
[5,"AHMAD HERBATA EARL GREY OPK100","Herbata czarna AHMAD Earl Grey, 100 torebek","1 op. (100 torobek)"]
[6,"BIG-ACTIVE PURE CEYLON HERBATA OPK100","Herbata czarna BIG-ACTIVE Pure Ceylon, 100 torebek","1 op. (100 torobek)"]
[7,"DILMAH CEYLON GOLD HERBATA 200G OPK100","Herbata czarna DILMAH Ceylon Gold, 100 torebek","1 op. (100 torobek)"]
[8,"DILMAH EARL GREY HERBATA LIŚCIASTA 125G","Herbata czarna liściasta DILMAH Earl Grey, 125 g","1 op. ( 125 g)"]
[9,"HERBAPOL BREAKFAST HERB MIĘTOWA OPK20 ","Herbata miętowa HERBAPOL Breakfast, 20 kopert","1 op.(  20 torebek)"]
[10,"HERBAPOL HERBATA MALINOWA OPK20","Herbata owocowa HERBAPOL Herbaciany Ogród malinowa, 20 torebek","1 op.(  20 torebek)"]
[11,"HERBAPOL PROSTO Z LASU OPK20","Herbata owocowa HERBAPOL Herbaciany Ogród, Prosto z lasu, 20 torebek","1 op.(  20 torebek)"]
[12,"HERBAPOL ZIELONA HERBATA OPK20","Herbata zielona HERBAPOL, 20 torebek bez zawieszki","1 op.(  20 torebek)"]
[13,"Herbata zielona Lipton Piramidki","Herbata zielona LIPTON  20 torebek piramidek","1 op.(  20 torebek)"]
[14,"IRVING BIAŁ POZIOMK/MANDAR HERBATA OPK20","Harbata biała IRVING poziomkowa z mandarynką, 20 kopert","1 op.(  20 torebek)"]
[15,"IRVING HERBATA CLASSIC OPK100","Herbata czarna IRVING Classic, 100 torebek","1 op.(  100 torebek)"]
[16,"LIPTON EARL GREY HERBATA OPK100","Herbata czarna LIPTON Earl Grey, 100 torebek","1 op. (100 torebek)"]
[17,"LIPTON MELISA/WIŚNIA HERBATAOPK20","Herbata ziołowa LIPTON Melisa z wiśnią, 20 torebek","1 op. (20 torebek)"]
[18,"LIPTON PYRAMID CYTRYNOWA Z MELISĄ OPK20","Herbata czarna LIPTON cytrynowa z melisą, 20 torebek piramidek","1 op. (20 torebek)"]
[19,"LIPTON PYRAMID FOREST FRUIT","Herbata owocowa LIPTON owoce leśne, 20 torebek piramidek","1 op. (20 torebek)"]
[20,"LIPTON YELLOW LABEL HERBATA  OPK100","Herbata czarna LIPTON Yellow Label, 100 torebek","1 op. (100 torebek)"]
[21,"LIPTON YELLOW LABEL HERBATA  OPK50","Herbata czarna LIPTON Yellow Label, 50 torebek","1 op. (50 torebek)"]
[22,"LIPTON ZIELONA CITRUS HERBATA OPK25","Herbata zielona LIPTON cytrusowa, 25 torebek","1 op. (25 torebek)"]
[23,"LIPTON ZIELONA MIĘTOWA HERBATA OPK25 ","Herbata zielona LIPTON miętowa, 25 torebek","1 op. (25 torebek)"]
[24,"TEEKANNE BLACK CURRANT HERBATA OPK20","Herbata owocowa TEEKANNE World of Fruits, Black Currant, 20 kopert","1 op. (20 torebek)"]
[25,"TEEKANNE EARL GREY HERBATA  OPK100","Herbata czarna TEEKANNE Earl Grey, 100 torebek","1 op. (100 torebek)"]
[26,"TEEKANNE WORLD OF FRUITS ZESTAW OPK30","Zestaw herbat owocowych TEEKANNE World of Fruits, 30 kopert","1 op. (30 torebek)"]
[27,"TEEKANNE ZIELON OPUNCJA HERBATA OPK20 ","Herbata zielona TEEKANNE z opuncją, 20 kopert","1 op. (20 torebek)"]
[28,"VITAX HERBATA MELISA I POMARAŃCZA OPK20","Herbata owocowa VITAX Inspirations melisa & pomarańcza, 20 torebek","1 op. (20 torebek)"]
[29,"VITAX HERBATA ZIOŁOWA MELISA OPK20","Herbata ziołowa VITAX melisa, 20 okrągłych torebek bez zawieszki","1 op. (20 torebek)"]
[30,"VITAX HERBATA ZIOŁOWA MIĘTA OPK20","Herbata ziołowa VITAX mięta, 20 okrągłych torebek bez zawieszki","1 op. (20 torebek)"]
[31,"VITAX HERBATA ŻURAWINA I MALINA OPK20","Herbata owocowa VITAX Inspirations żurawina & malina, 20 torebek","1 op. (20 torebek)"]
[32,"VITAX NAPAR RUMIANEK OPK20","Herbata ziołowa VITAX rumianek, 20 kwadratowych torebek bez zawieszki","1 op. (20 torebek)"]
[33,"ASTRA ŁAGODNA TRADYCYJNA KAWA ZIARN 1 KG","Kawa ziarnista Astra Łagodna 1 kg","1 op. (1 kg)"]
[34,"DUNI KUBEK PAPIER BIAŁY 210ML OPK50","Kubek papierowy do gorących i zminych napojów 210 ml","1 op. (50 szt.)"]
[35,"EDUSCHO CAFFE CREMA KAWA ZIARNISTA 1KG","Kawa ziarnista EDUSCHO Caffe Crema, 1 kg","1 op. ( 1 kg.)"]
[36,"JACOBS BARISTA AMERICANO KAWA ROZPU 155G","Kawa rozpuszczalna JACOBS Barista Americano 155 g","1 op. (słoik 155g)"]
[37,"JACOBS CRONAT GOLD KAWA MIELONA 500G","Kawa mielona JACOBS Cronat Gold, 500 g","1 op. (500 g.)"]
[38,"JACOBS CRONAT GOLD KAWA ROZPUSZCZ 200G","Kawa rozpuszczalna JACOBS Cronat Gold, 200 g","1 op.( 200 g.)"]
[39,"JACOBS GOLD CREMA KAWA ROZPUSZCZ 200G","Kawa rozpuszczalna JACOBS Crema Gold, 200 g","1 op.( 200 g.)"]
[40,"JACOBS KRONUNG KAWA MIELONA 250G","Kawa mielona JACOBS Kronung, 250 g","1 op. (250 g.)"]
[41,"JACOBS KRONUNG KAWA ROZPUSZCZALNA 200G","Kawa rozpuszczalna JACOBS Kronung, 200 g","1 op.( 200 g.)"]
[42,"KUBEK PLASTIK 200ML BIAŁE OPK100","Kubek plastikowy do zimnych napojów 200 ml Biały","1 op. (100 szt.)"]
[43,"LAVAZZA CREMA AROMA KAWA ZIARNISTA 1KG","Kawa ziarnista LAVAZZA Crema Aroma, 1 kg","1 op. (1 kg)"]
[44,"LAVAZZA PRONTOCREMA GRANDE AROMA ZIA 1KG","Kawa ziarnista LAVAZZA Pronto crema Grande Aroma 1 kg","1 op. (1 kg)"]
[45,"LAVAZZA QUALITA ORO KAWA MIELONA 250G","Kawa mielona LAVAZZA Qualita Oro, 250 g","1 op. (250 g)"]
[46,"LAVAZZA QUALITA ORO KAWA ZIARNISTA 1 KG","Kawa ziarnista LAVAZZA Qualita Oro, 1 kg","1 op. (1 kg)"]
[47,"LAVAZZA QUALITA ROSSA KAWA ZIARNISTA 1KG","Kawa ziarnista LAVAZZA Qualita Rossa, 1 kg","1 op. (1 kg)"]
[48,"NESCAFE SENSAZIONE CREME KAWA ROZP 200G","Kawa rozpuszczalna NESCAFÉ Sensazione Creme, 200 g","1 op.( 200 g.)"]
[49,"TCHIBO EXCLUSIVE KAWA MIELONA 250G","Kawa mielona TCHIBO Exclusive, 250 g","1 op. (250 g)"]
[50,"TCHIBO FAMILY KAWA MIELONA 250G","Kawa mielona TCHIBO Family, 250 g","1 op. (250 g)"]
[51,"TCHIBO FAMILY KAWA ROZPUSZCZALNA 200G","Kawa rozpuszczalna TCHIBO Family, 200 g","1 op. (200 g)"]
[52,"TCHIBO PROFESSIONAL CREMA ZIARNISTA 1KG","Kawa ziarnista TCHIBO Profesional  Crema  1 kg ","1 op. (1 kg)"]
[53,"GOSTYŃ MLEKO SKONDENS NIESŁODZONE 500G","Mleko zagęszczone GOSTYŃ 7,5% niesłodzone, 500 g","1 op. ( 1 karton 500 g)"]
[54,"ŁACIATA ŚMIETANKA UHT 12% 500ML","Śmietanka do kawy ŁACIATA 12%, 500 ml","1 op. (500 ml)"]
[55,"ŁACIATA ŚMIETANKA W KUBECZKACH OPK10X10G","Śmietanka do kawy ŁACIATA 10%, 10 kubeczków x 10 g","1 op. (10 kubeczków)"]
[56,"ŁACIATE MLEKO UHT 2% 0,5L","Mleko ŁACIATE UHT 2,0%, 0,5 l","1 op. (500 ml)"]
[57,"ŁACIATE MLEKO UHT 2% 1L","Mleko ŁACIATE UHT 2,0%, 1 l","1 op. (1 l)"]
[58,"ŁACIATE MLEKO UHT 3,2% 0,5L","Mleko ŁACIATE UHT 3,2%, 0,5 l","1 op. (500 ml)"]
[59,"ŁACIATE MLEKO UHT 3,2% 1L","Mleko ŁACIATE UHT 3,2%, 1 l","1 op. (1 l)"]
[60,"ŁACIATE MLEKO ZAGĘSZCZONE 7,5% 0,5L","Mleko zagęszczone ŁACIATE UHT 7,5%, 0,5 l","1 op. (500 ml)"]
[61,"ZAMBROWSKIE MLEKO UHT 3,2% 1L","Mleko ZAMBROWSKIE UHT 3,2 %, 1 l","1 op. (1 l)"]
[62,"BAKALLAND BAKALIE STUDENCKI MIX 200G","Cukierki Mieszanka bakaliowa BAKALLAND Studencki Mix, 200 g","1 op (200 g)"]
[63,"BAKALLAND MIGDAŁY 300G","Migdały BAKALLAND, 300 g","1 op. (300 g)"]
[64,"BAKALLAND ORZECHY NERKOWCA 300G","Orzechy nerkowca BAKALLAND, 300 g","1 op. (300 g)"]
[65,"BELVITA CIASTKA KAKAOWE 300G","Ciastka BELVITA, kakaowe, 300 g, 24 ciasteczka","1 op. (300 g)"]
[66,"BELVITA CIASTKA MUSLI+OWOCE 300G","Ciastka BELVITA Musli z owocami, 24 ciasteczka pakowane po 4 sztuki, 300 g","1 op. (300 g)"]
[67,"CISOWIANKA WODA GAZOWANA 0,5L OPK12","Woda mineralna CISOWIANKA gazowana, zgrzewka 12 butelek x 0,5 l","1 op. (12 butelek)"]
[68,"DELICJE SZAMPAŃSKIE MALINA 147G","Ciastka DELICJE Szampańskie malinowe, 147 g","1 op. (147 g)"]
[69,"DELICJE SZAMPAŃSKIE POMARAŃCZA 147G","Ciastka DELICJE Szampańskie pomarańczowe, 147 g","1 op. (147 g)"]
[70,"DELICJE SZAMPAŃSKIE WIŚNIA 147G","Ciastka DELICJE Szampańskie wiśniowe, 147 g","1 op. (147 g)"]
[71,"DELICJE SZAMPAŃSKIE WIŚNIOWE 294G","Ciastka DELICJE Szampańskie wiśniowe, podwójne opakowanie, 294 g","1 op. ( 294 g)"]
[72,"FERRERO RAFAELLO 230 G","Praliny RAFFAELLO, 230 g","1 op.(  230 g.)"]
[73,"FERRERO RAFFAELLO PRALINY 230G","Praliny RAFFAELLO, 230 g","2 op.(  230 g.)"]
[74,"Ferrero Rocher Praliny 200g","Czekoladki FERRERO ROCHER, 200 g","3 op.(  200 g.)"]
[75,"GOPLANA TOFFINO CHOCO 1KG","Cukierki Goplana Toffino Choco Toffi mleczne z kremem czekoladowym 1 kg","1 op. ( 1 kg.)"]
[76,"HIT MARKIZY CZEKOLADOWE 220G","Ciastka BAHLSEN HIT czekoladowe, 220 g","1 op.(  220 g)"]
[77,"JUTRZENKA JEŻYKI CAFE CIASTKA 140G","Ciasta JEŻYKI Cafe, 140 g","1 op. (140 g)"]
[78,"JUTRZENKA JEŻYKI CIASTKA 140G","Ciasta JEŻYKI Classic, 140 g","1 op. (140 g)"]
[79,"JUTRZENKA WAFLE FAMILIJNE ŚMIET-KAK 180G","Wafle FAMILIJNE śmietankowo-kakaowe, 180 g","1 op. (180 g)"]
[80,"ŁAKOTKI DESEROWE Z CUKREM 168G","Ciastka SAN ŁAKOTKI deserowe z cukrem, 168 g","1 op. (168 g)"]
[81,"ŁAKOTKI KAKAOWE 168G","Ciastka SAN ŁAKOTKI kakaowe, 168 g","1 op. (168 g)"]
[82,"ŁAKOTKI KOKOSOWE 168G","Ciastka SAN ŁAKOTKI kokosowe, 168 g","1 op. (168 g)"]
[83,"MERCI CZEKOLADKI 400 G","Czekoladki MERCI, 400 g","1 op.(400 g.)"]
[84,"MILKA CHOCO GRAINS CIASTKA 126 G","Ciastka MILKA Chocograins, 126 g","1 op.(126 g.)"]
[85,"MILKA CHOCOWAFER CIASTKA 150G","Wafle MILKA ChocoWafer, 150 g","1 op.(150g.)"]
[86,"MILKA MOMENTS CZEKOL MIX 11X97G","Praliny MILKA Moments Mix, 11 czekoladek","1 op. (11 sztuk)"]
[87,"MILKA MOMENTS TOFF/ORZECH 11x97G","Praliny MILKA Moments Toffee Wholenut, 11 czekoladek","1 op. (11 sztuk)"]
[88,"MILKA PIEGUSKI CZEKOLADA ORZECHY 135G","Ciastka MILKA Pieguski, czekolada i orzechy, 135 g","1 op. (135 g)"]
[89,"MILKA SINGLES CZEKOLADKI 138G","Czekoladki MILKA Singles, 32 czekoladki pakowane osobno"," 1 op. (32 szt.)"]
[90,"NESPRESSO CZEKOLADKI BLOND 200G","Czekoladki NESPRESSO blond, 200 g","1 op ( 200 g.)"]
[91,"NESPRESSO CZEKOLADKI MILK 200G","Czekoladki NESPRESSO mleczne, 200 g","1 op  ( 200 g.)"]
[92,"PASTYLKI MIĘTOWEW CZEKOLADZIE WAWEL","Cukierki Pastylka miętowa WAWEL, 1 kg","1 op. (1 kg)"]
[93,"SOLIDARNOŚĆ ŚLIWKA NALECZOWSKA 1KG","CukierkiŚliwka Nałęczowska SOLIDARNOŚĆ, 1 kg","2 op. (1 kg)"]
[94,"TAGO CIASTECZKA KORZENNE 4,8G OPK125 ","Ciastka TAGO korzenne, 125 ciasteczek po 4,8 g","1 op. (125 szt.)"]
[95,"TAGO OWSIANE DE LUX CIASTECZKA 210G","Ciastka TAGO Owsiane de Lux, 210 g","1 op. (210 g)"]
[96,"TAGO PRECLE MAŚLANE 158 G","Francuskie precle z masłem TAGO, 158 g","1 op. ( 158 g)"]
[97,"WAWEL MICHAŁKI 1 KG","Cukierki WAWEL Michałki Klasyczne 300 g","1 op. (300 g)"]
[98,"WAWEL MICHAŁKI CLASSIC 300G","Cukierki WAWEL Michałki Klasyczne 300 g","1 op. (300 g)"]
[99,"WAWEL MIESZANKA KRAKOWSKA 1 KG","Cukierki Mieszanka krakowska WAWEL, 1 kg","1 op. (1 kg)"]
[100,"WAWEL TRUFLE 1 KG","Cukierki WAWEL Trufle","1 op. (1 kg)"]
[101,"WEDEL AMERYKANKI KLASYCZNE 125 G","Ciastka AMERYKANKI, klasyczne, 126 g","1 op. (126 g)"]
[102,"WEDEL MIESZANKA CUKIERKI DISPLAY 3KG","Cukierki MIESZANKA WEDLOWSKA Classic, 3 kg w formie dyspensera","1 op. (3 kg)"]
[103,"WEDEL PTASIE MLECZKO WANILIOWE 360G","Ptasie mleczko WEDEL, waniliowe, 360 g","1 op.( 360 g.)"]
[104,"WEDEL WAFLE TORCIKOWE MINI ORZECHOWE 160","Wafle Torcikowe WEDEL MINI orzechowe, 160 g","1 op. ( 160 g)"]
[105,"BAKALLAND MIGDAŁY SOLONE 90G","Migdały lekko solone BAKALLAND, 90 g","1 op. (90 g)"]
[106,"BAKALLAND ORZECHY LASKOWE 300G","Orzechy laskowe BAKALLAND, 300 g","1 op. (300 g)"]
[107,"BAKALLAND ORZECHY NERKOWCA SOLONE 70G","Orzechy nerkowca  solone BAKALLAND, 70 g","1 op. (70 g)"]
[108,"BAKALLAND ORZECHY WŁOSKIE 300G","Orzechy włoskie BAKALLAND, 300 g","1 op. (300 g)"]
[109,"LAJKONIK PALUSZKI 200G","Paluszki LAJKONIK solone, 200 g","1 op. (200 g)"]
[110,"CAPPY NEKTAR MULTIWIT PET 0,33L OPK12 ","Nektar multiwitamina CAPPY, 12 butelek x 0,33 l","1 op. (12 butelek)"]
[111,"CAPPY SOK POMARAŃCZOWY PET 0,33L OPK12","Sok pomarańczowy CAPPY, 12 butelek x 0,33 l","1 op. (12 butelek)"]
[112,"CHAMPION SOK CYTRYNOWY OPK10X7,5G","Zagęszczony sok cytrynowy CHAMPION, 10 kubeczków x 7,5 g","1 op. (10 kubeczków)"]
[113,"COCA-COLA BUTELKA PET 0,5L OPK18 ","Napój gazowany COCA-COLA, zgrzewka 18 butelek x 0,5 l","1 op. (18 butelek)"]
[114,"COCA-COLA ZERO BUTELKA PET 0,5L OPK12","Napój gazowany COCA-COLA Zero, 12 butelek x 0,5 l","1 op. (12 butelek)"]
[115,"FORTUNA NEKTAR CZ.PORZECZKA 0,3L OPK15","Nektar czarna porzeczka FORTUNA, 15 butelek x 0,3 l","1 op. (15 butelek)"]
[116,"FORTUNA SOK MULTIWITAMINA 0,3 L OPK15","Sok multiwitamina FORTUNA, 15 butelek x 0,3 l","1 op. (15 butelek)"]
[117,"FORTUNA SOK POMARAŃCZOWY 0,3L OPK15 ","Sok pomarańczowy FORTUNA, 15 butelek x 0,3 l","1 op. (15 butelek)"]
[118,"FORTUNA SOK POMIDOROWY 0,3L OPK15","Sok pomidorowy FORTUNA, 15 butelek x 0,3 l","1 op. (15 butelek)"]
[119,"TARCZYN NEKTAR CZ.PORZECZKA 0,3L OPK15","Nektar czarna porzeczka TARCZYN, 15 butelek x 0,3 l","1 op. (15 butelek)"]
[120,"TARCZYN NEKTAR GREJPFRUT 0,3L OPK15","Nektar czerwony grejpfrut TARCZYN, zgrzewka 15 butelek x 0,3 l","1 op. (15 butelek)"]
[121,"TARCZYN SOK JABŁKOWY 0,3L OPK15","Sok jabłkowy TARCZYN, 15 butelek x 0,3 l","1 op. (15 butelek)"]
[122,"TARCZYN SOK POMARAŃCZOWY 0,3L OPK15","Sok pomarańczowy TARCZYN, 15 butelek x 0,3 l","1 op. (15 butelek)"]
[123,"TARCZYN SOK POMIDOROWY 300ML OPK15 ","Sok pomidorowy TARCZYN, zgrzewka 15 butelek x 0,3 l","1 op. (15 butelek)"]
[124,"TYMBARK JABŁKO SOK 100% 300ML OPK12","Sok TYMBARK jabłko 100%, 12 butelek x 300 ml","1 op. (12 butelek)"]
[125,"TYMBARK POMARAŃCZ SOK 100% 300ML OPK12","Sok TYMBARK pomarańcza 100%, 12 butelek x 300 ml","1 op. (12 butelek)"]
[126,"TYMBARK VITAMINI BAN/MAR/JAB 300ML OPK12","Sok TYMBARK Vitamini banan, marchewka, jabłko, 12 butelek x 300 ml","1 op. (12 butelek)"]
[127,"CISOWIANKA LEKKOGAZOWANA WODA 0,5L  OPK12 ","Woda mineralna CISOWIANKA lekko gazowana, zgrzewka 12 butelek x 0,5 l","1 op. (12 butelek)"]
[128,"CISOWIANKA PERLAGE GAZ SZKŁO 300ML  OPK24 ","Woda mineralna CISOWIANKA Perlage gazowana, zgrzewka 24 butelki x 300 ml","1 op. (24 butelki)"]
[129,"CISOWIANKA WODA GAZOWANA 1,5L OPK6","Woda mineralna CISOWIANKA gazowana, zgrzewka 6 butelek x 1,5 l","1 op. (6 butelek)"]
[130,"CISOWIANKA WODA NIEGAZ SZKŁO 300ML OPK24","Woda mineralna CISOWIANKA niegazowana szklane butelki x 300 ml","1 op. (24 butelki)"]
[131,"CISOWIANKA WODA NIEGAZOWANA 0,5L OPK12 ","Woda mineralna CISOWIANKA niegazowana, zgrzewka 12 butelek x 0,5 l","1 op. (12 butelek)"]
[132,"CISOWIANKA WODA NIEGAZOWANA 1,5L OPK6","Woda mineralna CISOWIANKA niegazowana, zgrzewka 6 butelek x 1,5 l","1 op. (6 butelek)"]
[133,"CISOWIANKA WODA SPORT NIEGAZ 0,7L OPK8","Woda mineralna CISOWIANKA Sport niegazowana, zgrzewka 8 butelek x 0,7 l","1 op. (8 butelek)"]
[134,"KINGA PIENINSKA WODA GAZOWANA 0,5L OPK12","Woda mineralna KINGA PIENIŃSKA gazowana 0,5 l","1 op. (12 butelek)"]
[135,"KINGA PIENINSKA WODA NIEGAZOW 0,5L OPK12","Woda mineralna KINGA PIENIŃSKA niegazowana, zgrzewka 12 butelek x 0,5 l","1 op. (12 butelek)"]
[136,"KROPLA BESKIDU WODA GAZ 0,5L OPK12","Woda mineralna KROPLA BESKIDU gazowana, zgrzewka 12 butelek x 0,5 l","1 op. (12 butelek)"]
[137,"KROPLA BESKIDU WODA GAZ 1,5L OPK6","Woda mineralna KROPLA BESKIDU gazowana, zgrzewka 6 butelek x 1,5 l","1 op. (6 butelek)"]
[138,"KROPLA BESKIDU WODA NIEGAZ 0,5L  OPK12","Woda mineralna KROPLA BESKIDU niegazowana, zgrzewka 12 butelek x 0,5 l","1 op. (12 butelek)"]
[139,"KROPLA BESKIDU WODA NIEGAZ 1,5L OPK6","Woda mineralna KROPLA BESKIDU niegazowana, zgrzewka 6 butelek x 1,5 l","1 op. (6 butelek)"]
[140,"NAŁĘCZOWIANKA WODA NIEGAZ 0,5L OPK12","Woda mineralna NAŁĘCZOWIANKA niegazowana, zgrzewka 12 butelek x 0,5 l","1 op. (12 butelek)"]
[141,"NAŁĘCZOWIANKA WODA NIEGAZ 1,5L OPK6","Woda mineralna NAŁĘCZOWIANKA niegazowana, zgrzewka 6 butelek x 1,5 l","1 op. (6 butelek)"]
[142,"NESTLE PURE LIFE WODA GAZ 1,5L OPK6","Woda źródlana NESTLÉ Pure Life gazowana, zgrzewka 6 butelek x 1,5 l","1 op. (6 butelek)"]
[143,"NESTLE PURE LIFE WODA NIEGAZ 0,5L OPK12","Woda źródlana NESTLÉ Pure Life niegazowana, zgrzewka 12 butelek x 0,5 l","1 op. (12 butelek)"]
[144,"NESTLE PURE LIFE WODA NIEGAZ 1,5L OPK6","Woda źródlana NESTLÉ Pure Life niegazowana, zgrzewka 6 butelek x 1,5 l","1 op. (6 butelek)"]
[145,"ŻYWIEC ZDRÓJ WODA GAZOWANA 0.5L OPK24","Woda źródlana ŻYWIOŁ od ŻYWIEC ZDRÓJ gazowana, 24 butelki x 0,5 l","1 op. (24 butelki)"]
[146,"ŻYWIEC ZDRÓJ WODA GAZOWANA 1,5L OPK6","Woda źródlana ŻYWIOŁ od ŻYWIEC ZDRÓJ gazowana, zgrzewka 6 butelek x 1,5 l","1 op. ( 6 butelek)"]
[147,"ŻYWIEC ZDRÓJ WODA NIEGAZOWANA 0.5L OPK24 ","Woda źródlana ŻYWIEC ZDRÓJ niegazowana, 24 butelki x 0,5 l","1 op. (24 butelki)"]
[148,"ŻYWIEC ZDRÓJ WODA NIEGAZOWANA 1,5L  OPK6 ","Woda źródlana ŻYWIEC ZDRÓJ niegazowana, zgrzewka 6 butelek x 1,5 l","1 op. (6 butelek)"]

{"sheet":"Załącznik 1 - F.O. Części 1-2","index":2,"n_rows":189,"n_cols":22,"rows_kept":189,"cut":false,"hidden":false,"merged":[[18,3,18,6],[19,3,19,6],[21,3,21,6],[22,3,22,6],[2,2,2,6],[4,2,4,6],[8,2,8,6],[11,2,11,6],[14,2,14,6],[27,3,27,6],[28,3,28,6],[24,3,24,6],[25,3,25,6],[33,2,35,6],[32,2,32,6],[187,1,187,2],[188,1,188,2],[188,3,188,4],[44,9,44,10],[31,2,31,6]]}
[null,null,"Oznaczenie sprawy:  1200/BW00/ZL/KZ/2024/0000073411"]
[]
[null,null,"ZAŁĄCZNIK NR 1 - FORMULARZ CENOWY DLA CZĘŚCI: OD 1 DO 2."]
[]
[]
[null,null,null,"(pieczęć wykonawcy)"]
[]
[null,null,"Ja, niżej podpisany (My niżej podpisani):"]
[]
[]
[null,null,"działając w imieniu i na rzecz:"]
[]
[]
[null,null,"Składam(y) ofertę na wykonanie zamówienia, którego przedmiotem jest:"]
[null,null,"Dostawa artykułów spożywczych dla Enea Operator Sp. z o.o."]
[]
[null,null,"Oferujemy wykonanie zamówienia zgodnie z opisem przedmiotu zamówienia:"]
[]
[null,null,"ŁĄCZNA CENA NETTO OFERTY DLA CZĘŚCI 1",{"$f":"IF(V46=TRUE,K46,\"Wykonawca nie składa oferty\")","v":0}]
[null,null,"CENA NETTO SŁOWNIE: ",{"$f":"IF(V46=TRUE,zad1!E13,\"\")","v":"zł 00/100"}]
[]
[null,null,"ŁĄCZNA CENA NETTO OFERTY DLA CZĘŚCI 2",{"$f":"IF(V47=TRUE,K47,\"Wykonawca nie składa oferty\")","v":0}]
[null,null,"CENA NETTO SŁOWNIE: ",{"$f":"IF(V47=TRUE,zad2!E13,\"\")","v":"zł 00/100"}]
[]
[]
[]
[]
[]
[]
[]
[]
[null,null,"INSTRUKCJA DLA WYKONAWCY: \n\n1.Wykonawca w załączniku \"ZAŁĄCZNIK NR 1 - FORMULARZ CENOWY DLA CZĘŚCI: OD 1 DO 2\" uzupełnia stawki vat, ceny jednostkowe netto oraz numery katalogowe dla wszystkich produktów (kolumna \"F\", \"G\" i \"H\" Wiersze od 44).  \n2. Ceny jednostkowe netto wpisane w arkuszu \"ZAŁĄCZNIK NR 1 - FORMULARZ CENOWY DLA CZĘŚCI: OD 1 DO 2\" zaciągają się do kolejnych arkuszy Zadań i wyliczają wartość oferty.\n3. Cena netto Oferty dla danego Zadania (łącznie z cenami jednostkowymi netto) musi być podana w złotych polskich, z dokładnością do dwóch miejsc po przecinku poprzez zastosowanie w arkuszu kalkulacyjnym excel funkcji zaokrąglenia. tj. ZAOKR (=ZAOKR(A1;2), gdzie A1 oznacza liczbę). \n4. Cena Oferty netto dla danego Zadania, w tym ceny jednostkowe netto, muszą być wyższe niż  0,00 PLN."]
[null,null,"Uwaga: na niebiesko zostały zaznaczone pola do uzupełnienia przez Wykonawców (załączniki: \"FORMULARZ CENOWY DLA CZĘŚCI: OD 1 DO 2\" oraz Załączniki dla Zadania od 1 do 2). "]
[null,null,"W celu złożenia oferty Wykonawca zobowiązany jest do uzupełnienia i podpisania arkusza: \"FORMULARZ CENOWY DLA CZĘŚCI: OD 1 DO 2\" oraz uzupełnienia i podpisania załączników dla wszystkich Zadań, na które składa Ofertę, np. Wykonawca składając ofertę dla Zadania 1 i Zadania 2 powinien złożyć wypełniony i podpisany załącznik: \"FORMULARZ CENOWY DLA CZĘŚCI: OD 1 DO 2\" (wypełniony zgodnie z powyższa instrukcją) oraz Załącznik nr 2 dla Zadanie 1 i Załącznik nr 3 dla Zadania 2 (należy wypełnić tylko pola oznaczone na niebiesko)."]
[]
[]
[]
[]
[]
[]
[]
[]
[null,"LP","Nazwa produktu","Opis szczegółowy","Jednostka ","Stawka VAT","Cena jednostkowa netto","numer katalogowy"]
[null,1,"Cukier biały DIAMANT w kostkach, 1 kg","Cukier biały w kostkach Jednostka sprzedaży: 1 opakowanie (1 kg) ","1 op. ( 1 kg.)",null,null,null,null,"Wartość łączna oferty netto",{"$f":"SUM(K46:K49)","v":0}]
[null,2,"Cukier biały DIAMANT, saszetki 100 sztuk x 5 g","Cukier biały w saszetkach Idealny dla biur przy organizowaniu spotkań, konferencji, szkoleń Jednostka sprzedaży: 1 opakowanie (100 saszetek po 5 g) ","1 op. (100 sztuk)",null,null,null,null,"Zaznacz zadanie/zadania na które składana jest oferta:"]
[null,3,"Cukier trzcinowy DIAMANT Dry Demerara, sypki, 500 g","Elegancki cukier trzcinowy o bursztynowym kolorze i miodowo-karmelowym posmaku Jednostka sprzedaży: 1 opakowanie (500 g) ","1 op. ( 500 g)",null,null,null,null,null,{"$f":"IF(V46=TRUE,'Załącznik 2 dla Części 1'!D19,0)","v":0},null,null,null,null,null,null,null,null,null,null,true]
[null,4,"Cukier biały DIAMANT sypki, 1 kg","Cukier biały sypki Jednostka sprzedaży: 1 opakowanie (1 kg) ","1 op.( 1 kg.)",null,null,null,null,null,{"$f":"IF(V47=TRUE,'Załącznik 3 dla Części 2'!D19,0)","v":0},null,null,null,null,null,null,null,null,null,null,true]
[null,5,"Herbata czarna AHMAD Earl Grey, 100 torebek","Najlepsze gatunki czarnej herbaty oraz bergamotka dają silny, energetyczny aromat i pełnię smaku Dodatek olejku z bergamoty nadaje jej orzeźwiający charakter i cytrusowy posmak W opakowaniu 100 torebek z zawieszką, 200 g netto Jednostka sprzedaży: 1 opakowanie ","1 op. (100 torebek)"]
[null,6,"Herbata czarna DILMAH Ceylon Gold, 100 torebek","Tradycyjna herbata czarna z wysokogórskich plantacji cejlońskich W opakowaniu: 100 torebek z zawieszką, 200 g netto Jednostka sprzedaży: 1 opakowanie ","1 op. (100 torebek)"]
[null,7,"Herbata czarna liściasta DILMAH Earl Grey, 125 g","Czarna herbata Dilmah Earl Grey w formie sypkiej. Aromatyzowana olejkiem bergamoty, który dodaje naparowi wyrazistego charakteru i cytrusowego posmaku. Pochodzi z  plantacji na Sri Lance,. Jednostka sprzedaży: 1 opakowanie","1 op. ( 125 g)"]
[null,8,"Herbata miętowa HERBAPOL Breakfast, 20 kopert","Najwyższej jakości herbaty ekspresowe Dwukomorowe saszetki stopniowo uwalniają intensywny aromat naparu opartego na naturalnych składnikach. W opakowaniu: 20 torebek w kopertach","1 op.(  20 torebek)"]
[null,9,"Herbata owocowa HERBAPOL Herbaciany Ogród malinowa, 20 torebek","100% natury z dużych kawałków owoców W opakowaniu: 20 torebek Jednostka sprzedaży: 1 opakowanie ","1 op.(  20 torebek)"]
[null,10,"Herbata owocowa HERBAPOL Herbaciany Ogród, Prosto z lasu, 20 torebek","100% natury w dużych kawałkach owoców W opakowaniu: 20 torebek bez zawieszki","1 op.(  20 torebek)"]
[null,11,"Herbata zielona HERBAPOL, 20 torebek bez zawieszki","Aromatyczna zielona herbata W opakowaniu: 20 torebek bez zawieszki Jednostka sprzedaży: 1 opakowanie ","1 op.(  20 torebek)"]
[null,12,"Herbata zielona LIPTON  20 torebek piramidek","Kompozycja specjalnie wyselekcjonowanych liści herbaty zielonej. Przestrzeń w piramidce sprawia, że składniki herbaty mogą się rozwinąć podczas zaparzania i uwolnić doskonały smak i aromat. W opakowaniu: 20 torebek z zawieszką","1 op.(  20 torebek)"]
[null,13,"Harbata biała IRVING poziomkowa z mandarynką, 20 kopert","herbata biała, poziomka z mandarynką, 20 kopert.","1 op.(  20 torebek)"]
[null,14,"Herbata czarna LIPTON Earl Grey, 92 torebki","Mieszanka wysokiej jakości czarnych herbat z dodatkiem olejku bergamotki W opakowaniu 92 torebki z zawieszką Jednostka sprzedaży: 1 opakowanie ","1 op. (92 torebki)"]
[null,15,"Herbata ziołowa LIPTON Melisa z wiśnią, 20 torebek","herbatka ziołowa Lipton o smaku melisy oraz wiśni to idealny towarzysz każdej chwili relaksu. Smak soczystych wiśni doskonale współgra z melisą, której tradycyjnie przypisuje się właściwości ułatwiające zasypianie i odprężenie. W opakowaniu 20 torebek. ","1 op. (20 torebek)"]
[null,16,"Herbata czarna LIPTON cytrynowa z melisą, 20 torebek piramidek","Kompozycja specjalnie wyselekcjonowanych liści herbaty z aromatami owocowymi Przestrzeń w piramidce sprawia, że składniki herbaty mogą się rozwinąć podczas zaparzania i uwolnić doskonały smak i aromat W opakowaniu: 20 torebek z zawieszką Jednostka sprzedaży: 1 opakowanie ","1 op. (20 torebek)"]
[null,17,"Herbata owocowa LIPTON owoce leśne, 20 torebek piramidek","Kompozycja specjalnie wyselekcjonowanych, najmłodszych liści herbaty czarnej. Przestrzeń w piramidce sprawia, że składniki herbaty mogą się rozwinąć podczas zaparzania i uwolnić doskonały smak i aromat. W opakowaniu: 20 torebek z zawieszką","1 op. (20 torebek)"]
[null,18,"Herbata czarna LIPTON Yellow Label, 100 torebek","Czarna herbata w torebkach z zawieszką W opakowaniu: 100 torebek z zawieszką Jednostka sprzedaży: 1 opakowanie ","1 op. (100 torebek)"]
[null,19,"Herbata czarna LIPTON Yellow Label, 50 torebek","Czarna herbata w torebkach z zawieszką W opakowaniu: 50 torebek z zawieszką Jednostka sprzedaży: 1 opakowanie ","1 op. (50 torebek)"]
[null,20,"Herbata zielona LIPTON cytrusowa, 25 torebek","Herbara ekspresowa w torebkach z zawieszką W opakowaniu: 25 torebek Jednostka sprzedaży: 1 opakowanie ","1 op. (25 torebek)"]
[null,21,"Herbata zielona LIPTON miętowa, 25 torebek","Herbata ekspresowa w torebkach z zawieszką W opakowaniu: 25 torebek Jednostka sprzedaży: 1 opakowanie ","1 op. (25 torebek)"]
[null,22,"Herbata owocowa TEEKANNE World of Fruits, Black Currant, 20 kopert","Wyśmienita aromatyzowana mieszanka herbat owocowych o smaku czarnej porzeczki i cytryny. W opakowaniu 20 torebek z zawieszką, w papierowych kopertach. Jednostka sprzedaży: 1 opakowanie","1 op. (20 torebek)"]
[null,23,"Zestaw herbat owocowych TEEKANNE World of Fruits, 30 kopert","Wyjątkowy zestaw herbat ekspresowych z serii TEEKANNE World of Fruits W zestawie 6 aromatyzowanych mieszanek: Fresh Orange, Sweet Cherry, Garden Selection, Red Berries, Granny's Finest, Magic Apple Torebki pakowane indywidualnie w papierowe koperty Jednostka sprzedaży: 1 opakowanie (30 torebek) ","1 op. (30 torebek)"]
[null,24,"Herbata zielona TEEKANNE z opuncją, 20 kopert","Zielona herbata o wyśmienitym aromacie W opakowaniu: 20 torebek z zawieszką, w papierowych kopertach Jednostka sprzedaży: 1 opakowanie ","1 op. (20 torebek)"]
[null,25,"Herbata owocowa VITAX Inspirations melisa & pomarańcza, 20 torebek","Wyśmienita herbata o głębokim smaku i aromacie pysznych owoców W opakowaniu 20 torebek z zawieszką Jednostka sprzedaży: 1 opakowanie ","1 op. (20 torebek)"]
[null,26,"Herbata ziołowa VITAX melisa, 20 okrągłych torebek bez zawieszki","Tradycyjne, aromatyczne herbaty ze starannie wyselekcjonowanych ziół W opakowaniu 20 okrągłych torebek bez zawieszki Jednostka sprzedaży: 1 opakowanie ","1 op. (20 torebek)"]
[null,27,"Herbata ziołowa VITAX mięta, 20 okrągłych torebek bez zawieszki","Tradycyjne, aromatyczne herbaty ze starannie wyselekcjonowanych ziół W opakowaniu 20 okrągłych torebek bez zawieszki Jednostka sprzedaży: 1 opakowanie ","1 op. (20 torebek)"]
[null,28,"Herbata owocowa VITAX Inspirations żurawina & malina, 20 torebek","Wyśmienita herbata o głębokim smaku i aromacie pysznych owoców W opakowaniu: 20 torebek z zawieszką Jednostka sprzedaży: 1 opakowanie ","1 op. (20 torebek)"]
[null,29,"Herbata ziołowa VITAX rumianek, 20 kwadratowych torebek bez zawieszki","Tradycyjne, aromatyczne herbaty ze starannie wyselekcjonowanych ziół - rumianek. W opakowaniu: 20 kwadratowych torebek bez zawieszki","1 op. (20 torebek)"]
[null,30,"Kawa ziarnista Astra Łagodna 250 g","100% arabica z najlepszych plantacji Azji, Afryki i Ameryki Południowej. Opakowanie 250 g.","1 op. (250 g)"]
[null,31,"Kawa ziarnista Astra Łagodna 1 kg","100% arabica z najlepszych plantacji Azji, Afryki i Ameryki Południowej. Opakowanie 1 kg.","1 op. (1 kg)"]
[null,32,"Kawa ziarnista EDUSCHO Caffe Crema, 1 kg","Przygotowana z wyselekcjonowanych gatunków kawy, zapewniających bogaty i intensywny smak Jednostka sprzedaży: 1 opakowanie (1 kg) ","1 op. ( 1 kg.)"]
[null,33,"Kawa zbożowa INKA, puszka 200 g","Bogata w błonnik kawa zbożowa Jednostka sprzedaży: 1 opakowanie (200 g) ","1 op.( 200 g.)"]
[null,34,"Kawa rozpuszczalna JACOBS Barista Americano 155 g","Jacobs Barista Edition Americano Kompozycja kawy rozpuszczalnej i zmielonych ziaren kawy  opakowanie słoik 155 g","1 op. (słoik 155g)"]
[null,35,"Kawa mielona JACOBS Cronat Gold, 500 g","Wyprodukowana z ziaren najwyższej jakości Jednostka sprzedaży: 1 opakowanie (500 g) ","1 op. (500 g.)"]
[null,36,"Kawa rozpuszczalna JACOBS Cronat Gold, 200 g","Doskonały smak i aromat Jednostka sprzedaży: 1 opakowanie (200 g) ","1 op.( 200 g.)"]
[null,37,"Kawa rozpuszczalna JACOBS Crema Gold, 200 g","Kawa rozpuszczalna o wyjątkowo harmonijnym smaku, zwieńczona delikatną pianką W formie delikatnego pudru Jednostka sprzedaży: 1 opakowanie (200 g) ","1 op.( 200 g.)"]
[null,38,"Kawa mielona JACOBS Kronung, 250 g","Wyprodukowana z ziaren najwyższej jakości Jednostka sprzedaży: 1 opakowanie (250 g) ","1 op. (250 g.)"]
[null,39,"Kawa rozpuszczalna JACOBS Kronung, 200 g","Wyprodukowana z ziaren najwyższej jakości Jednostka sprzedaży: 1 opakowanie (200 g) ","1 op.( 200 g.)"]
[null,40,"Kubek papierowy do gorących napojów 110 ml","Kubek papierowy przeznaczony do napojów oraz potraw zimnych i gorących poj. 110 ml Jednostka sprzedaży: 1 opakowanie (50 szt)","1 op. (50 szt.)"]
[null,41,"Kubek plastikowy do zimnych napojów 200 ml Biały","Kubki jednorazowe wykonane z tworzywa PET poj. 200  ml. Kolor biały Jednostka sprzedaży: 1 opakowanie (100 szt)","1 op. (100 szt.)"]
[null,42,"Kawa ziarnista LAVAZZA Crema Aroma, 1 kg","Skład: 25 % Arabica, 75 % Robusta Mieszanka Arabiki i Robusty o intensywnym, długo wyczuwalnym smaku Szczególnie polecana konsumentom lubiącym zdecydowany smak espresso Piękna pianka długo utrzymuje się na powierzchni napoju Jednostka sprzedaży: 1 opakowanie (1 kg) ","1 op. (1 kg)"]
[null,43,"Kawa ziarnista LAVAZZA Pronto Crema Grande Aroma 1 kg"," kawa ziarnista Lavazza Pronto Crema Grande Aroma to mieszanka Arabiki z Gwatemali i Kostaryki o średnim stopniu palenia. Delikatna i słodka w smaku z wyczuwalną nutą czekolady.  Jednostka sprzedaży: 1 opakowanie (1 kg)","1 op. (1 kg)"]
[null,44,"Kawa mielona LAVAZZA Qualita Oro, 250 g","Kawa mielona pakowana próżniowo 100% Arabica Jednostka sprzedaży: 1 opakowanie (250 g) ","1 op. (250 g)"]
[null,45,"Kawa ziarnista LAVAZZA Qualita Oro, 1 kg","100% Arabica Mieszanka ziaren pochodzących z najlepszych plantacji Ameryki i Afryki, słynąca głównie z intensywnego aromatu Jednostka sprzedaży: 1 opakowanie (1 kg) ","1 op. (1 kg)"]
[null,46,"Kawa ziarnista LAVAZZA Qualita Rossa, 1 kg","Kawa ziarnista do ekspresów ciśnieniowych Mieszanka Arabiki (40%) i Robusty (60%) Jednostka sprzedaży: 1 opakowanie (1 kg) ","1 op. (1 kg)"]
[null,47,"Kawa rozpuszczalna NESCAFÉ Sensazione Creme, 200 g","Kawa o wyjątkowo delikatnym smaku i aksamitnej piance Jednostka sprzedaży: 1 opakowanie (200 g) ","1 op.( 200 g.)"]
[null,48,"Kawa rozpuszczalna TCHIBO Family, 200 g","Zapewnia wyjątkowy smak i wyrazisty aromat dzięki specjalnemu procesowi palenia , któremu poddawane są ziarna kawy Jednostka sprzedaży: 1 opakowanie (200 g) ","1 op. (200 g)"]
[null,49,"Kawa ziarnista TCHIBO Profesional  Crema  1 kg ","Professional Crema Tchibo cechuje się łagodnym, kremowym smakiem. Idealnie sprawdza się zarówno czarna, jak i z dodatkiem mleka. Składa się ze starannie wyselekcjonowanych ziaren Arabiki. Kawa przeznaczona jest do stosowania w ekspresach automatycznych, kolbowych oraz przelewowych.  Jednostka sprzedaży: 1 opakowanie (1 kg)","1 op. (1 kg)"]
[null,50,"Śmietanka do kawy ŁACIATA 12%, 500 ml","Śmietanka do kawy w kartonie 500 ml, 12% tł. W kartoniku z zakrętką Jednostka sprzedaży: 1 karton ","1 op. (500 ml)"]
[null,51,"Śmietanka do kawy ŁACIATA 10%, 10 kubeczków x 10 g","Jednostka sprzedaży: 1 opakowanie (10 kubeczków po 10 g) ","1 op. (10 kubeczków)"]
[null,52,"Mleko ŁACIATE UHT 2,0%, 0,5 l","Mleko ŁACIATE UHT 2,0%, 0,5 l Jednostka sprzedaży: 1 karton (0,5 L) ","1 op. (500 ml)"]
[null,53,"Mleko ŁACIATE UHT 2,0%, 1 l","Mleko ŁACIATE UHT 2,0%, 1 l Jednostka sprzedaży: 1 karton (1 L) ","1 op. (1 l)"]
[null,54,"Mleko ŁACIATE UHT 3,2%, 0,5 l","Jednostka sprzedaży: 1 karton (0,5 L) ","1 op. (500 ml)"]
[null,55,"Mleko ŁACIATE UHT 3,2%, 1 l","Mleko ŁACIATE UHT 3,2%, 1 lJednostka sprzedaży:1 karton (1 L) ","1 op. (1 l)"]
[null,56,"Mleko zagęszczone ŁACIATE UHT 7,5%, 0,5 l","W kartonie z zakrętką Zawartość tłuszczu: 7,5% Jednostka sprzedaży: 1 karton ","1 op. (500 ml)"]
[null,57,"Mleko WYDOJONE UHT, bez laktozy 1,5%, 1 l","Otrzymywane z mleka krowiego poddawanego specjalnej obróbce Dostępne w kartonie 1 l z zakrętką Jednostka sprzedaży: 1 karton ","1 op. (1 l)"]
[null,58,"Mleko WYDOJONE UHT, bez laktozy, 3,2%, 1 l","Otrzymywane z mleka krowiego poddawanego specjalnej obróbce w celu obniżenia o blisko połowę poziomu węglowodanów i usunięcia laktozy Dostępne w kartonie 1 l z zakrętką Jednostka sprzedaży: 1 karton ","1 op. (1 l)"]
[null,59,"Cukierki Mieszanka bakaliowa BAKALLAND Studencki Mix, 150 g","Pyszna i zdrowa przekąska idealna do każdego biura Jednostka sprzedaży: 1 opakowanie ","1 op (150 g)"]
[null,60,"Migdały BAKALLAND, 275 g","Najdorodniejsze, najwyższej jakości orzechy z gładką, pomarańczowo – złotą skórką gwarantują smak i odpowiednią chrupkość. ","1 op. (275 g)"]
[null,61,"Orzechy nerkowca BAKALLAND, 300 g","Orzechy nerkowca Bakalland dorodne, delikatne orzechy o nienagannej skórce i wysokiej jakości o której świadczy ich chrupkość oraz charakterystyczny, nieco maślany smak","1 op. (300 g)"]
[null,62,"Ciastka BELVITA, kakaowe, 300 g, 24 ciasteczka","Smaczne i pożywne ciastka wypiekane z pełnego ziarna 5 różnych zbóż Dostarczają ważne dla organizmu witaminy i składniki mineralne (np. magnez, żelazo) oraz są źródłem cennego błonnika W opakowaniu: 24 ciasteczka pakowane po 4 szt. w oddzielne folijki Jednostka sprzedaży: 1 opakowanie ","1 op. (300 g)"]
[null,63,"Ciastka BELVITA Musli z owocami, 24 ciasteczka pakowane po 4 sztuki, 300 g","Smaczne i pożywne ciastka wypiekane z pełnego ziarna 5 różnych zbóż Dostarczają ważne dla organizmu witaminy i składniki mineralne (np. magnez, żelazo) oraz są źródłem cennego błonnika W opakowaniu: 24 ciasteczka pakowane po 4 szt. w oddzielne folijki Jednostka sprzedaży: 1 opakowanie ","1 op. (300 g)"]
[null,64,"Woda mineralna CISOWIANKA gazowana, zgrzewka 12 butelek x 0,5 l","Naturalnie niskosodowa woda mineralna, odpowiednia dla diety ubogiej w sód Średnia mineralizacja i subtelny smak sprawiają, że Cisowianka jest idealną wodą na każdą okazję Jednostka sprzedaży: 1 zgrzewka (12 sztuk) ","1 op. (12 butelek)"]
[null,65,"Ciastka DELICJE Szampańskie malinowe, 147 g","Połączenie delikatnego biszkoptu, galaretki owocowej oraz czekolady Nowe, zamykane opakowanie pomaga zachować świeżość produktu Jednostka sprzedaży: 1 opakowanie ","1 op. (147 g)"]
[null,66,"Ciastka DELICJE Szampańskie pomarańczowe, 147 g","Połączenie delikatnego biszkoptu, galaretki owocowej oraz czekolady Nowe, zamykane opakowanie pomaga zachować świeżość produktu Jednostka sprzedaży: 1 opakowanie ","1 op. (147 g)"]
[null,67,"Ciastka DELICJE Szampańskie wiśniowe, 147 g","Połączenie delikatnego biszkoptu, galaretki owocowej oraz czekolady Nowe, zamykane opakowanie pomaga zachować świeżość produktu Jednostka sprzedaży: 1 opakowanie ","1 op. (147 g)"]
[null,68,"Ciastka DELICJE Szampańskie wiśniowe, podwójne opakowanie, 294 g","Podwójne opakowanie popularnych ciasteczek Połączenie delikatnego biszkoptu, galaretki owocowej oraz czekolady Jednostka sprzedaży: 1 opakowanie ","1 op. ( 294 g)"]
[null,69,"Praliny RAFFAELLO, 230g","Kokosowy smakołyk z chrupiącego wafelka z całym migdałem w środku, opakowanie kartonowe z przezroczystym okienkiem  Masa netto: 230 g Jednostka sprzedaży: 1 opakowanie ","1 op.(  230 g.)"]
[null,70,"Czekoladki FERRERO ROCHER, 200 g","Wykwintne praliny o oryginalnym i niepowtarzalnym smaku. Orzech laskowy zatopiony w czekoladowym kremie zamknięto w kulistym wafelku oblanym mleczną czekoladą z kawałkami orzecha Każda pojedyncza pralina zapakowana jest w oddzielny papierek. Czekoladki pakowane są w sztywne, plastikowe opakowanie.","1 op.(  200 g.)"]
[null,71,"Cukierki Goplana Toffino Choco Toffi mleczne z kremem czekoladowym 1 kg","Toffi mleczne nadziewane kremem czekoladowym (18%). Opakowanie 1 kg.","1 op. ( 1 kg.)"]
[null,72,"Ciastka BAHLSEN HIT czekoladowe, 220 g","Dwa herbatniki z ciasta laminowanego o kształcie okrągłym przełożone kremem o smaku czekoladowym (41 %) . W obydwu herbatnikach w markizie widoczne górne strony herbatnika z napisem Hit. Jednostka sprzedaży: 1 opakowanie ","1 op.(  220 g)"]
[null,73,"Ciasta JEŻYKI Cafe, 140 g","Pyszne ciastka z orzechami laskowymi, karmelem i chrupkami ryżowymi, oblane mleczną czekoladą Masa netto: 140 g Jednostka sprzedaży: 1 opakowanie ","1 op. (140 g)"]
[null,74,"Ciasta JEŻYKI Classic, 140 g","Pyszne ciastka z orzechami laskowymi, karmelem i chrupkami ryżowymi, oblane mleczną czekoladą Masa netto: 140 g Jednostka sprzedaży: 1 opakowanie ","1 op. (140 g)"]
[null,75,"Wafle FAMILIJNE śmietankowo-kakaowe, 180 g","Pyszne wafle z nadzieniem Masa netto: 180 g Jednostka sprzedaży: 1 opakowanie ","1 op. (180 g)"]
[null,76,"Ciastka SAN ŁAKOTKI deserowe z cukrem, 168 g","Ciastka pieczone według tradycyjnego, 'domowego' przepisu Jednostka sprzedaży: 1 opakowanie ","1 op. (168 g)"]
[null,77,"Ciastka SAN ŁAKOTKI kakaowe, 168 g","Ciastka pieczone według tradycyjnego, 'domowego' przepisu Jednostka sprzedaży: 1 opakowanie ","1 op. (168 g)"]
[null,78,"Ciastka SAN ŁAKOTKI kokosowe, 168 g","Ciastka pieczone według tradycyjnego, 'domowego' przepisu Jednostka sprzedaży: 1 opakowanie ","1 op. (168 g)"]
[null,79,"Czekoladki MERCI, 400 g","Niepowtarzalna kolekcja pojedynczo pakowanych, wykwintnych czekoladek w ośmiu smakach Dzięki eleganckiemu opakowaniu doskonale nadaje się na prezent Jednostka sprzedaży: 1 opakowanie ","1 op.(400 g.)"]
[null,80,"Ciastka MILKA Chocograins, 126 g","Ciastka z płatkami owsianymi i mąką pszenną oblane czekoladą mleczną z alpejskiego mleka Masa netto: 126 g Jednostka sprzedaży: 1 opakowanie ","1 op.(126 g.)"]
[null,81,"Wafle MILKA ChocoWafer, 150 g","Okrągłe wafelki przełożone kremowym nadzieniem o smaku kakaowym, oblane mleczną czekoladą z alpejskiego mleka W opakowaniu: 6 pakowanych oddzielnie wafelków Masa netto: 150 g Jednostka sprzedaży: 1 opakowanie ","1 op.(150g.)"]
[null,82,"Praliny MILKA Moments Mix, 11 czekoladek","W opakowaniu znajduje się miks smaków: oreo, toffi z orzechem laskowym, orzech laskowy, karmelowo - migdałowe, alpejskie mleko.Jednostka sprzedaży: 1 opakowanie (1 kg). ","1 op. (11 sztuk)"]
[null,83,"Praliny MILKA Moments Toffee Wholenut, 11 czekoladek","praliny z firmy Milka zapewniają 16 wspaniałych chwil podczas konsumpcji. Każda z nich jest zapakowana osobno. Praliny wypełnione są pysznym, karmelowym nadzieniem, które świetnie współgra z ukrytym orzechem laskowym. Użyta przez producenta, najwyższej jakości czekolada została wykonana z mleka alpejskiego.Jednostka sprzedaży: 1 opakowanie (16 x 97 g). ","1 op. (11 sztuk)"]
[null,84,"Ciastka MILKA Pieguski, czekolada i orzechy, 135 g","Kruche ciasteczka z kawałkami czekolady mlecznej z mleka alpejskiego oraz z orzechami Jednostka sprzedaży: 1 opakowanie ","1 op. (135 g)"]
[null,85,"Czekoladki MILKA Singles, 32 czekoladki pakowane osobno","Mieszanka czekoladek mlecznych z alpejskiego mleka. W skład mieszanki wchodzą: czekoladki mleczne, mleczne z orzechami laskowymi, mleczne z nadzieniem kakaowym, mleczne z nadzieniem truskawkowym. W opakowaniu: 32 pojedynczo zapakowane czekoladk"," 1 op. (32 szt.)"]
[null,86,"Czekoladki NESPRESSO blond, 200 g","Czekoladki NESPRESSO blond, 200 g Opakowanie zawiera 40 pojedynczo pakowanych czekoladek. Jednostka sprzedaży: 1 opakowanie (200 g)","1 op ( 200 g.)"]
[null,87,"Czekoladki NESPRESSO mleczne, 200 g","Klasyczne czekoladki mleczne, które zadowolą każdego miłośnika czekolady. Czekoladki mleczne Nespresso zawierają minimum 41% kakao. Opakowanie zawiera 40 pojedynczo pakowanych czekoladek. Jednostka sprzedaży: 1 opakowanie (200 g)","1 op  ( 200 g.)"]
[null,88,"Cukierki Pastylka miętowa WAWEL, 1 kg","Pastylka miętowa w deserowej czekoladzie w oryginalnym okrągłym kształcie. Produkt bez dodatku substancji konserwujących i barwników. Opakowanie w kolorze zielonym– subtelne połączenie wyśmienitej czekolady deserowej z orzeźwiającą miętą. Opakowanie 1 kg.","1 op. (1 kg)"]
[null,89,"Cukierki Śliwka Nałęczowska SOLIDARNOŚĆ, 1 kg","Śliwka kandyzowana w masie kakaowej w czekoladzie. Opakowanie 1 kg.","1 op. (1 kg)"]
[null,90,"Ciastka TAGO korzenne, 125 ciasteczek po 4,8 g","Wyśmienite ciasteczka z przyprawami korzennymi: cynamonem, imbirem, goździkami i kardamonem. W opakowaniu 125 pojedynczo pakowanych ciasteczek","1 op. (125 szt.)"]
[null,91,"Ciastka TAGO Owsiane de Lux, 210 g","Doskonałe owsiane ciasteczka w wygodnym opakowaniu Masa netto: 210 g Jednostka sprzedaży: 1 opakowanie ","1 op. (210 g)"]
[null,92,"Francuskie precle z masłem TAGO, 158 g","Delikatne i puszyste ciasteczka z masłem 25% zawartość masła Jednostka sprzedaży: 1 opakowanie (158 g) ","1 op. ( 158 g)"]
[null,93,"Cukierki WAWEL Michałki Klasyczne 1 kg","Michałki klasyczne – cukierek orzechowo-kakaowy w czekoladzie, opakowanie 300 g","1 op. (1 kg)"]
[null,94,"Cukierki WAWEL Michałki Klasyczne 300 g","Michałki klasyczne – cukierek orzechowo-kakaowy w czekoladzie, opakowanie 300 g","1 op. (300 g)"]
[null,95,"Cukierki Mieszanka krakowska WAWEL, 1 kg","Mieszanka Krakowska – owocowe galaretki w czekoladzie w 4 smakach(dojrzałej pomarańczy, orzeźwiającej cytryny, aromatycznej maliny i egzotycznego ananasa)","1 op. (1 kg)"]
[null,96,"Cukierki WAWEL Trufle","Trufle w czekoladzie – klasyczny cukierek kakaowy z aromatem rumowym. Opakowanie 1 kg.","1 op. (1 kg)"]
[null,97,"Ciastka AMERYKANKI, klasyczne, 125 g","Kruche ciastka z kawałkami ciemnej czekolady Masa netto: 126 g Jednostka sprzedaży: 1 opakowanie ","1 op. (125 g)"]
[null,98,"Cukierki MIESZANKA WEDLOWSKA Classic, 3 kg w formie dyspensera","Mieszanka cukierków czekoladowych Doskonały dodatek do kawy w bardzo poręcznym i eleganckim opakowaniu Cukierki można podawać bezpośrednio z opakowania zaprojektowanego w formie specjalnego dyspensera Masa netto: 3 kg Jednostka sprzedaży: 1 opakowanie ","1 op. (3 kg)"]
[null,99,"Ptasie mleczko WEDEL, waniliowe, 340 g","Wyjątkowo lekka i puszysta pianka pokryta kruchą warstwą wedlowskiej czekolady.Jednostka sprzedaży: 1 opakowanie 340 g","1 op.( 340 g.)"]
[null,100,"Wafle Torcikowe WEDEL MINI orzechowe, 160 g","Małe, lekkie i chrupiące wafelki Jednostka sprzedaży: 1 opakowanie (160 g) ","1 op. ( 160 g)"]
[null,101,"Migdały lekko solone BAKALLAND, 90 g","Migdały łuskane prażone 99%, sól. Opakowanie w kolorze żółtym - struna, w którą wyposażone jest opakowanie umożliwia wielorazowe otwieranie i szczelne zamykanie. Migdały lekko solone nie zawierają dodatku tłuszczu – prażone są w piecu. Bogactwo witaminy E, potasu i magnezu, opakowanie 90 g","1 op. (90 g)"]
[null,102,"Orzechy laskowe BAKALLAND, 300 g","Opakowanie w kolorze żółtym - struna, w którą wyposażone jest opakowanie umożliwia wielorazowe otwieranie i szczelne zamykanie; orzechy laskowe.","1 op. (300 g)"]
[null,103,"Orzechy nerkowca  solone BAKALLAND, 70 g","Orzechy nerkowca Bakalland dorodne, delikatne orzechy o nienagannej skórce i wysokiej jakości o której świadczy ich chrupkość oraz charakterystyczny, nieco maślany smak. Solone opakowanie 70 g.","1 op. (70 g)"]
[null,104,"Orzechy włoskie BAKALLAND, 200 g","Orzech włoski łuskany. Opakowanie 200 g","1 op. (200 g)"]
[null,105,"Paluszki LAJKONIK solone, 200 g","Paluszki słone w opakowaniu 200 g Jednostka sprzedaży: 1 opakowanie ","1 op. (200 g)"]
[null,106,"Nektar multiwitamina CAPPY, 12 butelek x 0,33 l","Doskonały nektar owocowy W butelkach PET 0,33 l Jednostka sprzedaży: 1 zgrzewka (12 butelek)","1 op. (12 butelek)"]
[null,107,"Sok pomarańczowy CAPPY, 12 butelek x 0,33 l","Doskonały sok owocowy W butelkach PET 0,33 l Jednostka sprzedaży: 1 zgrzewka (12 butelek)","1 op. (12 butelek)"]
[null,108,"Zagęszczony sok cytrynowy CHAMPION, 10 kubeczków x 7,5 g","100% sok z cytryny z naturalnego zagęszczonego, naturalnie mętnego soku cytrynowego Bez konserwantów i sztucznych barwników Jednostka sprzedaży: 1 opakowanie (10 x 7,5 g) ","1 op. (10 kubeczków)"]
[null,109,"Napój gazowany COCA-COLA, zgrzewka 18 butelek x 0,5 l","Napókj gazowany.Bez konserwantów, w butelce plastikowej PET.Jednostka sprzedaży: 1 zgrzewka (18 butelek)","1 op. (18 butelek)"]
[null,110,"Napój gazowany COCA-COLA, 24 puszki x 0,33 l","Lider wśród napojów gazowanych Bez konserwantów dostępny w puszce Jednostka sprzedaży: 1 zgrzewka (24 puszki 0,33 l)","1 op. (24 puszki 0,33 l)"]
[null,111,"Napój gazowany COCA-COLA Zero, 12 butelek x 0,5 l","Lider wśród napojów gazowanych Bez konserwantów, dostępny w plastikowej butelce Jednostka sprzedaży: 1 zgrzewka (12 butelek 0,5 l)","1 op. (12 butelek)"]
[null,112,"Nektar czarna porzeczka FORTUNA, 15 butelek x 0,3 l","Nektar w butelce szklanej 0,3 l Opakowanie 15 butelek","1 op. (15 butelek)"]
[null,113,"Sok multiwitamina FORTUNA, 15 butelek x 0,3 l","Sok multiwitamina FORTUNA, 15 butelek x 0,3 lSok w butelce szklanej 0,3 l Opakowanie 15 butelek","1 op. (15 butelek)"]
[null,114,"Sok pomarańczowy FORTUNA, 15 butelek x 0,3 l","Sok w butelce szklanej 0,3 l Opakowanie 15 butelek","1 op. (15 butelek)"]
[null,115,"Sok pomidorowy FORTUNA, 15 butelek x 0,3 l","Sok pomidorowy w szklanej butelce 0,3 l Jednostka sprzedaży: 1 zgrzewka (15 butelek)","1 op. (15 butelek)"]
[null,116,"Nektar czarna porzeczka TARCZYN, 15 butelek x 0,3 l","Esencjonalny napój w szklanych butelkach z nakrętką z ciekawostkami Jednostka sprzedaży: 1 zgrzewka (15 butelek)","1 op. (15 butelek)"]
[null,117,"Nektar czerwony grejpfrut TARCZYN, zgrzewka 15 butelek x 0,3 l","Nektar czerwony grejpfrut TARCZYN, zgrzewka 15 butelek szklanych o pojemnosci 300 ml","1 op. (15 butelek)"]
[null,118,"Sok jabłkowy TARCZYN, 15 butelek x 0,3 l","Esencjonalny sok w szklanych butelkach z nakrętką z ciekawostkami Jednostka sprzedaży: 1 zgrzewka (15 butelek)","1 op. (15 butelek)"]
[null,119,"Nektar pomarańczowy TARCZYN, 15 butelek x 0,25 l","Esencjonalny nektar w szklanych butelkach z nakrętką z ciekawostkami Jednostka sprzedaży: 1 zgrzewka (15 butelek)","1 op. (15 butelek)"]
[null,120,"Sok pomidorowy TARCZYN, zgrzewka 15 butelek x 0,3 l","Sok pomidorowy TARCZYN, zgrzewka 15 butelek  szklanych o pojemności  300ml","1 op. (15 butelek)"]
[null,121,"Sok TYMBARK jabłko 100%, 12 butelek x 300 ml","Sok TYMBARK jabłko 100%, 12 butelek x 300 ml Sok został stworzony w 100% ze starannie wyselekcjonowanych gatunków owoców. ","1 op. (12 butelek)"]
[null,122,"Sok TYMBARK pomarańcza 100%, 12 butelek x 300 ml","Sok TYMBARK pomarańcza 100%, 12 butelek x 300 ml Sok został stworzony w 100% ze starannie wyselekcjonowanych gatunków owoców. ","1 op. (12 butelek)"]
[null,123,"Sok TYMBARK pomidor 100%, 12 butelek x 250 ml","Sok TYMBARK pomidor 100%, 12 butelek x 250 ml Sok został stworzony w 100% ze starannie wyselekcjonowanych gatunków owoców. ","1 op. (12 butelek)"]
[null,124,"Sok TYMBARK Vitamini banan, marchewka, jabłko, 12 butelek x 300 ml","Sok TYMBARK Vitamini banan, marchewka, jabłko, 12 butelek x 300 ml Vitamini ma smak bananowo – jabłkowo - marchewkowy ","1 op. (12 butelek)"]
[null,125,"Woda mineralna CISOWIANKA lekko gazowana, zgrzewka 12 butelek x 0,5 l","Naturalnie niskosodowa woda mineralna, odpowiednia dla diety ubogiej w sód Średnia mineralizacja i subtelny smak sprawiają, że Cisowianka jest idealną wodą na każdą okazję Jednostka sprzedaży: 1 zgrzewka (12 sztuk) ","1 op. (12 butelek)"]
[null,126,"Woda mineralna CISOWIANKA Perlage gazowana, zgrzewka 24 butelki x 300 ml","Woda musująca w szklanej butelce Subtelnie orzeźwiająca Zamknięta w eleganckiej szklanej butelce Pasuje zarówno do kameralnego spotkania służbowego, jak i dużej konferencji Nie zakłóca smaku dań Niskosodowa Pojemność butelki: 0,3 l Jednostka sprzedaży: 1 karton (24 butelki)","1 op. (24 butelki)"]
[null,127,"Woda mineralna CISOWIANKA gazowana, zgrzewka 6 butelek x 1,5 l","Naturalnie niskosodowa woda mineralna, odpowiednia dla diety ubogiej w sód Średnia mineralizacja i subtelny smak sprawiają, że Cisowianka jest idealną wodą na każdą okazję Jednostka sprzedaży: 1 zgrzewka (6 butelek) ","1 op. (6 butelek)"]
[null,128,"Woda mineralna CISOWIANKA niegazowana szklane butelki 24 x 300 ml","Woda mineralna CISOWIANKA niegazowana Subtelnie orzeźwiająca Zamknięta w eleganckiej szklanej butelce Niskosodowa, średniozmineralizowana","1 op. (24 butelki)"]
[null,129,"Woda mineralna CISOWIANKA niegazowana, zgrzewka 12 butelek x 0,5 l","Naturalnie niskosodowa woda mineralna, odpowiednia dla diety ubogiej w sód Średnia mineralizacja i subtelny smak sprawiają, że Cisowianka jest idealną wodą na każdą okazję Jednostka sprzedaży: 1 zgrzewka (12 butelek) ","1 op. (12 butelek)"]
[null,130,"Woda mineralna CISOWIANKA niegazowana, zgrzewka 6 butelek x 1,5 l","Naturalnie niskosodowa woda mineralna, odpowiednia dla diety ubogiej w sód Średnia mineralizacja i subtelny smak sprawiają, że Cisowianka jest idealną wodą na każdą okazję Jednostka sprzedaży: 1 zgrzewka (6 butelek) ","1 op. (6 butelek)"]
[null,131,"Woda mineralna CISOWIANKA Sport niegazowana, zgrzewka 8 butelek x 0,7 l","Naturalnie niskosodowa woda mineralna odpowiednia dla diety ubogiej w sód Średnio zmineralizowana W wygodnej butelce z dziubkiem Jednostka sprzedaży: 1 zgrzewka (8 butelek) ","1 op. (8 butelek)"]
[null,132,"Woda mineralna KINGA PIENIŃSKA gazowana zgrzewka 12 butelek x 0,5 l","Naturalna woda mineralna czerpana w otulinie Pienińskiego Parku Narodowego. Niskosodowa o średniej mineralizacji","1 op. (12 butelek)"]
[null,133,"Woda mineralna KINGA PIENIŃSKA niegazowana, zgrzewka 12 butelek x 0,5 l","Naturalna woda mineralna czerpana w otulinie Pienińskiego Parku Narodowego Niskosodowa o średniej mineralizacji Górska, orzeźwiająca, z podziemnych źródeł Pienin Polecana przez sommelierów i szefów kuchni Jednostka sprzedaży: 1 zgrzewka (12 butelek)","1 op. (12 butelek)"]
[null,134,"Woda mineralna KROPLA BESKIDU gazowana, zgrzewka 12 butelek x 0,5 l","Naturalna woda mineralna z górskich źródeł Beskidu Sądeckiego Niskozmineralizowana - do spożywania bez ograniczeń, dla osób w każdym wieku Jednostka sprzedaży: 1 zgrzewka (12 butelek) ","1 op. (12 butelek)"]
[null,135,"Woda mineralna KROPLA BESKIDU gazowana, zgrzewka 6 butelek x 1,5 l","Naturalna woda mineralna z górskich źródeł Beskidu Sądeckiego Niskozmineralizowana - do spożywania bez ograniczeń, dla osób w każdym wieku Jednostka sprzedaży: 1 zgrzewka (6 butelek)","1 op. (6 butelek)"]
[null,136,"Woda mineralna KROPLA BESKIDU niegazowana, zgrzewka 12 butelek x 0,5 l","Naturalna woda mineralna z górskich źródeł Beskidu Sądeckiego Niskozmineralizowana - do spożywania bez ograniczeń, dla osób w każdym wieku Jednostka sprzedaży: 1 zgrzewka (12 butelek) ","1 op. (12 butelek)"]
[null,137,"Woda mineralna NAŁĘCZOWIANKA niegazowana, zgrzewka 12 butelek x 0,5 l","Naturalna woda mineralna wydobywana z krystalicznie czystego, doskonale chronionego przez naturę źródła w sercu Nałęczowa Posiada pozytywną opinię Instytutu Matki i Dziecka Średniozmineralizowana, niskosodowa Jednostka sprzedaży: 1 zgrzewka (12 butelek) ","1 op. (12 butelek)"]
[null,138,"Woda mineralna NAŁĘCZOWIANKA niegazowana, zgrzewka 6 butelek x 1,5 l","Naturalna woda mineralna wydobywana z krystalicznie czystego, doskonale chronionego przez naturę źródła w sercu Nałęczowa Posiada pozytywną opinię Instytutu Matki i Dziecka Średniozmineralizowana, niskosodowa Jednostka sprzedaży: 1 zgrzewka (6 butelek) ","1 op. (6 butelek)"]
[null,139,"Woda źródlana ŻYWIOŁ od ŻYWIEC ZDRÓJ gazowana, 24 butelki x 0,5 l","Niskozmineralizowana woda żródlana najwyższej jakości Jednostka sprzedaży: 1 zgrzewka (24 butelki x 0,5 l) ","1 op. (24 butelki)"]
[null,140,"Woda źródlana ŻYWIOŁ od ŻYWIEC ZDRÓJ gazowana, zgrzewka 6 butelek x 1,5 l","Niskozmineralizowana woda żródlana najwyższej jakości Jednostka sprzedaży: 1 zgrzewka (6 butelek) ","1 op. ( 6 butelek)"]
[null,141,"Woda źródlana ŻYWIEC ZDRÓJ niegazowana, 24 butelki x 0,5 l","Niskozmineralizowana woda żródlana najwyższej jakości Niskosodowa Rekomendowana przez Instytut Matki i Dziecka w żywieniu niemowląt i dzieci Jednostka sprzedaży: 1 zgrzewka (24 butelki x 0,5 l) ","1 op. (24 butelki)"]
[null,142,"Woda źródlana ŻYWIEC ZDRÓJ niegazowana, zgrzewka 6 butelek x 1,5 l","Niskozmineralizowana woda żródlana najwyższej jakości Niskosodowa Rekomendowana przez Instytut Matki i Dziecka w żywieniu niemowląt i dzieci Jednostka sprzedaży: 1 zgrzewka (6 butelek) ","1 op. (6 butelek)"]
[]
[]
[]
[null,"miejscowość i data",null,"Pieczęć imienna i podpis przedstawiciela(i) Wykonawcy"]

{"sheet":"Załącznik 2 dla Części 1","index":3,"n_rows":170,"n_cols":8,"rows_kept":170,"cut":false,"hidden":false,"merged":[[18,1,18,2],[168,2,168,3],[168,4,168,7],[169,5,169,7],[2,1,2,7],[4,1,4,7],[8,1,8,7],[11,1,11,7],[14,1,14,7],[16,1,16,7]]}
[null,"Oznaczenie sprawy:  1200/BW00/ZL/KZ/2024/0000073411"]
[]
[null,"ZAŁĄCZNIK NR 2 - FORMULARZ CENOWY DLA CZĘŚCI 1 - DOSTAWA ARTYKUŁÓW SPOŻYWCZYCH:  POZNAŃ+ WOJ. WIELKOPOLSKIE;  BYDGOSZCZ+ WOJ. KUJAWSKO-POMORSKIE; CHOJNICE + WOJ. POMORSKIE."]
[]
[null,{"$f":"'Załącznik 1 - F.O. Części 1-2'!C5","v":0}]
[null,null,"(pieczęć wykonawcy)"]
[]
[null,"Ja, niżej podpisany (My niżej podpisani):"]
[null,{"$f":"'Załącznik 1 - F.O. Części 1-2'!C9","v":0}]
[]
[null,"działając w imieniu i na rzecz:"]
[null,{"$f":"'Załącznik 1 - F.O. Części 1-2'!C12","v":0}]
[]
[null,"Składam(y) ofertę na wykonanie zamówienia, którego przedmiotem jest:"]
[null,"Dostawa artykułów spożywczych dla Enea Operator Sp. z o.o."]
[]
[null,"Część 1 - Dostawa artykułów spożywczych: Poznań+ woj. wielkopolskie; Bydgoszcz + woj. kujawskopomorskie; Chojnice + woj. Pomorskie"]
[]
[null,"ŁĄCZNA CENA NETTO OFERTY DLA CZĘŚCI 1:",null,{"$f":"SUM(H22:H163)","v":0}]
[]
[null,"LP","Nazwa produktu","Opis szczegółowy","Jednostka ","cena jednostkowa netto","Szacowana Ilość","łączna wartość netto"]
[null,1,"Cukier biały DIAMANT w kostkach, 1 kg","Cukier biały w kostkach Jednostka sprzedaży: 1 opakowanie (1 kg) ","1 op. ( 1 kg.)",{"$f":"IF('Załącznik 1 - F.O. Części 1-2'!$V$46,VLOOKUP(C22,'Załącznik 1 - F.O. Części 1-2'!$C$43:$G$185,5,0),0)","v":0},75,{"$f":"G22*F22","v":0}]
[null,2,"Cukier biały DIAMANT, saszetki 100 sztuk x 5 g","Cukier biały w saszetkach Idealny dla biur przy organizowaniu spotkań, konferencji, szkoleń Jednostka sprzedaży: 1 opakowanie (100 saszetek po 5 g) ","1 op. (100 sztuk)",{"$f":"IF('Załącznik 1 - F.O. Części 1-2'!$V$46,VLOOKUP(C23,'Załącznik 1 - F.O. Części 1-2'!$C$43:$G$185,5,0),0)","v":0},977,{"$f":"G23*F23","v":0}]
[null,3,"Cukier trzcinowy DIAMANT Dry Demerara, sypki, 500 g","Elegancki cukier trzcinowy o bursztynowym kolorze i miodowo-karmelowym posmaku Jednostka sprzedaży: 1 opakowanie (500 g) ","1 op. ( 500 g)",{"$f":"IF('Załącznik 1 - F.O. Części 1-2'!$V$46,VLOOKUP(C24,'Załącznik 1 - F.O. Części 1-2'!$C$43:$G$185,5,0),0)","v":0},568,0]
[null,4,"Cukier biały DIAMANT sypki, 1 kg","Cukier biały sypki Jednostka sprzedaży: 1 opakowanie (1 kg) ","1 op.( 1 kg.)",{"$f":"IF('Załącznik 1 - F.O. Części 1-2'!$V$46,VLOOKUP(C25,'Załącznik 1 - F.O. Części 1-2'!$C$43:$G$185,5,0),0)","v":0},151,0]
[null,5,"Herbata czarna AHMAD Earl Grey, 100 torebek","Najlepsze gatunki czarnej herbaty oraz bergamotka dają silny, energetyczny aromat i pełnię smaku Dodatek olejku z bergamoty nadaje jej orzeźwiający charakter i cytrusowy posmak W opakowaniu 100 torebek z zawieszką, 200 g netto Jednostka sprzedaży: 1 opakowanie ","1 op. (100 torebek)",{"$f":"IF('Załącznik 1 - F.O. Części 1-2'!$V$46,VLOOKUP(C26,'Załącznik 1 - F.O. Części 1-2'!$C$43:$G$185,5,0),0)","v":0},61,0]
[null,6,"Herbata czarna DILMAH Ceylon Gold, 100 torebek","Tradycyjna herbata czarna z wysokogórskich plantacji cejlońskich W opakowaniu: 100 torebek z zawieszką, 200 g netto Jednostka sprzedaży: 1 opakowanie ","1 op. (100 torebek)",{"$f":"IF('Załącznik 1 - F.O. Części 1-2'!$V$46,VLOOKUP(C27,'Załącznik 1 - F.O. Części 1-2'!$C$43:$G$185,5,0),0)","v":0},88,0]
[null,7,"Herbata czarna liściasta DILMAH Earl Grey, 125 g","Czarna herbata Dilmah Earl Grey w formie sypkiej. Aromatyzowana olejkiem bergamoty, który dodaje naparowi wyrazistego charakteru i cytrusowego posmaku. Pochodzi z  plantacji na Sri Lance,. Jednostka sprzedaży: 1 opakowanie","1 op. ( 125 g)",{"$f":"IF('Załącznik 1 - F.O. Części 1-2'!$V$46,VLOOKUP(C28,'Załącznik 1 - F.O. Części 1-2'!$C$43:$G$185,5,0),0)","v":0},109,0]
[null,8,"Herbata miętowa HERBAPOL Breakfast, 20 kopert","Najwyższej jakości herbaty ekspresowe Dwukomorowe saszetki stopniowo uwalniają intensywny aromat naparu opartego na naturalnych składnikach. W opakowaniu: 20 torebek w kopertach","1 op.(  20 torebek)",{"$f":"IF('Załącznik 1 - F.O. Części 1-2'!$V$46,VLOOKUP(C29,'Załącznik 1 - F.O. Części 1-2'!$C$43:$G$185,5,0),0)","v":0},302,0]
[null,9,"Herbata owocowa HERBAPOL Herbaciany Ogród malinowa, 20 torebek","100% natury z dużych kawałków owoców W opakowaniu: 20 torebek Jednostka sprzedaży: 1 opakowanie ","1 op.(  20 torebek)",{"$f":"IF('Załącznik 1 - F.O. Części 1-2'!$V$46,VLOOKUP(C30,'Załącznik 1 - F.O. Części 1-2'!$C$43:$G$185,5,0),0)","v":0},59,0]
[null,10,"Herbata owocowa HERBAPOL Herbaciany Ogród, Prosto z lasu, 20 torebek","100% natury w dużych kawałkach owoców W opakowaniu: 20 torebek bez zawieszki","1 op.(  20 torebek)",{"$f":"IF('Załącznik 1 - F.O. Części 1-2'!$V$46,VLOOKUP(C31,'Załącznik 1 - F.O. Części 1-2'!$C$43:$G$185,5,0),0)","v":0},12,0]
[null,11,"Herbata zielona HERBAPOL, 20 torebek bez zawieszki","Aromatyczna zielona herbata W opakowaniu: 20 torebek bez zawieszki Jednostka sprzedaży: 1 opakowanie ","1 op.(  20 torebek)",{"$f":"IF('Załącznik 1 - F.O. Części 1-2'!$V$46,VLOOKUP(C32,'Załącznik 1 - F.O. Części 1-2'!$C$43:$G$185,5,0),0)","v":0},82,0]
[null,12,"Herbata zielona LIPTON  20 torebek piramidek","Kompozycja specjalnie wyselekcjonowanych liści herbaty zielonej. Przestrzeń w piramidce sprawia, że składniki herbaty mogą się rozwinąć podczas zaparzania i uwolnić doskonały smak i aromat. W opakowaniu: 20 torebek z zawieszką","1 op.(  20 torebek)",{"$f":"IF('Załącznik 1 - F.O. Części 1-2'!$V$46,VLOOKUP(C33,'Załącznik 1 - F.O. Części 1-2'!$C$43:$G$185,5,0),0)","v":0},5,0]
[null,13,"Harbata biała IRVING poziomkowa z mandarynką, 20 kopert","herbata biała, poziomka z mandarynką, 20 kopert.","1 op.(  20 torebek)",{"$f":"IF('Załącznik 1 - F.O. Części 1-2'!$V$46,VLOOKUP(C34,'Załącznik 1 - F.O. Części 1-2'!$C$43:$G$185,5,0),0)","v":0},118,0]
[null,14,"Herbata czarna LIPTON Earl Grey, 92 torebki","Mieszanka wysokiej jakości czarnych herbat z dodatkiem olejku bergamotki W opakowaniu 92 torebki z zawieszką Jednostka sprzedaży: 1 opakowanie ","1 op. (92 torebki)",{"$f":"IF('Załącznik 1 - F.O. Części 1-2'!$V$46,VLOOKUP(C35,'Załącznik 1 - F.O. Części 1-2'!$C$43:$G$185,5,0),0)","v":0},75,0]
[null,15,"Herbata ziołowa LIPTON Melisa z wiśnią, 20 torebek","herbatka ziołowa Lipton o smaku melisy oraz wiśni to idealny towarzysz każdej chwili relaksu. Smak soczystych wiśni doskonale współgra z melisą, której tradycyjnie przypisuje się właściwości ułatwiające zasypianie i odprężenie. W opakowaniu 20 torebek. ","1 op. (20 torebek)",{"$f":"IF('Załącznik 1 - F.O. Części 1-2'!$V$46,VLOOKUP(C36,'Załącznik 1 - F.O. Części 1-2'!$C$43:$G$185,5,0),0)","v":0},72,0]
[null,16,"Herbata czarna LIPTON cytrynowa z melisą, 20 torebek piramidek","Kompozycja specjalnie wyselekcjonowanych liści herbaty z aromatami owocowymi Przestrzeń w piramidce sprawia, że składniki herbaty mogą się rozwinąć podczas zaparzania i uwolnić doskonały smak i aromat W opakowaniu: 20 torebek z zawieszką Jednostka sprzedaży: 1 opakowanie ","1 op. (20 torebek)",{"$f":"IF('Załącznik 1 - F.O. Części 1-2'!$V$46,VLOOKUP(C37,'Załącznik 1 - F.O. Części 1-2'!$C$43:$G$185,5,0),0)","v":0},55,0]
[null,17,"Herbata owocowa LIPTON owoce leśne, 20 torebek piramidek","Kompozycja specjalnie wyselekcjonowanych, najmłodszych liści herbaty czarnej. Przestrzeń w piramidce sprawia, że składniki herbaty mogą się rozwinąć podczas zaparzania i uwolnić doskonały smak i aromat. W opakowaniu: 20 torebek z zawieszką","1 op. (20 torebek)",{"$f":"IF('Załącznik 1 - F.O. Części 1-2'!$V$46,VLOOKUP(C38,'Załącznik 1 - F.O. Części 1-2'!$C$43:$G$185,5,0),0)","v":0},12,0]
[null,18,"Herbata czarna LIPTON Yellow Label, 100 torebek","Czarna herbata w torebkach z zawieszką W opakowaniu: 100 torebek z zawieszką Jednostka sprzedaży: 1 opakowanie ","1 op. (100 torebek)",{"$f":"IF('Załącznik 1 - F.O. Części 1-2'!$V$46,VLOOKUP(C39,'Załącznik 1 - F.O. Części 1-2'!$C$43:$G$185,5,0),0)","v":0},1549,0]
[null,19,"Herbata czarna LIPTON Yellow Label, 50 torebek","Czarna herbata w torebkach z zawieszką W opakowaniu: 50 torebek z zawieszką Jednostka sprzedaży: 1 opakowanie ","1 op. (50 torebek)",{"$f":"IF('Załącznik 1 - F.O. Części 1-2'!$V$46,VLOOKUP(C40,'Załącznik 1 - F.O. Części 1-2'!$C$43:$G$185,5,0),0)","v":0},81,0]
[null,20,"Herbata zielona LIPTON cytrusowa, 25 torebek","Herbara ekspresowa w torebkach z zawieszką W opakowaniu: 25 torebek Jednostka sprzedaży: 1 opakowanie ","1 op. (25 torebek)",{"$f":"IF('Załącznik 1 - F.O. Części 1-2'!$V$46,VLOOKUP(C41,'Załącznik 1 - F.O. Części 1-2'!$C$43:$G$185,5,0),0)","v":0},86,0]
[null,21,"Herbata zielona LIPTON miętowa, 25 torebek","Herbata ekspresowa w torebkach z zawieszką W opakowaniu: 25 torebek Jednostka sprzedaży: 1 opakowanie ","1 op. (25 torebek)",{"$f":"IF('Załącznik 1 - F.O. Części 1-2'!$V$46,VLOOKUP(C42,'Załącznik 1 - F.O. Części 1-2'!$C$43:$G$185,5,0),0)","v":0},64,0]
[null,22,"Herbata owocowa TEEKANNE World of Fruits, Black Currant, 20 kopert","Wyśmienita aromatyzowana mieszanka herbat owocowych o smaku czarnej porzeczki i cytryny. W opakowaniu 20 torebek z zawieszką, w papierowych kopertach. Jednostka sprzedaży: 1 opakowanie","1 op. (20 torebek)",{"$f":"IF('Załącznik 1 - F.O. Części 1-2'!$V$46,VLOOKUP(C43,'Załącznik 1 - F.O. Części 1-2'!$C$43:$G$185,5,0),0)","v":0},10,0]
[null,23,"Zestaw herbat owocowych TEEKANNE World of Fruits, 30 kopert","Wyjątkowy zestaw herbat ekspresowych z serii TEEKANNE World of Fruits W zestawie 6 aromatyzowanych mieszanek: Fresh Orange, Sweet Cherry, Garden Selection, Red Berries, Granny's Finest, Magic Apple Torebki pakowane indywidualnie w papierowe koperty Jednostka sprzedaży: 1 opakowanie (30 torebek) ","1 op. (30 torebek)",{"$f":"IF('Załącznik 1 - F.O. Części 1-2'!$V$46,VLOOKUP(C44,'Załącznik 1 - F.O. Części 1-2'!$C$43:$G$185,5,0),0)","v":0},12,0]
[null,24,"Herbata zielona TEEKANNE z opuncją, 20 kopert","Zielona herbata o wyśmienitym aromacie W opakowaniu: 20 torebek z zawieszką, w papierowych kopertach Jednostka sprzedaży: 1 opakowanie ","1 op. (20 torebek)",{"$f":"IF('Załącznik 1 - F.O. Części 1-2'!$V$46,VLOOKUP(C45,'Załącznik 1 - F.O. Części 1-2'!$C$43:$G$185,5,0),0)","v":0},178,0]
[null,25,"Herbata owocowa VITAX Inspirations melisa & pomarańcza, 20 torebek","Wyśmienita herbata o głębokim smaku i aromacie pysznych owoców W opakowaniu 20 torebek z zawieszką Jednostka sprzedaży: 1 opakowanie ","1 op. (20 torebek)",{"$f":"IF('Załącznik 1 - F.O. Części 1-2'!$V$46,VLOOKUP(C46,'Załącznik 1 - F.O. Części 1-2'!$C$43:$G$185,5,0),0)","v":0},298,0]
[null,26,"Herbata ziołowa VITAX melisa, 20 okrągłych torebek bez zawieszki","Tradycyjne, aromatyczne herbaty ze starannie wyselekcjonowanych ziół W opakowaniu 20 okrągłych torebek bez zawieszki Jednostka sprzedaży: 1 opakowanie ","1 op. (20 torebek)",{"$f":"IF('Załącznik 1 - F.O. Części 1-2'!$V$46,VLOOKUP(C47,'Załącznik 1 - F.O. Części 1-2'!$C$43:$G$185,5,0),0)","v":0},153,0]
[null,27,"Herbata ziołowa VITAX mięta, 20 okrągłych torebek bez zawieszki","Tradycyjne, aromatyczne herbaty ze starannie wyselekcjonowanych ziół W opakowaniu 20 okrągłych torebek bez zawieszki Jednostka sprzedaży: 1 opakowanie ","1 op. (20 torebek)",{"$f":"IF('Załącznik 1 - F.O. Części 1-2'!$V$46,VLOOKUP(C48,'Załącznik 1 - F.O. Części 1-2'!$C$43:$G$185,5,0),0)","v":0},91,0]
[null,28,"Herbata owocowa VITAX Inspirations żurawina & malina, 20 torebek","Wyśmienita herbata o głębokim smaku i aromacie pysznych owoców W opakowaniu: 20 torebek z zawieszką Jednostka sprzedaży: 1 opakowanie ","1 op. (20 torebek)",{"$f":"IF('Załącznik 1 - F.O. Części 1-2'!$V$46,VLOOKUP(C49,'Załącznik 1 - F.O. Części 1-2'!$C$43:$G$185,5,0),0)","v":0},32,0]
[null,29,"Herbata ziołowa VITAX rumianek, 20 kwadratowych torebek bez zawieszki","Tradycyjne, aromatyczne herbaty ze starannie wyselekcjonowanych ziół - rumianek. W opakowaniu: 20 kwadratowych torebek bez zawieszki","1 op. (20 torebek)",{"$f":"IF('Załącznik 1 - F.O. Części 1-2'!$V$46,VLOOKUP(C50,'Załącznik 1 - F.O. Części 1-2'!$C$43:$G$185,5,0),0)","v":0},18,0]
[null,30,"Kawa ziarnista Astra Łagodna 250 g","100% arabica z najlepszych plantacji Azji, Afryki i Ameryki Południowej. Opakowanie 250 g.","1 op. (250 g)",{"$f":"IF('Załącznik 1 - F.O. Części 1-2'!$V$46,VLOOKUP(C51,'Załącznik 1 - F.O. Części 1-2'!$C$43:$G$185,5,0),0)","v":0},12,0]
[null,31,"Kawa ziarnista Astra Łagodna 1 kg","100% arabica z najlepszych plantacji Azji, Afryki i Ameryki Południowej. Opakowanie 1 kg.","1 op. (1 kg)",{"$f":"IF('Załącznik 1 - F.O. Części 1-2'!$V$46,VLOOKUP(C52,'Załącznik 1 - F.O. Części 1-2'!$C$43:$G$185,5,0),0)","v":0},50,0]
[null,32,"Kawa ziarnista EDUSCHO Caffe Crema, 1 kg","Przygotowana z wyselekcjonowanych gatunków kawy, zapewniających bogaty i intensywny smak Jednostka sprzedaży: 1 opakowanie (1 kg) ","1 op. ( 1 kg.)",{"$f":"IF('Załącznik 1 - F.O. Części 1-2'!$V$46,VLOOKUP(C53,'Załącznik 1 - F.O. Części 1-2'!$C$43:$G$185,5,0),0)","v":0},54,0]
[null,33,"Kawa zbożowa INKA, puszka 200 g","Bogata w błonnik kawa zbożowa Jednostka sprzedaży: 1 opakowanie (200 g) ","1 op.( 200 g.)",{"$f":"IF('Załącznik 1 - F.O. Części 1-2'!$V$46,VLOOKUP(C54,'Załącznik 1 - F.O. Części 1-2'!$C$43:$G$185,5,0),0)","v":0},10,0]
[null,34,"Kawa rozpuszczalna JACOBS Barista Americano 155 g","Jacobs Barista Edition Americano Kompozycja kawy rozpuszczalnej i zmielonych ziaren kawy  opakowanie słoik 155 g","1 op. (słoik 155g)",{"$f":"IF('Załącznik 1 - F.O. Części 1-2'!$V$46,VLOOKUP(C55,'Załącznik 1 - F.O. Części 1-2'!$C$43:$G$185,5,0),0)","v":0},7,0]
[null,35,"Kawa mielona JACOBS Cronat Gold, 500 g","Wyprodukowana z ziaren najwyższej jakości Jednostka sprzedaży: 1 opakowanie (500 g) ","1 op. (500 g.)",{"$f":"IF('Załącznik 1 - F.O. Części 1-2'!$V$46,VLOOKUP(C56,'Załącznik 1 - F.O. Części 1-2'!$C$43:$G$185,5,0),0)","v":0},228,0]
[null,36,"Kawa rozpuszczalna JACOBS Cronat Gold, 200 g","Doskonały smak i aromat Jednostka sprzedaży: 1 opakowanie (200 g) ","1 op.( 200 g.)",{"$f":"IF('Załącznik 1 - F.O. Części 1-2'!$V$46,VLOOKUP(C57,'Załącznik 1 - F.O. Części 1-2'!$C$43:$G$185,5,0),0)","v":0},325,0]
[null,37,"Kawa rozpuszczalna JACOBS Crema Gold, 200 g","Kawa rozpuszczalna o wyjątkowo harmonijnym smaku, zwieńczona delikatną pianką W formie delikatnego pudru Jednostka sprzedaży: 1 opakowanie (200 g) ","1 op.( 200 g.)",{"$f":"IF('Załącznik 1 - F.O. Części 1-2'!$V$46,VLOOKUP(C58,'Załącznik 1 - F.O. Części 1-2'!$C$43:$G$185,5,0),0)","v":0},10,0]
[null,38,"Kawa mielona JACOBS Kronung, 250 g","Wyprodukowana z ziaren najwyższej jakości Jednostka sprzedaży: 1 opakowanie (250 g) ","1 op. (250 g.)",{"$f":"IF('Załącznik 1 - F.O. Części 1-2'!$V$46,VLOOKUP(C59,'Załącznik 1 - F.O. Części 1-2'!$C$43:$G$185,5,0),0)","v":0},48,0]
[null,39,"Kawa rozpuszczalna JACOBS Kronung, 200 g","Wyprodukowana z ziaren najwyższej jakości Jednostka sprzedaży: 1 opakowanie (200 g) ","1 op.( 200 g.)",{"$f":"IF('Załącznik 1 - F.O. Części 1-2'!$V$46,VLOOKUP(C60,'Załącznik 1 - F.O. Części 1-2'!$C$43:$G$185,5,0),0)","v":0},21,0]
[null,40,"Kubek papierowy do gorących napojów 110 ml","Kubek papierowy przeznaczony do napojów oraz potraw zimnych i gorących poj. 110 ml Jednostka sprzedaży: 1 opakowanie (50 szt)","1 op. (50 szt.)",{"$f":"IF('Załącznik 1 - F.O. Części 1-2'!$V$46,VLOOKUP(C61,'Załącznik 1 - F.O. Części 1-2'!$C$43:$G$185,5,0),0)","v":0},12,0]
[null,41,"Kubek plastikowy do zimnych napojów 200 ml Biały","Kubki jednorazowe wykonane z tworzywa PET poj. 200  ml. Kolor biały Jednostka sprzedaży: 1 opakowanie (100 szt)","1 op. (100 szt.)",{"$f":"IF('Załącznik 1 - F.O. Części 1-2'!$V$46,VLOOKUP(C62,'Załącznik 1 - F.O. Części 1-2'!$C$43:$G$185,5,0),0)","v":0},12,0]
[null,42,"Kawa ziarnista LAVAZZA Crema Aroma, 1 kg","Skład: 25 % Arabica, 75 % Robusta Mieszanka Arabiki i Robusty o intensywnym, długo wyczuwalnym smaku Szczególnie polecana konsumentom lubiącym zdecydowany smak espresso Piękna pianka długo utrzymuje się na powierzchni napoju Jednostka sprzedaży: 1 opakowanie (1 kg) ","1 op. (1 kg)",{"$f":"IF('Załącznik 1 - F.O. Części 1-2'!$V$46,VLOOKUP(C63,'Załącznik 1 - F.O. Części 1-2'!$C$43:$G$185,5,0),0)","v":0},228,0]
[null,43,"Kawa ziarnista LAVAZZA Pronto Crema Grande Aroma 1 kg"," kawa ziarnista Lavazza Pronto Crema Grande Aroma to mieszanka Arabiki z Gwatemali i Kostaryki o średnim stopniu palenia. Delikatna i słodka w smaku z wyczuwalną nutą czekolady.  Jednostka sprzedaży: 1 opakowanie (1 kg)","1 op. (1 kg)",{"$f":"IF('Załącznik 1 - F.O. Części 1-2'!$V$46,VLOOKUP(C64,'Załącznik 1 - F.O. Części 1-2'!$C$43:$G$185,5,0),0)","v":0},28,0]
[null,44,"Kawa mielona LAVAZZA Qualita Oro, 250 g","Kawa mielona pakowana próżniowo 100% Arabica Jednostka sprzedaży: 1 opakowanie (250 g) ","1 op. (250 g)",{"$f":"IF('Załącznik 1 - F.O. Części 1-2'!$V$46,VLOOKUP(C65,'Załącznik 1 - F.O. Części 1-2'!$C$43:$G$185,5,0),0)","v":0},142,0]
[null,45,"Kawa ziarnista LAVAZZA Qualita Oro, 1 kg","100% Arabica Mieszanka ziaren pochodzących z najlepszych plantacji Ameryki i Afryki, słynąca głównie z intensywnego aromatu Jednostka sprzedaży: 1 opakowanie (1 kg) ","1 op. (1 kg)",{"$f":"IF('Załącznik 1 - F.O. Części 1-2'!$V$46,VLOOKUP(C66,'Załącznik 1 - F.O. Części 1-2'!$C$43:$G$185,5,0),0)","v":0},1800,0]
[null,46,"Kawa ziarnista LAVAZZA Qualita Rossa, 1 kg","Kawa ziarnista do ekspresów ciśnieniowych Mieszanka Arabiki (40%) i Robusty (60%) Jednostka sprzedaży: 1 opakowanie (1 kg) ","1 op. (1 kg)",{"$f":"IF('Załącznik 1 - F.O. Części 1-2'!$V$46,VLOOKUP(C67,'Załącznik 1 - F.O. Części 1-2'!$C$43:$G$185,5,0),0)","v":0},39,0]
[null,47,"Kawa rozpuszczalna NESCAFÉ Sensazione Creme, 200 g","Kawa o wyjątkowo delikatnym smaku i aksamitnej piance Jednostka sprzedaży: 1 opakowanie (200 g) ","1 op.( 200 g.)",{"$f":"IF('Załącznik 1 - F.O. Części 1-2'!$V$46,VLOOKUP(C68,'Załącznik 1 - F.O. Części 1-2'!$C$43:$G$185,5,0),0)","v":0},10,0]
[null,48,"Kawa rozpuszczalna TCHIBO Family, 200 g","Zapewnia wyjątkowy smak i wyrazisty aromat dzięki specjalnemu procesowi palenia , któremu poddawane są ziarna kawy Jednostka sprzedaży: 1 opakowanie (200 g) ","1 op. (200 g)",{"$f":"IF('Załącznik 1 - F.O. Części 1-2'!$V$46,VLOOKUP(C69,'Załącznik 1 - F.O. Części 1-2'!$C$43:$G$185,5,0),0)","v":0},5,0]
[null,49,"Kawa ziarnista TCHIBO Profesional  Crema  1 kg ","Professional Crema Tchibo cechuje się łagodnym, kremowym smakiem. Idealnie sprawdza się zarówno czarna, jak i z dodatkiem mleka. Składa się ze starannie wyselekcjonowanych ziaren Arabiki. Kawa przeznaczona jest do stosowania w ekspresach automatycznych, kolbowych oraz przelewowych.  Jednostka sprzedaży: 1 opakowanie (1 kg)","1 op. (1 kg)",{"$f":"IF('Załącznik 1 - F.O. Części 1-2'!$V$46,VLOOKUP(C70,'Załącznik 1 - F.O. Części 1-2'!$C$43:$G$185,5,0),0)","v":0},140,0]
[null,50,"Śmietanka do kawy ŁACIATA 12%, 500 ml","Śmietanka do kawy w kartonie 500 ml, 12% tł. W kartoniku z zakrętką Jednostka sprzedaży: 1 karton ","1 op. (500 ml)",{"$f":"IF('Załącznik 1 - F.O. Części 1-2'!$V$46,VLOOKUP(C71,'Załącznik 1 - F.O. Części 1-2'!$C$43:$G$185,5,0),0)","v":0},10,0]
[null,51,"Śmietanka do kawy ŁACIATA 10%, 10 kubeczków x 10 g","Jednostka sprzedaży: 1 opakowanie (10 kubeczków po 10 g) ","1 op. (10 kubeczków)",{"$f":"IF('Załącznik 1 - F.O. Części 1-2'!$V$46,VLOOKUP(C72,'Załącznik 1 - F.O. Części 1-2'!$C$43:$G$185,5,0),0)","v":0},180,0]
[null,52,"Mleko ŁACIATE UHT 2,0%, 0,5 l","Mleko ŁACIATE UHT 2,0%, 0,5 l Jednostka sprzedaży: 1 karton (0,5 L) ","1 op. (500 ml)",{"$f":"IF('Załącznik 1 - F.O. Części 1-2'!$V$46,VLOOKUP(C73,'Załącznik 1 - F.O. Części 1-2'!$C$43:$G$185,5,0),0)","v":0},167,0]
[null,53,"Mleko ŁACIATE UHT 2,0%, 1 l","Mleko ŁACIATE UHT 2,0%, 1 l Jednostka sprzedaży: 1 karton (1 L) ","1 op. (1 l)",{"$f":"IF('Załącznik 1 - F.O. Części 1-2'!$V$46,VLOOKUP(C74,'Załącznik 1 - F.O. Części 1-2'!$C$43:$G$185,5,0),0)","v":0},162,0]
[null,54,"Mleko ŁACIATE UHT 3,2%, 0,5 l","Jednostka sprzedaży: 1 karton (0,5 L) ","1 op. (500 ml)",{"$f":"IF('Załącznik 1 - F.O. Części 1-2'!$V$46,VLOOKUP(C75,'Załącznik 1 - F.O. Części 1-2'!$C$43:$G$185,5,0),0)","v":0},185,0]
[null,55,"Mleko ŁACIATE UHT 3,2%, 1 l","Mleko ŁACIATE UHT 3,2%, 1 lJednostka sprzedaży:1 karton (1 L) ","1 op. (1 l)",{"$f":"IF('Załącznik 1 - F.O. Części 1-2'!$V$46,VLOOKUP(C76,'Załącznik 1 - F.O. Części 1-2'!$C$43:$G$185,5,0),0)","v":0},158,0]
[null,56,"Mleko zagęszczone ŁACIATE UHT 7,5%, 0,5 l","W kartonie z zakrętką Zawartość tłuszczu: 7,5% Jednostka sprzedaży: 1 karton ","1 op. (500 ml)",{"$f":"IF('Załącznik 1 - F.O. Części 1-2'!$V$46,VLOOKUP(C77,'Załącznik 1 - F.O. Części 1-2'!$C$43:$G$185,5,0),0)","v":0},18,0]
[null,57,"Mleko WYDOJONE UHT, bez laktozy 1,5%, 1 l","Otrzymywane z mleka krowiego poddawanego specjalnej obróbce Dostępne w kartonie 1 l z zakrętką Jednostka sprzedaży: 1 karton ","1 op. (1 l)",{"$f":"IF('Załącznik 1 - F.O. Części 1-2'!$V$46,VLOOKUP(C78,'Załącznik 1 - F.O. Części 1-2'!$C$43:$G$185,5,0),0)","v":0},39,0]
[null,58,"Mleko WYDOJONE UHT, bez laktozy, 3,2%, 1 l","Otrzymywane z mleka krowiego poddawanego specjalnej obróbce w celu obniżenia o blisko połowę poziomu węglowodanów i usunięcia laktozy Dostępne w kartonie 1 l z zakrętką Jednostka sprzedaży: 1 karton ","1 op. (1 l)",{"$f":"IF('Załącznik 1 - F.O. Części 1-2'!$V$46,VLOOKUP(C79,'Załącznik 1 - F.O. Części 1-2'!$C$43:$G$185,5,0),0)","v":0},91,0]
[null,59,"Cukierki Mieszanka bakaliowa BAKALLAND Studencki Mix, 150 g","Pyszna i zdrowa przekąska idealna do każdego biura Jednostka sprzedaży: 1 opakowanie ","1 op (150 g)",{"$f":"IF('Załącznik 1 - F.O. Części 1-2'!$V$46,VLOOKUP(C80,'Załącznik 1 - F.O. Części 1-2'!$C$43:$G$185,5,0),0)","v":0},16,0]
[null,60,"Migdały BAKALLAND, 275 g","Najdorodniejsze, najwyższej jakości orzechy z gładką, pomarańczowo – złotą skórką gwarantują smak i odpowiednią chrupkość. ","1 op. (275 g)",{"$f":"IF('Załącznik 1 - F.O. Części 1-2'!$V$46,VLOOKUP(C81,'Załącznik 1 - F.O. Części 1-2'!$C$43:$G$185,5,0),0)","v":0},10,0]
[null,61,"Orzechy nerkowca BAKALLAND, 300 g","Orzechy nerkowca Bakalland dorodne, delikatne orzechy o nienagannej skórce i wysokiej jakości o której świadczy ich chrupkość oraz charakterystyczny, nieco maślany smak","1 op. (300 g)",{"$f":"IF('Załącznik 1 - F.O. Części 1-2'!$V$46,VLOOKUP(C82,'Załącznik 1 - F.O. Części 1-2'!$C$43:$G$185,5,0),0)","v":0},10,0]
[null,62,"Ciastka BELVITA, kakaowe, 300 g, 24 ciasteczka","Smaczne i pożywne ciastka wypiekane z pełnego ziarna 5 różnych zbóż Dostarczają ważne dla organizmu witaminy i składniki mineralne (np. magnez, żelazo) oraz są źródłem cennego błonnika W opakowaniu: 24 ciasteczka pakowane po 4 szt. w oddzielne folijki Jednostka sprzedaży: 1 opakowanie ","1 op. (300 g)",{"$f":"IF('Załącznik 1 - F.O. Części 1-2'!$V$46,VLOOKUP(C83,'Załącznik 1 - F.O. Części 1-2'!$C$43:$G$185,5,0),0)","v":0},64,0]
[null,63,"Ciastka BELVITA Musli z owocami, 24 ciasteczka pakowane po 4 sztuki, 300 g","Smaczne i pożywne ciastka wypiekane z pełnego ziarna 5 różnych zbóż Dostarczają ważne dla organizmu witaminy i składniki mineralne (np. magnez, żelazo) oraz są źródłem cennego błonnika W opakowaniu: 24 ciasteczka pakowane po 4 szt. w oddzielne folijki Jednostka sprzedaży: 1 opakowanie ","1 op. (300 g)",{"$f":"IF('Załącznik 1 - F.O. Części 1-2'!$V$46,VLOOKUP(C84,'Załącznik 1 - F.O. Części 1-2'!$C$43:$G$185,5,0),0)","v":0},81,0]
[null,64,"Woda mineralna CISOWIANKA gazowana, zgrzewka 12 butelek x 0,5 l","Naturalnie niskosodowa woda mineralna, odpowiednia dla diety ubogiej w sód Średnia mineralizacja i subtelny smak sprawiają, że Cisowianka jest idealną wodą na każdą okazję Jednostka sprzedaży: 1 zgrzewka (12 sztuk) ","1 op. (12 butelek)",{"$f":"IF('Załącznik 1 - F.O. Części 1-2'!$V$46,VLOOKUP(C85,'Załącznik 1 - F.O. Części 1-2'!$C$43:$G$185,5,0),0)","v":0},811,0]
[null,65,"Ciastka DELICJE Szampańskie malinowe, 147 g","Połączenie delikatnego biszkoptu, galaretki owocowej oraz czekolady Nowe, zamykane opakowanie pomaga zachować świeżość produktu Jednostka sprzedaży: 1 opakowanie ","1 op. (147 g)",{"$f":"IF('Załącznik 1 - F.O. Części 1-2'!$V$46,VLOOKUP(C86,'Załącznik 1 - F.O. Części 1-2'!$C$43:$G$185,5,0),0)","v":0},163,0]
[null,66,"Ciastka DELICJE Szampańskie pomarańczowe, 147 g","Połączenie delikatnego biszkoptu, galaretki owocowej oraz czekolady Nowe, zamykane opakowanie pomaga zachować świeżość produktu Jednostka sprzedaży: 1 opakowanie ","1 op. (147 g)",{"$f":"IF('Załącznik 1 - F.O. Części 1-2'!$V$46,VLOOKUP(C87,'Załącznik 1 - F.O. Części 1-2'!$C$43:$G$185,5,0),0)","v":0},223,{"$f":"G87*F87","v":0}]
[null,67,"Ciastka DELICJE Szampańskie wiśniowe, 147 g","Połączenie delikatnego biszkoptu, galaretki owocowej oraz czekolady Nowe, zamykane opakowanie pomaga zachować świeżość produktu Jednostka sprzedaży: 1 opakowanie ","1 op. (147 g)",{"$f":"IF('Załącznik 1 - F.O. Części 1-2'!$V$46,VLOOKUP(C88,'Załącznik 1 - F.O. Części 1-2'!$C$43:$G$185,5,0),0)","v":0},93,0]
[null,68,"Ciastka DELICJE Szampańskie wiśniowe, podwójne opakowanie, 294 g","Podwójne opakowanie popularnych ciasteczek Połączenie delikatnego biszkoptu, galaretki owocowej oraz czekolady Jednostka sprzedaży: 1 opakowanie ","1 op. ( 294 g)",{"$f":"IF('Załącznik 1 - F.O. Części 1-2'!$V$46,VLOOKUP(C89,'Załącznik 1 - F.O. Części 1-2'!$C$43:$G$185,5,0),0)","v":0},61,0]
[null,69,"Praliny RAFFAELLO, 230g","Kokosowy smakołyk z chrupiącego wafelka z całym migdałem w środku, opakowanie kartonowe z przezroczystym okienkiem  Masa netto: 230 g Jednostka sprzedaży: 1 opakowanie ","1 op.(  230 g.)",{"$f":"IF('Załącznik 1 - F.O. Części 1-2'!$V$46,VLOOKUP(C90,'Załącznik 1 - F.O. Części 1-2'!$C$43:$G$185,5,0),0)","v":0},7,0]
[null,70,"Czekoladki FERRERO ROCHER, 200 g","Wykwintne praliny o oryginalnym i niepowtarzalnym smaku. Orzech laskowy zatopiony w czekoladowym kremie zamknięto w kulistym wafelku oblanym mleczną czekoladą z kawałkami orzecha Każda pojedyncza pralina zapakowana jest w oddzielny papierek. Czekoladki pakowane są w sztywne, plastikowe opakowanie.","1 op.(  200 g.)",{"$f":"IF('Załącznik 1 - F.O. Części 1-2'!$V$46,VLOOKUP(C91,'Załącznik 1 - F.O. Części 1-2'!$C$43:$G$185,5,0),0)","v":0},50,0]
[null,71,"Cukierki Goplana Toffino Choco Toffi mleczne z kremem czekoladowym 1 kg","Toffi mleczne nadziewane kremem czekoladowym (18%). Opakowanie 1 kg.","1 op. ( 1 kg.)",{"$f":"IF('Załącznik 1 - F.O. Części 1-2'!$V$46,VLOOKUP(C92,'Załącznik 1 - F.O. Części 1-2'!$C$43:$G$185,5,0),0)","v":0},118,0]
[null,72,"Ciastka BAHLSEN HIT czekoladowe, 220 g","Dwa herbatniki z ciasta laminowanego o kształcie okrągłym przełożone kremem o smaku czekoladowym (41 %) . W obydwu herbatnikach w markizie widoczne górne strony herbatnika z napisem Hit. Jednostka sprzedaży: 1 opakowanie ","1 op.(  220 g)",{"$f":"IF('Załącznik 1 - F.O. Części 1-2'!$V$46,VLOOKUP(C93,'Załącznik 1 - F.O. Części 1-2'!$C$43:$G$185,5,0),0)","v":0},39,0]
[null,73,"Ciasta JEŻYKI Cafe, 140 g","Pyszne ciastka z orzechami laskowymi, karmelem i chrupkami ryżowymi, oblane mleczną czekoladą Masa netto: 140 g Jednostka sprzedaży: 1 opakowanie ","1 op. (140 g)",{"$f":"IF('Załącznik 1 - F.O. Części 1-2'!$V$46,VLOOKUP(C94,'Załącznik 1 - F.O. Części 1-2'!$C$43:$G$185,5,0),0)","v":0},34,0]
[null,74,"Ciasta JEŻYKI Classic, 140 g","Pyszne ciastka z orzechami laskowymi, karmelem i chrupkami ryżowymi, oblane mleczną czekoladą Masa netto: 140 g Jednostka sprzedaży: 1 opakowanie ","1 op. (140 g)",{"$f":"IF('Załącznik 1 - F.O. Części 1-2'!$V$46,VLOOKUP(C95,'Załącznik 1 - F.O. Części 1-2'!$C$43:$G$185,5,0),0)","v":0},421,0]
[null,75,"Wafle FAMILIJNE śmietankowo-kakaowe, 180 g","Pyszne wafle z nadzieniem Masa netto: 180 g Jednostka sprzedaży: 1 opakowanie ","1 op. (180 g)",{"$f":"IF('Załącznik 1 - F.O. Części 1-2'!$V$46,VLOOKUP(C96,'Załącznik 1 - F.O. Części 1-2'!$C$43:$G$185,5,0),0)","v":0},129,0]
[null,76,"Ciastka SAN ŁAKOTKI deserowe z cukrem, 168 g","Ciastka pieczone według tradycyjnego, 'domowego' przepisu Jednostka sprzedaży: 1 opakowanie ","1 op. (168 g)",{"$f":"IF('Załącznik 1 - F.O. Części 1-2'!$V$46,VLOOKUP(C97,'Załącznik 1 - F.O. Części 1-2'!$C$43:$G$185,5,0),0)","v":0},189,0]
[null,77,"Ciastka SAN ŁAKOTKI kakaowe, 168 g","Ciastka pieczone według tradycyjnego, 'domowego' przepisu Jednostka sprzedaży: 1 opakowanie ","1 op. (168 g)",{"$f":"IF('Załącznik 1 - F.O. Części 1-2'!$V$46,VLOOKUP(C98,'Załącznik 1 - F.O. Części 1-2'!$C$43:$G$185,5,0),0)","v":0},82,0]
[null,78,"Ciastka SAN ŁAKOTKI kokosowe, 168 g","Ciastka pieczone według tradycyjnego, 'domowego' przepisu Jednostka sprzedaży: 1 opakowanie ","1 op. (168 g)",{"$f":"IF('Załącznik 1 - F.O. Części 1-2'!$V$46,VLOOKUP(C99,'Załącznik 1 - F.O. Części 1-2'!$C$43:$G$185,5,0),0)","v":0},113,0]
[null,79,"Czekoladki MERCI, 400 g","Niepowtarzalna kolekcja pojedynczo pakowanych, wykwintnych czekoladek w ośmiu smakach Dzięki eleganckiemu opakowaniu doskonale nadaje się na prezent Jednostka sprzedaży: 1 opakowanie ","1 op.(400 g.)",{"$f":"IF('Załącznik 1 - F.O. Części 1-2'!$V$46,VLOOKUP(C100,'Załącznik 1 - F.O. Części 1-2'!$C$43:$G$185,5,0),0)","v":0},37,0]
[null,80,"Ciastka MILKA Chocograins, 126 g","Ciastka z płatkami owsianymi i mąką pszenną oblane czekoladą mleczną z alpejskiego mleka Masa netto: 126 g Jednostka sprzedaży: 1 opakowanie ","1 op.(126 g.)",{"$f":"IF('Załącznik 1 - F.O. Części 1-2'!$V$46,VLOOKUP(C101,'Załącznik 1 - F.O. Części 1-2'!$C$43:$G$185,5,0),0)","v":0},118,0]
[null,81,"Wafle MILKA ChocoWafer, 150 g","Okrągłe wafelki przełożone kremowym nadzieniem o smaku kakaowym, oblane mleczną czekoladą z alpejskiego mleka W opakowaniu: 6 pakowanych oddzielnie wafelków Masa netto: 150 g Jednostka sprzedaży: 1 opakowanie ","1 op.(150g.)",{"$f":"IF('Załącznik 1 - F.O. Części 1-2'!$V$46,VLOOKUP(C102,'Załącznik 1 - F.O. Części 1-2'!$C$43:$G$185,5,0),0)","v":0},142,0]
[null,82,"Praliny MILKA Moments Mix, 11 czekoladek","W opakowaniu znajduje się miks smaków: oreo, toffi z orzechem laskowym, orzech laskowy, karmelowo - migdałowe, alpejskie mleko.Jednostka sprzedaży: 1 opakowanie (1 kg). ","1 op. (11 sztuk)",{"$f":"IF('Załącznik 1 - F.O. Części 1-2'!$V$46,VLOOKUP(C103,'Załącznik 1 - F.O. Części 1-2'!$C$43:$G$185,5,0),0)","v":0},10,0]
[null,83,"Praliny MILKA Moments Toffee Wholenut, 11 czekoladek","praliny z firmy Milka zapewniają 16 wspaniałych chwil podczas konsumpcji. Każda z nich jest zapakowana osobno. Praliny wypełnione są pysznym, karmelowym nadzieniem, które świetnie współgra z ukrytym orzechem laskowym. Użyta przez producenta, najwyższej jakości czekolada została wykonana z mleka alpejskiego.Jednostka sprzedaży: 1 opakowanie (16 x 97 g). ","1 op. (11 sztuk)",{"$f":"IF('Załącznik 1 - F.O. Części 1-2'!$V$46,VLOOKUP(C104,'Załącznik 1 - F.O. Części 1-2'!$C$43:$G$185,5,0),0)","v":0},77,0]
[null,84,"Ciastka MILKA Pieguski, czekolada i orzechy, 135 g","Kruche ciasteczka z kawałkami czekolady mlecznej z mleka alpejskiego oraz z orzechami Jednostka sprzedaży: 1 opakowanie ","1 op. (135 g)",{"$f":"IF('Załącznik 1 - F.O. Części 1-2'!$V$46,VLOOKUP(C105,'Załącznik 1 - F.O. Części 1-2'!$C$43:$G$185,5,0),0)","v":0},135,0]
[null,85,"Czekoladki MILKA Singles, 32 czekoladki pakowane osobno","Mieszanka czekoladek mlecznych z alpejskiego mleka. W skład mieszanki wchodzą: czekoladki mleczne, mleczne z orzechami laskowymi, mleczne z nadzieniem kakaowym, mleczne z nadzieniem truskawkowym. W opakowaniu: 32 pojedynczo zapakowane czekoladk"," 1 op. (32 szt.)",{"$f":"IF('Załącznik 1 - F.O. Części 1-2'!$V$46,VLOOKUP(C106,'Załącznik 1 - F.O. Części 1-2'!$C$43:$G$185,5,0),0)","v":0},54,0]
[null,86,"Czekoladki NESPRESSO blond, 200 g","Czekoladki NESPRESSO blond, 200 g Opakowanie zawiera 40 pojedynczo pakowanych czekoladek. Jednostka sprzedaży: 1 opakowanie (200 g)","1 op ( 200 g.)",{"$f":"IF('Załącznik 1 - F.O. Części 1-2'!$V$46,VLOOKUP(C107,'Załącznik 1 - F.O. Części 1-2'!$C$43:$G$185,5,0),0)","v":0},16,0]
[null,87,"Czekoladki NESPRESSO mleczne, 200 g","Klasyczne czekoladki mleczne, które zadowolą każdego miłośnika czekolady. Czekoladki mleczne Nespresso zawierają minimum 41% kakao. Opakowanie zawiera 40 pojedynczo pakowanych czekoladek. Jednostka sprzedaży: 1 opakowanie (200 g)","1 op  ( 200 g.)",{"$f":"IF('Załącznik 1 - F.O. Części 1-2'!$V$46,VLOOKUP(C108,'Załącznik 1 - F.O. Części 1-2'!$C$43:$G$185,5,0),0)","v":0},28,0]
[null,88,"Cukierki Pastylka miętowa WAWEL, 1 kg","Pastylka miętowa w deserowej czekoladzie w oryginalnym okrągłym kształcie. Produkt bez dodatku substancji konserwujących i barwników. Opakowanie w kolorze zielonym– subtelne połączenie wyśmienitej czekolady deserowej z orzeźwiającą miętą. Opakowanie 1 kg.","1 op. (1 kg)",{"$f":"IF('Załącznik 1 - F.O. Części 1-2'!$V$46,VLOOKUP(C109,'Załącznik 1 - F.O. Części 1-2'!$C$43:$G$185,5,0),0)","v":0},70,0]
[null,89,"Cukierki Śliwka Nałęczowska SOLIDARNOŚĆ, 1 kg","Śliwka kandyzowana w masie kakaowej w czekoladzie. Opakowanie 1 kg.","1 op. (1 kg)",{"$f":"IF('Załącznik 1 - F.O. Części 1-2'!$V$46,VLOOKUP(C110,'Załącznik 1 - F.O. Części 1-2'!$C$43:$G$185,5,0),0)","v":0},183,0]
[null,90,"Ciastka TAGO korzenne, 125 ciasteczek po 4,8 g","Wyśmienite ciasteczka z przyprawami korzennymi: cynamonem, imbirem, goździkami i kardamonem. W opakowaniu 125 pojedynczo pakowanych ciasteczek","1 op. (125 szt.)",{"$f":"IF('Załącznik 1 - F.O. Części 1-2'!$V$46,VLOOKUP(C111,'Załącznik 1 - F.O. Części 1-2'!$C$43:$G$185,5,0),0)","v":0},70,0]
[null,91,"Ciastka TAGO Owsiane de Lux, 210 g","Doskonałe owsiane ciasteczka w wygodnym opakowaniu Masa netto: 210 g Jednostka sprzedaży: 1 opakowanie ","1 op. (210 g)",{"$f":"IF('Załącznik 1 - F.O. Części 1-2'!$V$46,VLOOKUP(C112,'Załącznik 1 - F.O. Części 1-2'!$C$43:$G$185,5,0),0)","v":0},55,0]
[null,92,"Francuskie precle z masłem TAGO, 158 g","Delikatne i puszyste ciasteczka z masłem 25% zawartość masła Jednostka sprzedaży: 1 opakowanie (158 g) ","1 op. ( 158 g)",{"$f":"IF('Załącznik 1 - F.O. Części 1-2'!$V$46,VLOOKUP(C113,'Załącznik 1 - F.O. Części 1-2'!$C$43:$G$185,5,0),0)","v":0},34,0]
[null,93,"Cukierki WAWEL Michałki Klasyczne 1 kg","Michałki klasyczne – cukierek orzechowo-kakaowy w czekoladzie, opakowanie 300 g","1 op. (1 kg)",{"$f":"IF('Załącznik 1 - F.O. Części 1-2'!$V$46,VLOOKUP(C114,'Załącznik 1 - F.O. Części 1-2'!$C$43:$G$185,5,0),0)","v":0},172,0]
[null,94,"Cukierki WAWEL Michałki Klasyczne 300 g","Michałki klasyczne – cukierek orzechowo-kakaowy w czekoladzie, opakowanie 300 g","1 op. (300 g)",{"$f":"IF('Załącznik 1 - F.O. Części 1-2'!$V$46,VLOOKUP(C115,'Załącznik 1 - F.O. Części 1-2'!$C$43:$G$185,5,0),0)","v":0},43,0]
[null,95,"Cukierki Mieszanka krakowska WAWEL, 1 kg","Mieszanka Krakowska – owocowe galaretki w czekoladzie w 4 smakach(dojrzałej pomarańczy, orzeźwiającej cytryny, aromatycznej maliny i egzotycznego ananasa)","1 op. (1 kg)",{"$f":"IF('Załącznik 1 - F.O. Części 1-2'!$V$46,VLOOKUP(C116,'Załącznik 1 - F.O. Części 1-2'!$C$43:$G$185,5,0),0)","v":0},201,0]
[null,96,"Cukierki WAWEL Trufle","Trufle w czekoladzie – klasyczny cukierek kakaowy z aromatem rumowym. Opakowanie 1 kg.","1 op. (1 kg)",{"$f":"IF('Załącznik 1 - F.O. Części 1-2'!$V$46,VLOOKUP(C117,'Załącznik 1 - F.O. Części 1-2'!$C$43:$G$185,5,0),0)","v":0},444,0]
[null,97,"Ciastka AMERYKANKI, klasyczne, 125 g","Kruche ciastka z kawałkami ciemnej czekolady Masa netto: 126 g Jednostka sprzedaży: 1 opakowanie ","1 op. (125 g)",{"$f":"IF('Załącznik 1 - F.O. Części 1-2'!$V$46,VLOOKUP(C118,'Załącznik 1 - F.O. Części 1-2'!$C$43:$G$185,5,0),0)","v":0},27,0]
[null,98,"Cukierki MIESZANKA WEDLOWSKA Classic, 3 kg w formie dyspensera","Mieszanka cukierków czekoladowych Doskonały dodatek do kawy w bardzo poręcznym i eleganckim opakowaniu Cukierki można podawać bezpośrednio z opakowania zaprojektowanego w formie specjalnego dyspensera Masa netto: 3 kg Jednostka sprzedaży: 1 opakowanie ","1 op. (3 kg)",{"$f":"IF('Załącznik 1 - F.O. Części 1-2'!$V$46,VLOOKUP(C119,'Załącznik 1 - F.O. Części 1-2'!$C$43:$G$185,5,0),0)","v":0},595,0]
[null,99,"Ptasie mleczko WEDEL, waniliowe, 340 g","Wyjątkowo lekka i puszysta pianka pokryta kruchą warstwą wedlowskiej czekolady.Jednostka sprzedaży: 1 opakowanie 340 g","1 op.( 340 g.)",{"$f":"IF('Załącznik 1 - F.O. Części 1-2'!$V$46,VLOOKUP(C120,'Załącznik 1 - F.O. Części 1-2'!$C$43:$G$185,5,0),0)","v":0},77,0]
[null,100,"Wafle Torcikowe WEDEL MINI orzechowe, 160 g","Małe, lekkie i chrupiące wafelki Jednostka sprzedaży: 1 opakowanie (160 g) ","1 op. ( 160 g)",{"$f":"IF('Załącznik 1 - F.O. Części 1-2'!$V$46,VLOOKUP(C121,'Załącznik 1 - F.O. Części 1-2'!$C$43:$G$185,5,0),0)","v":0},43,0]
[null,101,"Migdały lekko solone BAKALLAND, 90 g","Migdały łuskane prażone 99%, sól. Opakowanie w kolorze żółtym - struna, w którą wyposażone jest opakowanie umożliwia wielorazowe otwieranie i szczelne zamykanie. Migdały lekko solone nie zawierają dodatku tłuszczu – prażone są w piecu. Bogactwo witaminy E, potasu i magnezu, opakowanie 90 g","1 op. (90 g)",{"$f":"IF('Załącznik 1 - F.O. Części 1-2'!$V$46,VLOOKUP(C122,'Załącznik 1 - F.O. Części 1-2'!$C$43:$G$185,5,0),0)","v":0},48,0]
[null,102,"Orzechy laskowe BAKALLAND, 300 g","Opakowanie w kolorze żółtym - struna, w którą wyposażone jest opakowanie umożliwia wielorazowe otwieranie i szczelne zamykanie; orzechy laskowe.","1 op. (300 g)",{"$f":"IF('Załącznik 1 - F.O. Części 1-2'!$V$46,VLOOKUP(C123,'Załącznik 1 - F.O. Części 1-2'!$C$43:$G$185,5,0),0)","v":0},167,0]
[null,103,"Orzechy nerkowca  solone BAKALLAND, 70 g","Orzechy nerkowca Bakalland dorodne, delikatne orzechy o nienagannej skórce i wysokiej jakości o której świadczy ich chrupkość oraz charakterystyczny, nieco maślany smak. Solone opakowanie 70 g.","1 op. (70 g)",{"$f":"IF('Załącznik 1 - F.O. Części 1-2'!$V$46,VLOOKUP(C124,'Załącznik 1 - F.O. Części 1-2'!$C$43:$G$185,5,0),0)","v":0},174,0]
[null,104,"Orzechy włoskie BAKALLAND, 200 g","Orzech włoski łuskany. Opakowanie 200 g","1 op. (200 g)",{"$f":"IF('Załącznik 1 - F.O. Części 1-2'!$V$46,VLOOKUP(C125,'Załącznik 1 - F.O. Części 1-2'!$C$43:$G$185,5,0),0)","v":0},140,0]
[null,105,"Paluszki LAJKONIK solone, 200 g","Paluszki słone w opakowaniu 200 g Jednostka sprzedaży: 1 opakowanie ","1 op. (200 g)",{"$f":"IF('Załącznik 1 - F.O. Części 1-2'!$V$46,VLOOKUP(C126,'Załącznik 1 - F.O. Części 1-2'!$C$43:$G$185,5,0),0)","v":0},865,0]
[null,106,"Nektar multiwitamina CAPPY, 12 butelek x 0,33 l","Doskonały nektar owocowy W butelkach PET 0,33 l Jednostka sprzedaży: 1 zgrzewka (12 butelek)","1 op. (12 butelek)",{"$f":"IF('Załącznik 1 - F.O. Części 1-2'!$V$46,VLOOKUP(C127,'Załącznik 1 - F.O. Części 1-2'!$C$43:$G$185,5,0),0)","v":0},32,0]
[null,107,"Sok pomarańczowy CAPPY, 12 butelek x 0,33 l","Doskonały sok owocowy W butelkach PET 0,33 l Jednostka sprzedaży: 1 zgrzewka (12 butelek)","1 op. (12 butelek)",{"$f":"IF('Załącznik 1 - F.O. Części 1-2'!$V$46,VLOOKUP(C128,'Załącznik 1 - F.O. Części 1-2'!$C$43:$G$185,5,0),0)","v":0},27,0]
[null,108,"Zagęszczony sok cytrynowy CHAMPION, 10 kubeczków x 7,5 g","100% sok z cytryny z naturalnego zagęszczonego, naturalnie mętnego soku cytrynowego Bez konserwantów i sztucznych barwników Jednostka sprzedaży: 1 opakowanie (10 x 7,5 g) ","1 op. (10 kubeczków)",{"$f":"IF('Załącznik 1 - F.O. Części 1-2'!$V$46,VLOOKUP(C129,'Załącznik 1 - F.O. Części 1-2'!$C$43:$G$185,5,0),0)","v":0},43,0]
[null,109,"Napój gazowany COCA-COLA, zgrzewka 18 butelek x 0,5 l","Napókj gazowany.Bez konserwantów, w butelce plastikowej PET.Jednostka sprzedaży: 1 zgrzewka (18 butelek)","1 op. (18 butelek)",{"$f":"IF('Załącznik 1 - F.O. Części 1-2'!$V$46,VLOOKUP(C130,'Załącznik 1 - F.O. Części 1-2'!$C$43:$G$185,5,0),0)","v":0},201,0]
[null,110,"Napój gazowany COCA-COLA, 24 puszki x 0,33 l","Lider wśród napojów gazowanych Bez konserwantów dostępny w puszce Jednostka sprzedaży: 1 zgrzewka (24 puszki 0,33 l)","1 op. (24 puszki 0,33 l)",{"$f":"IF('Załącznik 1 - F.O. Części 1-2'!$V$46,VLOOKUP(C131,'Załącznik 1 - F.O. Części 1-2'!$C$43:$G$185,5,0),0)","v":0},18,0]
[null,111,"Napój gazowany COCA-COLA Zero, 12 butelek x 0,5 l","Lider wśród napojów gazowanych Bez konserwantów, dostępny w plastikowej butelce Jednostka sprzedaży: 1 zgrzewka (12 butelek 0,5 l)","1 op. (12 butelek)",{"$f":"IF('Załącznik 1 - F.O. Części 1-2'!$V$46,VLOOKUP(C132,'Załącznik 1 - F.O. Części 1-2'!$C$43:$G$185,5,0),0)","v":0},5,0]
[null,112,"Nektar czarna porzeczka FORTUNA, 15 butelek x 0,3 l","Nektar w butelce szklanej 0,3 l Opakowanie 15 butelek","1 op. (15 butelek)",{"$f":"IF('Załącznik 1 - F.O. Części 1-2'!$V$46,VLOOKUP(C133,'Załącznik 1 - F.O. Części 1-2'!$C$43:$G$185,5,0),0)","v":0},54,0]
[null,113,"Sok multiwitamina FORTUNA, 15 butelek x 0,3 l","Sok multiwitamina FORTUNA, 15 butelek x 0,3 lSok w butelce szklanej 0,3 l Opakowanie 15 butelek","1 op. (15 butelek)",{"$f":"IF('Załącznik 1 - F.O. Części 1-2'!$V$46,VLOOKUP(C134,'Załącznik 1 - F.O. Części 1-2'!$C$43:$G$185,5,0),0)","v":0},210,0]
[null,114,"Sok pomarańczowy FORTUNA, 15 butelek x 0,3 l","Sok w butelce szklanej 0,3 l Opakowanie 15 butelek","1 op. (15 butelek)",{"$f":"IF('Załącznik 1 - F.O. Części 1-2'!$V$46,VLOOKUP(C135,'Załącznik 1 - F.O. Części 1-2'!$C$43:$G$185,5,0),0)","v":0},55,0]
[null,115,"Sok pomidorowy FORTUNA, 15 butelek x 0,3 l","Sok pomidorowy w szklanej butelce 0,3 l Jednostka sprzedaży: 1 zgrzewka (15 butelek)","1 op. (15 butelek)",{"$f":"IF('Załącznik 1 - F.O. Części 1-2'!$V$46,VLOOKUP(C136,'Załącznik 1 - F.O. Części 1-2'!$C$43:$G$185,5,0),0)","v":0},21,0]
[null,116,"Nektar czarna porzeczka TARCZYN, 15 butelek x 0,3 l","Esencjonalny napój w szklanych butelkach z nakrętką z ciekawostkami Jednostka sprzedaży: 1 zgrzewka (15 butelek)","1 op. (15 butelek)",{"$f":"IF('Załącznik 1 - F.O. Części 1-2'!$V$46,VLOOKUP(C137,'Załącznik 1 - F.O. Części 1-2'!$C$43:$G$185,5,0),0)","v":0},18,0]
[null,117,"Nektar czerwony grejpfrut TARCZYN, zgrzewka 15 butelek x 0,3 l","Nektar czerwony grejpfrut TARCZYN, zgrzewka 15 butelek szklanych o pojemnosci 300 ml","1 op. (15 butelek)",{"$f":"IF('Załącznik 1 - F.O. Części 1-2'!$V$46,VLOOKUP(C138,'Załącznik 1 - F.O. Części 1-2'!$C$43:$G$185,5,0),0)","v":0},131,0]
[null,118,"Sok jabłkowy TARCZYN, 15 butelek x 0,3 l","Esencjonalny sok w szklanych butelkach z nakrętką z ciekawostkami Jednostka sprzedaży: 1 zgrzewka (15 butelek)","1 op. (15 butelek)",{"$f":"IF('Załącznik 1 - F.O. Części 1-2'!$V$46,VLOOKUP(C139,'Załącznik 1 - F.O. Części 1-2'!$C$43:$G$185,5,0),0)","v":0},320,0]
[null,119,"Nektar pomarańczowy TARCZYN, 15 butelek x 0,25 l","Esencjonalny nektar w szklanych butelkach z nakrętką z ciekawostkami Jednostka sprzedaży: 1 zgrzewka (15 butelek)","1 op. (15 butelek)",{"$f":"IF('Załącznik 1 - F.O. Części 1-2'!$V$46,VLOOKUP(C140,'Załącznik 1 - F.O. Części 1-2'!$C$43:$G$185,5,0),0)","v":0},86,0]
[null,120,"Sok pomidorowy TARCZYN, zgrzewka 15 butelek x 0,3 l","Sok pomidorowy TARCZYN, zgrzewka 15 butelek  szklanych o pojemności  300ml","1 op. (15 butelek)",{"$f":"IF('Załącznik 1 - F.O. Części 1-2'!$V$46,VLOOKUP(C141,'Załącznik 1 - F.O. Części 1-2'!$C$43:$G$185,5,0),0)","v":0},291,0]
[null,121,"Sok TYMBARK jabłko 100%, 12 butelek x 300 ml","Sok TYMBARK jabłko 100%, 12 butelek x 300 ml Sok został stworzony w 100% ze starannie wyselekcjonowanych gatunków owoców. ","1 op. (12 butelek)",{"$f":"IF('Załącznik 1 - F.O. Części 1-2'!$V$46,VLOOKUP(C142,'Załącznik 1 - F.O. Części 1-2'!$C$43:$G$185,5,0),0)","v":0},136,0]
[null,122,"Sok TYMBARK pomarańcza 100%, 12 butelek x 300 ml","Sok TYMBARK pomarańcza 100%, 12 butelek x 300 ml Sok został stworzony w 100% ze starannie wyselekcjonowanych gatunków owoców. ","1 op. (12 butelek)",{"$f":"IF('Załącznik 1 - F.O. Części 1-2'!$V$46,VLOOKUP(C143,'Załącznik 1 - F.O. Części 1-2'!$C$43:$G$185,5,0),0)","v":0},18,0]
[null,123,"Sok TYMBARK pomidor 100%, 12 butelek x 250 ml","Sok TYMBARK pomidor 100%, 12 butelek x 250 ml Sok został stworzony w 100% ze starannie wyselekcjonowanych gatunków owoców. ","1 op. (12 butelek)",{"$f":"IF('Załącznik 1 - F.O. Części 1-2'!$V$46,VLOOKUP(C144,'Załącznik 1 - F.O. Części 1-2'!$C$43:$G$185,5,0),0)","v":0},18,0]
[null,124,"Sok TYMBARK Vitamini banan, marchewka, jabłko, 12 butelek x 300 ml","Sok TYMBARK Vitamini banan, marchewka, jabłko, 12 butelek x 300 ml Vitamini ma smak bananowo – jabłkowo - marchewkowy ","1 op. (12 butelek)",{"$f":"IF('Załącznik 1 - F.O. Części 1-2'!$V$46,VLOOKUP(C145,'Załącznik 1 - F.O. Części 1-2'!$C$43:$G$185,5,0),0)","v":0},7,0]
[null,125,"Woda mineralna CISOWIANKA lekko gazowana, zgrzewka 12 butelek x 0,5 l","Naturalnie niskosodowa woda mineralna, odpowiednia dla diety ubogiej w sód Średnia mineralizacja i subtelny smak sprawiają, że Cisowianka jest idealną wodą na każdą okazję Jednostka sprzedaży: 1 zgrzewka (12 sztuk) ","1 op. (12 butelek)",{"$f":"IF('Załącznik 1 - F.O. Części 1-2'!$V$46,VLOOKUP(C146,'Załącznik 1 - F.O. Części 1-2'!$C$43:$G$185,5,0),0)","v":0},298,0]
[null,126,"Woda mineralna CISOWIANKA Perlage gazowana, zgrzewka 24 butelki x 300 ml","Woda musująca w szklanej butelce Subtelnie orzeźwiająca Zamknięta w eleganckiej szklanej butelce Pasuje zarówno do kameralnego spotkania służbowego, jak i dużej konferencji Nie zakłóca smaku dań Niskosodowa Pojemność butelki: 0,3 l Jednostka sprzedaży: 1 karton (24 butelki)","1 op. (24 butelki)",{"$f":"IF('Załącznik 1 - F.O. Części 1-2'!$V$46,VLOOKUP(C147,'Załącznik 1 - F.O. Części 1-2'!$C$43:$G$185,5,0),0)","v":0},124,0]
[null,127,"Woda mineralna CISOWIANKA gazowana, zgrzewka 6 butelek x 1,5 l","Naturalnie niskosodowa woda mineralna, odpowiednia dla diety ubogiej w sód Średnia mineralizacja i subtelny smak sprawiają, że Cisowianka jest idealną wodą na każdą okazję Jednostka sprzedaży: 1 zgrzewka (6 butelek) ","1 op. (6 butelek)",{"$f":"IF('Załącznik 1 - F.O. Części 1-2'!$V$46,VLOOKUP(C148,'Załącznik 1 - F.O. Części 1-2'!$C$43:$G$185,5,0),0)","v":0},10,0]
[null,128,"Woda mineralna CISOWIANKA niegazowana szklane butelki 24 x 300 ml","Woda mineralna CISOWIANKA niegazowana Subtelnie orzeźwiająca Zamknięta w eleganckiej szklanej butelce Niskosodowa, średniozmineralizowana","1 op. (24 butelki)",{"$f":"IF('Załącznik 1 - F.O. Części 1-2'!$V$46,VLOOKUP(C149,'Załącznik 1 - F.O. Części 1-2'!$C$43:$G$185,5,0),0)","v":0},72,0]
[null,129,"Woda mineralna CISOWIANKA niegazowana, zgrzewka 12 butelek x 0,5 l","Naturalnie niskosodowa woda mineralna, odpowiednia dla diety ubogiej w sód Średnia mineralizacja i subtelny smak sprawiają, że Cisowianka jest idealną wodą na każdą okazję Jednostka sprzedaży: 1 zgrzewka (12 butelek) ","1 op. (12 butelek)",{"$f":"IF('Załącznik 1 - F.O. Części 1-2'!$V$46,VLOOKUP(C150,'Załącznik 1 - F.O. Części 1-2'!$C$43:$G$185,5,0),0)","v":0},2651,0]
[null,130,"Woda mineralna CISOWIANKA niegazowana, zgrzewka 6 butelek x 1,5 l","Naturalnie niskosodowa woda mineralna, odpowiednia dla diety ubogiej w sód Średnia mineralizacja i subtelny smak sprawiają, że Cisowianka jest idealną wodą na każdą okazję Jednostka sprzedaży: 1 zgrzewka (6 butelek) ","1 op. (6 butelek)",{"$f":"IF('Załącznik 1 - F.O. Części 1-2'!$V$46,VLOOKUP(C151,'Załącznik 1 - F.O. Części 1-2'!$C$43:$G$185,5,0),0)","v":0},3111,{"$f":"G151*F151","v":0}]
[null,131,"Woda mineralna CISOWIANKA Sport niegazowana, zgrzewka 8 butelek x 0,7 l","Naturalnie niskosodowa woda mineralna odpowiednia dla diety ubogiej w sód Średnio zmineralizowana W wygodnej butelce z dziubkiem Jednostka sprzedaży: 1 zgrzewka (8 butelek) ","1 op. (8 butelek)",{"$f":"IF('Załącznik 1 - F.O. Części 1-2'!$V$46,VLOOKUP(C152,'Załącznik 1 - F.O. Części 1-2'!$C$43:$G$185,5,0),0)","v":0},1211,0]
[null,132,"Woda mineralna KINGA PIENIŃSKA gazowana zgrzewka 12 butelek x 0,5 l","Naturalna woda mineralna czerpana w otulinie Pienińskiego Parku Narodowego. Niskosodowa o średniej mineralizacji","1 op. (12 butelek)",{"$f":"IF('Załącznik 1 - F.O. Części 1-2'!$V$46,VLOOKUP(C153,'Załącznik 1 - F.O. Części 1-2'!$C$43:$G$185,5,0),0)","v":0},5,0]
[null,133,"Woda mineralna KINGA PIENIŃSKA niegazowana, zgrzewka 12 butelek x 0,5 l","Naturalna woda mineralna czerpana w otulinie Pienińskiego Parku Narodowego Niskosodowa o średniej mineralizacji Górska, orzeźwiająca, z podziemnych źródeł Pienin Polecana przez sommelierów i szefów kuchni Jednostka sprzedaży: 1 zgrzewka (12 butelek)","1 op. (12 butelek)",{"$f":"IF('Załącznik 1 - F.O. Części 1-2'!$V$46,VLOOKUP(C154,'Załącznik 1 - F.O. Części 1-2'!$C$43:$G$185,5,0),0)","v":0},12,0]
[null,134,"Woda mineralna KROPLA BESKIDU gazowana, zgrzewka 12 butelek x 0,5 l","Naturalna woda mineralna z górskich źródeł Beskidu Sądeckiego Niskozmineralizowana - do spożywania bez ograniczeń, dla osób w każdym wieku Jednostka sprzedaży: 1 zgrzewka (12 butelek) ","1 op. (12 butelek)",{"$f":"IF('Załącznik 1 - F.O. Części 1-2'!$V$46,VLOOKUP(C155,'Załącznik 1 - F.O. Części 1-2'!$C$43:$G$185,5,0),0)","v":0},21,0]
[null,135,"Woda mineralna KROPLA BESKIDU gazowana, zgrzewka 6 butelek x 1,5 l","Naturalna woda mineralna z górskich źródeł Beskidu Sądeckiego Niskozmineralizowana - do spożywania bez ograniczeń, dla osób w każdym wieku Jednostka sprzedaży: 1 zgrzewka (6 butelek)","1 op. (6 butelek)",{"$f":"IF('Załącznik 1 - F.O. Części 1-2'!$V$46,VLOOKUP(C156,'Załącznik 1 - F.O. Części 1-2'!$C$43:$G$185,5,0),0)","v":0},5,0]
[null,136,"Woda mineralna KROPLA BESKIDU niegazowana, zgrzewka 12 butelek x 0,5 l","Naturalna woda mineralna z górskich źródeł Beskidu Sądeckiego Niskozmineralizowana - do spożywania bez ograniczeń, dla osób w każdym wieku Jednostka sprzedaży: 1 zgrzewka (12 butelek) ","1 op. (12 butelek)",{"$f":"IF('Załącznik 1 - F.O. Części 1-2'!$V$46,VLOOKUP(C157,'Załącznik 1 - F.O. Części 1-2'!$C$43:$G$185,5,0),0)","v":0},34,0]
[null,137,"Woda mineralna NAŁĘCZOWIANKA niegazowana, zgrzewka 12 butelek x 0,5 l","Naturalna woda mineralna wydobywana z krystalicznie czystego, doskonale chronionego przez naturę źródła w sercu Nałęczowa Posiada pozytywną opinię Instytutu Matki i Dziecka Średniozmineralizowana, niskosodowa Jednostka sprzedaży: 1 zgrzewka (12 butelek) ","1 op. (12 butelek)",{"$f":"IF('Załącznik 1 - F.O. Części 1-2'!$V$46,VLOOKUP(C158,'Załącznik 1 - F.O. Części 1-2'!$C$43:$G$185,5,0),0)","v":0},7,0]
[null,138,"Woda mineralna NAŁĘCZOWIANKA niegazowana, zgrzewka 6 butelek x 1,5 l","Naturalna woda mineralna wydobywana z krystalicznie czystego, doskonale chronionego przez naturę źródła w sercu Nałęczowa Posiada pozytywną opinię Instytutu Matki i Dziecka Średniozmineralizowana, niskosodowa Jednostka sprzedaży: 1 zgrzewka (6 butelek) ","1 op. (6 butelek)",{"$f":"IF('Załącznik 1 - F.O. Części 1-2'!$V$46,VLOOKUP(C159,'Załącznik 1 - F.O. Części 1-2'!$C$43:$G$185,5,0),0)","v":0},5,0]
[null,139,"Woda źródlana ŻYWIOŁ od ŻYWIEC ZDRÓJ gazowana, 24 butelki x 0,5 l","Niskozmineralizowana woda żródlana najwyższej jakości Jednostka sprzedaży: 1 zgrzewka (24 butelki x 0,5 l) ","1 op. (24 butelki)",{"$f":"IF('Załącznik 1 - F.O. Części 1-2'!$V$46,VLOOKUP(C160,'Załącznik 1 - F.O. Części 1-2'!$C$43:$G$185,5,0),0)","v":0},81,0]
[null,140,"Woda źródlana ŻYWIOŁ od ŻYWIEC ZDRÓJ gazowana, zgrzewka 6 butelek x 1,5 l","Niskozmineralizowana woda żródlana najwyższej jakości Jednostka sprzedaży: 1 zgrzewka (6 butelek) ","1 op. ( 6 butelek)",{"$f":"IF('Załącznik 1 - F.O. Części 1-2'!$V$46,VLOOKUP(C161,'Załącznik 1 - F.O. Części 1-2'!$C$43:$G$185,5,0),0)","v":0},86,0]
[null,141,"Woda źródlana ŻYWIEC ZDRÓJ niegazowana, 24 butelki x 0,5 l","Niskozmineralizowana woda żródlana najwyższej jakości Niskosodowa Rekomendowana przez Instytut Matki i Dziecka w żywieniu niemowląt i dzieci Jednostka sprzedaży: 1 zgrzewka (24 butelki x 0,5 l) ","1 op. (24 butelki)",{"$f":"IF('Załącznik 1 - F.O. Części 1-2'!$V$46,VLOOKUP(C162,'Załącznik 1 - F.O. Części 1-2'!$C$43:$G$185,5,0),0)","v":0},6708,0]
[null,142,"Woda źródlana ŻYWIEC ZDRÓJ niegazowana, zgrzewka 6 butelek x 1,5 l","Niskozmineralizowana woda żródlana najwyższej jakości Niskosodowa Rekomendowana przez Instytut Matki i Dziecka w żywieniu niemowląt i dzieci Jednostka sprzedaży: 1 zgrzewka (6 butelek) ","1 op. (6 butelek)",{"$f":"IF('Załącznik 1 - F.O. Części 1-2'!$V$46,VLOOKUP(C163,'Załącznik 1 - F.O. Części 1-2'!$C$43:$G$185,5,0),0)","v":0},5,0]
[null,null,null,null,null,null,"Łączna wartość dla Części 1",{"$f":"SUM(H21:H163)","v":0}]
[]
[]
[]
[]
[null,null,{"$f":"'Załącznik 1 - F.O. Części 1-2'!B188","v":"00:00:00"}]
[null,null,"miejscowość i data",null,null,"Pieczęć imienna i podpis przedstawiciela(i) Wykonawcy"]

{"sheet":"Załącznik 3 dla Części 2","index":4,"n_rows":170,"n_cols":8,"rows_kept":170,"cut":false,"hidden":false,"merged":[[169,5,169,7],[18,1,18,2],[168,2,168,3],[168,4,168,7],[2,1,2,7],[4,1,4,7],[8,1,8,7],[11,1,11,7],[14,1,14,7],[16,1,16,7]]}
[null,"Oznaczenie sprawy:  1200/BW00/ZL/KZ/2024/0000073411"]
[]
[null,"ZAŁĄCZNIK NR 3 - FORMULARZ CENOWY DLA CZĘŚCI 2 - DOSTAWA ARTYKUŁÓW SPOŻYWCZYCH:  ZIELONA GÓRA;  GORZÓW WLKP. + WOJ. LUBUSKIE; SZCZECIN + WOJ. ZACHODNIOPOMORSKIE."]
[]
[null,{"$f":"'Załącznik 1 - F.O. Części 1-2'!C5","v":0}]
[null,null,"(pieczęć wykonawcy)"]
[]
[null,"Ja, niżej podpisany (My niżej podpisani):"]
[null,{"$f":"'Załącznik 1 - F.O. Części 1-2'!C9","v":0}]
[]
[null,"działając w imieniu i na rzecz:"]
[null,{"$f":"'Załącznik 1 - F.O. Części 1-2'!C12","v":0}]
[]
[null,"Składam(y) ofertę na wykonanie zamówienia, którego przedmiotem jest:"]
[null,"Dostawa artykułów spożywczych dla Enea Operator Sp. z o.o."]
[]
[null,"Część 2 - Dostawa artykułów spożywczych: Zielona Góra; Gorzów Wlkp. + woj. lubuskie; Szczecin + woj. Zachodniopomorskie"]
[]
[null,"ŁĄCZNA CENA NETTO OFERTY DLA CZĘŚCI 2:",null,{"$f":"SUM(H22:H163)","v":0}]
[]
[null,"LP","Nazwa produktu","Opis szczegółowy","Jednostka ","cena jednostkowa netto","Szacowana Ilość","łączna wartość netto"]
[null,1,"Cukier biały DIAMANT w kostkach, 1 kg","Cukier biały w kostkach Jednostka sprzedaży: 1 opakowanie (1 kg) ","1 op. ( 1 kg.)",{"$f":"IF('Załącznik 1 - F.O. Części 1-2'!$V$47,VLOOKUP(C22,'Załącznik 1 - F.O. Części 1-2'!$C$43:$G$185,5,0),0)","v":0},82,{"$f":"G22*F22","v":0}]
[null,2,"Cukier biały DIAMANT, saszetki 100 sztuk x 5 g","Cukier biały w saszetkach Idealny dla biur przy organizowaniu spotkań, konferencji, szkoleń Jednostka sprzedaży: 1 opakowanie (100 saszetek po 5 g) ","1 op. (100 sztuk)",{"$f":"IF('Załącznik 1 - F.O. Części 1-2'!$V$47,VLOOKUP(C23,'Załącznik 1 - F.O. Części 1-2'!$C$43:$G$185,5,0),0)","v":0},540,{"$f":"G23*F23","v":0}]
[null,3,"Cukier trzcinowy DIAMANT Dry Demerara, sypki, 500 g","Elegancki cukier trzcinowy o bursztynowym kolorze i miodowo-karmelowym posmaku Jednostka sprzedaży: 1 opakowanie (500 g) ","1 op. ( 500 g)",{"$f":"IF('Załącznik 1 - F.O. Części 1-2'!$V$47,VLOOKUP(C24,'Załącznik 1 - F.O. Części 1-2'!$C$43:$G$185,5,0),0)","v":0},129,0]
[null,4,"Cukier biały DIAMANT sypki, 1 kg","Cukier biały sypki Jednostka sprzedaży: 1 opakowanie (1 kg) ","1 op.( 1 kg.)",{"$f":"IF('Załącznik 1 - F.O. Części 1-2'!$V$47,VLOOKUP(C25,'Załącznik 1 - F.O. Części 1-2'!$C$43:$G$185,5,0),0)","v":0},115,0]
[null,5,"Herbata czarna AHMAD Earl Grey, 100 torebek","Najlepsze gatunki czarnej herbaty oraz bergamotka dają silny, energetyczny aromat i pełnię smaku Dodatek olejku z bergamoty nadaje jej orzeźwiający charakter i cytrusowy posmak W opakowaniu 100 torebek z zawieszką, 200 g netto Jednostka sprzedaży: 1 opakowanie ","1 op. (100 torebek)",{"$f":"IF('Załącznik 1 - F.O. Części 1-2'!$V$47,VLOOKUP(C26,'Załącznik 1 - F.O. Części 1-2'!$C$43:$G$185,5,0),0)","v":0},59,0]
[null,6,"Herbata czarna DILMAH Ceylon Gold, 100 torebek","Tradycyjna herbata czarna z wysokogórskich plantacji cejlońskich W opakowaniu: 100 torebek z zawieszką, 200 g netto Jednostka sprzedaży: 1 opakowanie ","1 op. (100 torebek)",{"$f":"IF('Załącznik 1 - F.O. Części 1-2'!$V$47,VLOOKUP(C27,'Załącznik 1 - F.O. Części 1-2'!$C$43:$G$185,5,0),0)","v":0},12,0]
[null,7,"Herbata czarna liściasta DILMAH Earl Grey, 125 g","Czarna herbata Dilmah Earl Grey w formie sypkiej. Aromatyzowana olejkiem bergamoty, który dodaje naparowi wyrazistego charakteru i cytrusowego posmaku. Pochodzi z  plantacji na Sri Lance,. Jednostka sprzedaży: 1 opakowanie","1 op. ( 125 g)",{"$f":"IF('Załącznik 1 - F.O. Części 1-2'!$V$47,VLOOKUP(C28,'Załącznik 1 - F.O. Części 1-2'!$C$43:$G$185,5,0),0)","v":0},5,0]
[null,8,"Herbata miętowa HERBAPOL Breakfast, 20 kopert","Najwyższej jakości herbaty ekspresowe Dwukomorowe saszetki stopniowo uwalniają intensywny aromat naparu opartego na naturalnych składnikach. W opakowaniu: 20 torebek w kopertach","1 op.(  20 torebek)",{"$f":"IF('Załącznik 1 - F.O. Części 1-2'!$V$47,VLOOKUP(C29,'Załącznik 1 - F.O. Części 1-2'!$C$43:$G$185,5,0),0)","v":0},109,0]
[null,9,"Herbata owocowa HERBAPOL Herbaciany Ogród malinowa, 20 torebek","100% natury z dużych kawałków owoców W opakowaniu: 20 torebek Jednostka sprzedaży: 1 opakowanie ","1 op.(  20 torebek)",{"$f":"IF('Załącznik 1 - F.O. Części 1-2'!$V$47,VLOOKUP(C30,'Załącznik 1 - F.O. Części 1-2'!$C$43:$G$185,5,0),0)","v":0},45,0]
[null,10,"Herbata owocowa HERBAPOL Herbaciany Ogród, Prosto z lasu, 20 torebek","100% natury w dużych kawałkach owoców W opakowaniu: 20 torebek bez zawieszki","1 op.(  20 torebek)",{"$f":"IF('Załącznik 1 - F.O. Części 1-2'!$V$47,VLOOKUP(C31,'Załącznik 1 - F.O. Części 1-2'!$C$43:$G$185,5,0),0)","v":0},10,0]
[null,11,"Herbata zielona HERBAPOL, 20 torebek bez zawieszki","Aromatyczna zielona herbata W opakowaniu: 20 torebek bez zawieszki Jednostka sprzedaży: 1 opakowanie ","1 op.(  20 torebek)",{"$f":"IF('Załącznik 1 - F.O. Części 1-2'!$V$47,VLOOKUP(C32,'Załącznik 1 - F.O. Części 1-2'!$C$43:$G$185,5,0),0)","v":0},64,0]
[null,12,"Herbata zielona LIPTON  20 torebek piramidek","Kompozycja specjalnie wyselekcjonowanych liści herbaty zielonej. Przestrzeń w piramidce sprawia, że składniki herbaty mogą się rozwinąć podczas zaparzania i uwolnić doskonały smak i aromat. W opakowaniu: 20 torebek z zawieszką","1 op.(  20 torebek)",{"$f":"IF('Załącznik 1 - F.O. Części 1-2'!$V$47,VLOOKUP(C33,'Załącznik 1 - F.O. Części 1-2'!$C$43:$G$185,5,0),0)","v":0},1,0]
[null,13,"Harbata biała IRVING poziomkowa z mandarynką, 20 kopert","herbata biała, poziomka z mandarynką, 20 kopert.","1 op.(  20 torebek)",{"$f":"IF('Załącznik 1 - F.O. Części 1-2'!$V$47,VLOOKUP(C34,'Załącznik 1 - F.O. Części 1-2'!$C$43:$G$185,5,0),0)","v":0},88,0]
[null,14,"Herbata czarna LIPTON Earl Grey, 92 torebki","Mieszanka wysokiej jakości czarnych herbat z dodatkiem olejku bergamotki W opakowaniu 92 torebki z zawieszką Jednostka sprzedaży: 1 opakowanie ","1 op. (92 torebki)",{"$f":"IF('Załącznik 1 - F.O. Części 1-2'!$V$47,VLOOKUP(C35,'Załącznik 1 - F.O. Części 1-2'!$C$43:$G$185,5,0),0)","v":0},55,0]
[null,15,"Herbata ziołowa LIPTON Melisa z wiśnią, 20 torebek","herbatka ziołowa Lipton o smaku melisy oraz wiśni to idealny towarzysz każdej chwili relaksu. Smak soczystych wiśni doskonale współgra z melisą, której tradycyjnie przypisuje się właściwości ułatwiające zasypianie i odprężenie. W opakowaniu 20 torebek. ","1 op. (20 torebek)",{"$f":"IF('Załącznik 1 - F.O. Części 1-2'!$V$47,VLOOKUP(C36,'Załącznik 1 - F.O. Części 1-2'!$C$43:$G$185,5,0),0)","v":0},54,0]
[null,16,"Herbata czarna LIPTON cytrynowa z melisą, 20 torebek piramidek","Kompozycja specjalnie wyselekcjonowanych liści herbaty z aromatami owocowymi Przestrzeń w piramidce sprawia, że składniki herbaty mogą się rozwinąć podczas zaparzania i uwolnić doskonały smak i aromat W opakowaniu: 20 torebek z zawieszką Jednostka sprzedaży: 1 opakowanie ","1 op. (20 torebek)",{"$f":"IF('Załącznik 1 - F.O. Części 1-2'!$V$47,VLOOKUP(C37,'Załącznik 1 - F.O. Części 1-2'!$C$43:$G$185,5,0),0)","v":0},43,0]
[null,17,"Herbata owocowa LIPTON owoce leśne, 20 torebek piramidek","Kompozycja specjalnie wyselekcjonowanych, najmłodszych liści herbaty czarnej. Przestrzeń w piramidce sprawia, że składniki herbaty mogą się rozwinąć podczas zaparzania i uwolnić doskonały smak i aromat. W opakowaniu: 20 torebek z zawieszką","1 op. (20 torebek)",{"$f":"IF('Załącznik 1 - F.O. Części 1-2'!$V$47,VLOOKUP(C38,'Załącznik 1 - F.O. Części 1-2'!$C$43:$G$185,5,0),0)","v":0},10,0]
[null,18,"Herbata czarna LIPTON Yellow Label, 100 torebek","Czarna herbata w torebkach z zawieszką W opakowaniu: 100 torebek z zawieszką Jednostka sprzedaży: 1 opakowanie ","1 op. (100 torebek)",{"$f":"IF('Załącznik 1 - F.O. Części 1-2'!$V$47,VLOOKUP(C39,'Załącznik 1 - F.O. Części 1-2'!$C$43:$G$185,5,0),0)","v":0},321,0]
[null,19,"Herbata czarna LIPTON Yellow Label, 50 torebek","Czarna herbata w torebkach z zawieszką W opakowaniu: 50 torebek z zawieszką Jednostka sprzedaży: 1 opakowanie ","1 op. (50 torebek)",{"$f":"IF('Załącznik 1 - F.O. Części 1-2'!$V$47,VLOOKUP(C40,'Załącznik 1 - F.O. Części 1-2'!$C$43:$G$185,5,0),0)","v":0},61,0]
[null,20,"Herbata zielona LIPTON cytrusowa, 25 torebek","Herbara ekspresowa w torebkach z zawieszką W opakowaniu: 25 torebek Jednostka sprzedaży: 1 opakowanie ","1 op. (25 torebek)",{"$f":"IF('Załącznik 1 - F.O. Części 1-2'!$V$47,VLOOKUP(C41,'Załącznik 1 - F.O. Części 1-2'!$C$43:$G$185,5,0),0)","v":0},66,0]
[null,21,"Herbata zielona LIPTON miętowa, 25 torebek","Herbata ekspresowa w torebkach z zawieszką W opakowaniu: 25 torebek Jednostka sprzedaży: 1 opakowanie ","1 op. (25 torebek)",{"$f":"IF('Załącznik 1 - F.O. Części 1-2'!$V$47,VLOOKUP(C42,'Załącznik 1 - F.O. Części 1-2'!$C$43:$G$185,5,0),0)","v":0},50,0]
[null,22,"Herbata owocowa TEEKANNE World of Fruits, Black Currant, 20 kopert","Wyśmienita aromatyzowana mieszanka herbat owocowych o smaku czarnej porzeczki i cytryny. W opakowaniu 20 torebek z zawieszką, w papierowych kopertach. Jednostka sprzedaży: 1 opakowanie","1 op. (20 torebek)",{"$f":"IF('Załącznik 1 - F.O. Części 1-2'!$V$47,VLOOKUP(C43,'Załącznik 1 - F.O. Części 1-2'!$C$43:$G$185,5,0),0)","v":0},7,0]
[null,23,"Zestaw herbat owocowych TEEKANNE World of Fruits, 30 kopert","Wyjątkowy zestaw herbat ekspresowych z serii TEEKANNE World of Fruits W zestawie 6 aromatyzowanych mieszanek: Fresh Orange, Sweet Cherry, Garden Selection, Red Berries, Granny's Finest, Magic Apple Torebki pakowane indywidualnie w papierowe koperty Jednostka sprzedaży: 1 opakowanie (30 torebek) ","1 op. (30 torebek)",{"$f":"IF('Załącznik 1 - F.O. Części 1-2'!$V$47,VLOOKUP(C44,'Załącznik 1 - F.O. Części 1-2'!$C$43:$G$185,5,0),0)","v":0},10,0]
[null,24,"Herbata zielona TEEKANNE z opuncją, 20 kopert","Zielona herbata o wyśmienitym aromacie W opakowaniu: 20 torebek z zawieszką, w papierowych kopertach Jednostka sprzedaży: 1 opakowanie ","1 op. (20 torebek)",{"$f":"IF('Załącznik 1 - F.O. Części 1-2'!$V$47,VLOOKUP(C45,'Załącznik 1 - F.O. Części 1-2'!$C$43:$G$185,5,0),0)","v":0},244,0]
[null,25,"Herbata owocowa VITAX Inspirations melisa & pomarańcza, 20 torebek","Wyśmienita herbata o głębokim smaku i aromacie pysznych owoców W opakowaniu 20 torebek z zawieszką Jednostka sprzedaży: 1 opakowanie ","1 op. (20 torebek)",{"$f":"IF('Załącznik 1 - F.O. Części 1-2'!$V$47,VLOOKUP(C46,'Załącznik 1 - F.O. Części 1-2'!$C$43:$G$185,5,0),0)","v":0},329,0]
[null,26,"Herbata ziołowa VITAX melisa, 20 okrągłych torebek bez zawieszki","Tradycyjne, aromatyczne herbaty ze starannie wyselekcjonowanych ziół W opakowaniu 20 okrągłych torebek bez zawieszki Jednostka sprzedaży: 1 opakowanie ","1 op. (20 torebek)",{"$f":"IF('Załącznik 1 - F.O. Części 1-2'!$V$47,VLOOKUP(C47,'Załącznik 1 - F.O. Części 1-2'!$C$43:$G$185,5,0),0)","v":0},27,0]
[null,27,"Herbata ziołowa VITAX mięta, 20 okrągłych torebek bez zawieszki","Tradycyjne, aromatyczne herbaty ze starannie wyselekcjonowanych ziół W opakowaniu 20 okrągłych torebek bez zawieszki Jednostka sprzedaży: 1 opakowanie ","1 op. (20 torebek)",{"$f":"IF('Załącznik 1 - F.O. Części 1-2'!$V$47,VLOOKUP(C48,'Załącznik 1 - F.O. Części 1-2'!$C$43:$G$185,5,0),0)","v":0},126,0]
[null,28,"Herbata owocowa VITAX Inspirations żurawina & malina, 20 torebek","Wyśmienita herbata o głębokim smaku i aromacie pysznych owoców W opakowaniu: 20 torebek z zawieszką Jednostka sprzedaży: 1 opakowanie ","1 op. (20 torebek)",{"$f":"IF('Załącznik 1 - F.O. Części 1-2'!$V$47,VLOOKUP(C49,'Załącznik 1 - F.O. Części 1-2'!$C$43:$G$185,5,0),0)","v":0},48,0]
[null,29,"Herbata ziołowa VITAX rumianek, 20 kwadratowych torebek bez zawieszki","Tradycyjne, aromatyczne herbaty ze starannie wyselekcjonowanych ziół - rumianek. W opakowaniu: 20 kwadratowych torebek bez zawieszki","1 op. (20 torebek)",{"$f":"IF('Załącznik 1 - F.O. Części 1-2'!$V$47,VLOOKUP(C50,'Załącznik 1 - F.O. Części 1-2'!$C$43:$G$185,5,0),0)","v":0},10,0]
[null,30,"Kawa ziarnista Astra Łagodna 250 g","100% arabica z najlepszych plantacji Azji, Afryki i Ameryki Południowej. Opakowanie 250 g.","1 op. (250 g)",{"$f":"IF('Załącznik 1 - F.O. Części 1-2'!$V$47,VLOOKUP(C51,'Załącznik 1 - F.O. Części 1-2'!$C$43:$G$185,5,0),0)","v":0},21,0]
[null,31,"Kawa ziarnista Astra Łagodna 1 kg","100% arabica z najlepszych plantacji Azji, Afryki i Ameryki Południowej. Opakowanie 1 kg.","1 op. (1 kg)",{"$f":"IF('Załącznik 1 - F.O. Części 1-2'!$V$47,VLOOKUP(C52,'Załącznik 1 - F.O. Części 1-2'!$C$43:$G$185,5,0),0)","v":0},97,0]
[null,32,"Kawa ziarnista EDUSCHO Caffe Crema, 1 kg","Przygotowana z wyselekcjonowanych gatunków kawy, zapewniających bogaty i intensywny smak Jednostka sprzedaży: 1 opakowanie (1 kg) ","1 op. ( 1 kg.)",{"$f":"IF('Załącznik 1 - F.O. Części 1-2'!$V$47,VLOOKUP(C53,'Załącznik 1 - F.O. Części 1-2'!$C$43:$G$185,5,0),0)","v":0},12,0]
[null,33,"Kawa zbożowa INKA, puszka 200 g","Bogata w błonnik kawa zbożowa Jednostka sprzedaży: 1 opakowanie (200 g) ","1 op.( 200 g.)",{"$f":"IF('Załącznik 1 - F.O. Części 1-2'!$V$47,VLOOKUP(C54,'Załącznik 1 - F.O. Części 1-2'!$C$43:$G$185,5,0),0)","v":0},7,0]
[null,34,"Kawa rozpuszczalna JACOBS Barista Americano 155 g","Jacobs Barista Edition Americano Kompozycja kawy rozpuszczalnej i zmielonych ziaren kawy  opakowanie słoik 155 g","1 op. (słoik 155g)",{"$f":"IF('Załącznik 1 - F.O. Części 1-2'!$V$47,VLOOKUP(C55,'Załącznik 1 - F.O. Części 1-2'!$C$43:$G$185,5,0),0)","v":0},5,0]
[null,35,"Kawa mielona JACOBS Cronat Gold, 500 g","Wyprodukowana z ziaren najwyższej jakości Jednostka sprzedaży: 1 opakowanie (500 g) ","1 op. (500 g.)",{"$f":"IF('Załącznik 1 - F.O. Części 1-2'!$V$47,VLOOKUP(C56,'Załącznik 1 - F.O. Części 1-2'!$C$43:$G$185,5,0),0)","v":0},194,0]
[null,36,"Kawa rozpuszczalna JACOBS Cronat Gold, 200 g","Doskonały smak i aromat Jednostka sprzedaży: 1 opakowanie (200 g) ","1 op.( 200 g.)",{"$f":"IF('Załącznik 1 - F.O. Części 1-2'!$V$47,VLOOKUP(C57,'Załącznik 1 - F.O. Części 1-2'!$C$43:$G$185,5,0),0)","v":0},136,0]
[null,37,"Kawa rozpuszczalna JACOBS Crema Gold, 200 g","Kawa rozpuszczalna o wyjątkowo harmonijnym smaku, zwieńczona delikatną pianką W formie delikatnego pudru Jednostka sprzedaży: 1 opakowanie (200 g) ","1 op.( 200 g.)",{"$f":"IF('Załącznik 1 - F.O. Części 1-2'!$V$47,VLOOKUP(C58,'Załącznik 1 - F.O. Części 1-2'!$C$43:$G$185,5,0),0)","v":0},7,0]
[null,38,"Kawa mielona JACOBS Kronung, 250 g","Wyprodukowana z ziaren najwyższej jakości Jednostka sprzedaży: 1 opakowanie (250 g) ","1 op. (250 g.)",{"$f":"IF('Załącznik 1 - F.O. Części 1-2'!$V$47,VLOOKUP(C59,'Załącznik 1 - F.O. Części 1-2'!$C$43:$G$185,5,0),0)","v":0},34,0]
[null,39,"Kawa rozpuszczalna JACOBS Kronung, 200 g","Wyprodukowana z ziaren najwyższej jakości Jednostka sprzedaży: 1 opakowanie (200 g) ","1 op.( 200 g.)",{"$f":"IF('Załącznik 1 - F.O. Części 1-2'!$V$47,VLOOKUP(C60,'Załącznik 1 - F.O. Części 1-2'!$C$43:$G$185,5,0),0)","v":0},18,0]
[null,40,"Kubek papierowy do gorących napojów 110 ml","Kubek papierowy przeznaczony do napojów oraz potraw zimnych i gorących poj. 110 ml Jednostka sprzedaży: 1 opakowanie (50 szt)","1 op. (50 szt.)",{"$f":"IF('Załącznik 1 - F.O. Części 1-2'!$V$47,VLOOKUP(C61,'Załącznik 1 - F.O. Części 1-2'!$C$43:$G$185,5,0),0)","v":0},10,0]
[null,41,"Kubek plastikowy do zimnych napojów 200 ml Biały","Kubki jednorazowe wykonane z tworzywa PET poj. 200  ml. Kolor biały Jednostka sprzedaży: 1 opakowanie (100 szt)","1 op. (100 szt.)",{"$f":"IF('Załącznik 1 - F.O. Części 1-2'!$V$47,VLOOKUP(C62,'Załącznik 1 - F.O. Części 1-2'!$C$43:$G$185,5,0),0)","v":0},118,0]
[null,42,"Kawa ziarnista LAVAZZA Crema Aroma, 1 kg","Skład: 25 % Arabica, 75 % Robusta Mieszanka Arabiki i Robusty o intensywnym, długo wyczuwalnym smaku Szczególnie polecana konsumentom lubiącym zdecydowany smak espresso Piękna pianka długo utrzymuje się na powierzchni napoju Jednostka sprzedaży: 1 opakowanie (1 kg) ","1 op. (1 kg)",{"$f":"IF('Załącznik 1 - F.O. Części 1-2'!$V$47,VLOOKUP(C63,'Załącznik 1 - F.O. Części 1-2'!$C$43:$G$185,5,0),0)","v":0},111,0]
[null,43,"Kawa ziarnista LAVAZZA Pronto Crema Grande Aroma 1 kg"," kawa ziarnista Lavazza Pronto Crema Grande Aroma to mieszanka Arabiki z Gwatemali i Kostaryki o średnim stopniu palenia. Delikatna i słodka w smaku z wyczuwalną nutą czekolady.  Jednostka sprzedaży: 1 opakowanie (1 kg)","1 op. (1 kg)",{"$f":"IF('Załącznik 1 - F.O. Części 1-2'!$V$47,VLOOKUP(C64,'Załącznik 1 - F.O. Części 1-2'!$C$43:$G$185,5,0),0)","v":0},21,0]
[null,44,"Kawa mielona LAVAZZA Qualita Oro, 250 g","Kawa mielona pakowana próżniowo 100% Arabica Jednostka sprzedaży: 1 opakowanie (250 g) ","1 op. (250 g)",{"$f":"IF('Załącznik 1 - F.O. Części 1-2'!$V$47,VLOOKUP(C65,'Załącznik 1 - F.O. Części 1-2'!$C$43:$G$185,5,0),0)","v":0},595,0]
[null,45,"Kawa ziarnista LAVAZZA Qualita Oro, 1 kg","100% Arabica Mieszanka ziaren pochodzących z najlepszych plantacji Ameryki i Afryki, słynąca głównie z intensywnego aromatu Jednostka sprzedaży: 1 opakowanie (1 kg) ","1 op. (1 kg)",{"$f":"IF('Załącznik 1 - F.O. Części 1-2'!$V$47,VLOOKUP(C66,'Załącznik 1 - F.O. Części 1-2'!$C$43:$G$185,5,0),0)","v":0},123,0]
[null,46,"Kawa ziarnista LAVAZZA Qualita Rossa, 1 kg","Kawa ziarnista do ekspresów ciśnieniowych Mieszanka Arabiki (40%) i Robusty (60%) Jednostka sprzedaży: 1 opakowanie (1 kg) ","1 op. (1 kg)",{"$f":"IF('Załącznik 1 - F.O. Części 1-2'!$V$47,VLOOKUP(C67,'Załącznik 1 - F.O. Części 1-2'!$C$43:$G$185,5,0),0)","v":0},32,0]
[null,47,"Kawa rozpuszczalna NESCAFÉ Sensazione Creme, 200 g","Kawa o wyjątkowo delikatnym smaku i aksamitnej piance Jednostka sprzedaży: 1 opakowanie (200 g) ","1 op.( 200 g.)",{"$f":"IF('Załącznik 1 - F.O. Części 1-2'!$V$47,VLOOKUP(C68,'Załącznik 1 - F.O. Części 1-2'!$C$43:$G$185,5,0),0)","v":0},7,0]
[null,48,"Kawa rozpuszczalna TCHIBO Family, 200 g","Zapewnia wyjątkowy smak i wyrazisty aromat dzięki specjalnemu procesowi palenia , któremu poddawane są ziarna kawy Jednostka sprzedaży: 1 opakowanie (200 g) ","1 op. (200 g)",{"$f":"IF('Załącznik 1 - F.O. Części 1-2'!$V$47,VLOOKUP(C69,'Załącznik 1 - F.O. Części 1-2'!$C$43:$G$185,5,0),0)","v":0},59,0]
[null,49,"Kawa ziarnista TCHIBO Profesional  Crema  1 kg ","Professional Crema Tchibo cechuje się łagodnym, kremowym smakiem. Idealnie sprawdza się zarówno czarna, jak i z dodatkiem mleka. Składa się ze starannie wyselekcjonowanych ziaren Arabiki. Kawa przeznaczona jest do stosowania w ekspresach automatycznych, kolbowych oraz przelewowych.  Jednostka sprzedaży: 1 opakowanie (1 kg)","1 op. (1 kg)",{"$f":"IF('Załącznik 1 - F.O. Części 1-2'!$V$47,VLOOKUP(C70,'Załącznik 1 - F.O. Części 1-2'!$C$43:$G$185,5,0),0)","v":0},99,0]
[null,50,"Śmietanka do kawy ŁACIATA 12%, 500 ml","Śmietanka do kawy w kartonie 500 ml, 12% tł. W kartoniku z zakrętką Jednostka sprzedaży: 1 karton ","1 op. (500 ml)",{"$f":"IF('Załącznik 1 - F.O. Części 1-2'!$V$47,VLOOKUP(C71,'Załącznik 1 - F.O. Części 1-2'!$C$43:$G$185,5,0),0)","v":0},7,0]
[null,51,"Śmietanka do kawy ŁACIATA 10%, 10 kubeczków x 10 g","Jednostka sprzedaży: 1 opakowanie (10 kubeczków po 10 g) ","1 op. (10 kubeczków)",{"$f":"IF('Załącznik 1 - F.O. Części 1-2'!$V$47,VLOOKUP(C72,'Załącznik 1 - F.O. Części 1-2'!$C$43:$G$185,5,0),0)","v":0},135,0]
[null,52,"Mleko ŁACIATE UHT 2,0%, 0,5 l","Mleko ŁACIATE UHT 2,0%, 0,5 l Jednostka sprzedaży: 1 karton (0,5 L) ","1 op. (500 ml)",{"$f":"IF('Załącznik 1 - F.O. Części 1-2'!$V$47,VLOOKUP(C73,'Załącznik 1 - F.O. Części 1-2'!$C$43:$G$185,5,0),0)","v":0},126,0]
[null,53,"Mleko ŁACIATE UHT 2,0%, 1 l","Mleko ŁACIATE UHT 2,0%, 1 l Jednostka sprzedaży: 1 karton (1 L) ","1 op. (1 l)",{"$f":"IF('Załącznik 1 - F.O. Części 1-2'!$V$47,VLOOKUP(C74,'Załącznik 1 - F.O. Części 1-2'!$C$43:$G$185,5,0),0)","v":0},120,0]
[null,54,"Mleko ŁACIATE UHT 3,2%, 0,5 l","Jednostka sprzedaży: 1 karton (0,5 L) ","1 op. (500 ml)",{"$f":"IF('Załącznik 1 - F.O. Części 1-2'!$V$47,VLOOKUP(C75,'Załącznik 1 - F.O. Części 1-2'!$C$43:$G$185,5,0),0)","v":0},140,0]
[null,55,"Mleko ŁACIATE UHT 3,2%, 1 l","Mleko ŁACIATE UHT 3,2%, 1 lJednostka sprzedaży:1 karton (1 L) ","1 op. (1 l)",{"$f":"IF('Załącznik 1 - F.O. Części 1-2'!$V$47,VLOOKUP(C76,'Załącznik 1 - F.O. Części 1-2'!$C$43:$G$185,5,0),0)","v":0},118,0]
[null,56,"Mleko zagęszczone ŁACIATE UHT 7,5%, 0,5 l","W kartonie z zakrętką Zawartość tłuszczu: 7,5% Jednostka sprzedaży: 1 karton ","1 op. (500 ml)",{"$f":"IF('Załącznik 1 - F.O. Części 1-2'!$V$47,VLOOKUP(C77,'Załącznik 1 - F.O. Części 1-2'!$C$43:$G$185,5,0),0)","v":0},16,0]
[null,57,"Mleko WYDOJONE UHT, bez laktozy 1,5%, 1 l","Otrzymywane z mleka krowiego poddawanego specjalnej obróbce Dostępne w kartonie 1 l z zakrętką Jednostka sprzedaży: 1 karton ","1 op. (1 l)",{"$f":"IF('Załącznik 1 - F.O. Części 1-2'!$V$47,VLOOKUP(C78,'Załącznik 1 - F.O. Części 1-2'!$C$43:$G$185,5,0),0)","v":0},32,0]
[null,58,"Mleko WYDOJONE UHT, bez laktozy, 3,2%, 1 l","Otrzymywane z mleka krowiego poddawanego specjalnej obróbce w celu obniżenia o blisko połowę poziomu węglowodanów i usunięcia laktozy Dostępne w kartonie 1 l z zakrętką Jednostka sprzedaży: 1 karton ","1 op. (1 l)",{"$f":"IF('Załącznik 1 - F.O. Części 1-2'!$V$47,VLOOKUP(C79,'Załącznik 1 - F.O. Części 1-2'!$C$43:$G$185,5,0),0)","v":0},66,0]
[null,59,"Cukierki Mieszanka bakaliowa BAKALLAND Studencki Mix, 150 g","Pyszna i zdrowa przekąska idealna do każdego biura Jednostka sprzedaży: 1 opakowanie ","1 op (150 g)",{"$f":"IF('Załącznik 1 - F.O. Części 1-2'!$V$47,VLOOKUP(C80,'Załącznik 1 - F.O. Części 1-2'!$C$43:$G$185,5,0),0)","v":0},12,0]
[null,60,"Migdały BAKALLAND, 275 g","Najdorodniejsze, najwyższej jakości orzechy z gładką, pomarańczowo – złotą skórką gwarantują smak i odpowiednią chrupkość. ","1 op. (275 g)",{"$f":"IF('Załącznik 1 - F.O. Części 1-2'!$V$47,VLOOKUP(C81,'Załącznik 1 - F.O. Części 1-2'!$C$43:$G$185,5,0),0)","v":0},7,0]
[null,61,"Orzechy nerkowca BAKALLAND, 300 g","Orzechy nerkowca Bakalland dorodne, delikatne orzechy o nienagannej skórce i wysokiej jakości o której świadczy ich chrupkość oraz charakterystyczny, nieco maślany smak","1 op. (300 g)",{"$f":"IF('Załącznik 1 - F.O. Części 1-2'!$V$47,VLOOKUP(C82,'Załącznik 1 - F.O. Części 1-2'!$C$43:$G$185,5,0),0)","v":0},7,0]
[null,62,"Ciastka BELVITA, kakaowe, 300 g, 24 ciasteczka","Smaczne i pożywne ciastka wypiekane z pełnego ziarna 5 różnych zbóż Dostarczają ważne dla organizmu witaminy i składniki mineralne (np. magnez, żelazo) oraz są źródłem cennego błonnika W opakowaniu: 24 ciasteczka pakowane po 4 szt. w oddzielne folijki Jednostka sprzedaży: 1 opakowanie ","1 op. (300 g)",{"$f":"IF('Załącznik 1 - F.O. Części 1-2'!$V$47,VLOOKUP(C83,'Załącznik 1 - F.O. Części 1-2'!$C$43:$G$185,5,0),0)","v":0},50,0]
[null,63,"Ciastka BELVITA Musli z owocami, 24 ciasteczka pakowane po 4 sztuki, 300 g","Smaczne i pożywne ciastka wypiekane z pełnego ziarna 5 różnych zbóż Dostarczają ważne dla organizmu witaminy i składniki mineralne (np. magnez, żelazo) oraz są źródłem cennego błonnika W opakowaniu: 24 ciasteczka pakowane po 4 szt. w oddzielne folijki Jednostka sprzedaży: 1 opakowanie ","1 op. (300 g)",{"$f":"IF('Załącznik 1 - F.O. Części 1-2'!$V$47,VLOOKUP(C84,'Załącznik 1 - F.O. Części 1-2'!$C$43:$G$185,5,0),0)","v":0},61,0]
[null,64,"Woda mineralna CISOWIANKA gazowana, zgrzewka 12 butelek x 0,5 l","Naturalnie niskosodowa woda mineralna, odpowiednia dla diety ubogiej w sód Średnia mineralizacja i subtelny smak sprawiają, że Cisowianka jest idealną wodą na każdą okazję Jednostka sprzedaży: 1 zgrzewka (12 sztuk) ","1 op. (12 butelek)",{"$f":"IF('Załącznik 1 - F.O. Części 1-2'!$V$47,VLOOKUP(C85,'Załącznik 1 - F.O. Części 1-2'!$C$43:$G$185,5,0),0)","v":0},244,0]
[null,65,"Ciastka DELICJE Szampańskie malinowe, 147 g","Połączenie delikatnego biszkoptu, galaretki owocowej oraz czekolady Nowe, zamykane opakowanie pomaga zachować świeżość produktu Jednostka sprzedaży: 1 opakowanie ","1 op. (147 g)",{"$f":"IF('Załącznik 1 - F.O. Części 1-2'!$V$47,VLOOKUP(C86,'Załącznik 1 - F.O. Części 1-2'!$C$43:$G$185,5,0),0)","v":0},124,0]
[null,66,"Ciastka DELICJE Szampańskie pomarańczowe, 147 g","Połączenie delikatnego biszkoptu, galaretki owocowej oraz czekolady Nowe, zamykane opakowanie pomaga zachować świeżość produktu Jednostka sprzedaży: 1 opakowanie ","1 op. (147 g)",{"$f":"IF('Załącznik 1 - F.O. Części 1-2'!$V$47,VLOOKUP(C87,'Załącznik 1 - F.O. Części 1-2'!$C$43:$G$185,5,0),0)","v":0},167,{"$f":"G87*F87","v":0}]
[null,67,"Ciastka DELICJE Szampańskie wiśniowe, 147 g","Połączenie delikatnego biszkoptu, galaretki owocowej oraz czekolady Nowe, zamykane opakowanie pomaga zachować świeżość produktu Jednostka sprzedaży: 1 opakowanie ","1 op. (147 g)",{"$f":"IF('Załącznik 1 - F.O. Części 1-2'!$V$47,VLOOKUP(C88,'Załącznik 1 - F.O. Części 1-2'!$C$43:$G$185,5,0),0)","v":0},70,0]
[null,68,"Ciastka DELICJE Szampańskie wiśniowe, podwójne opakowanie, 294 g","Podwójne opakowanie popularnych ciasteczek Połączenie delikatnego biszkoptu, galaretki owocowej oraz czekolady Jednostka sprzedaży: 1 opakowanie ","1 op. ( 294 g)",{"$f":"IF('Załącznik 1 - F.O. Części 1-2'!$V$47,VLOOKUP(C89,'Załącznik 1 - F.O. Części 1-2'!$C$43:$G$185,5,0),0)","v":0},48,0]
[null,69,"Praliny RAFFAELLO, 230g","Kokosowy smakołyk z chrupiącego wafelka z całym migdałem w środku, opakowanie kartonowe z przezroczystym okienkiem  Masa netto: 230 g Jednostka sprzedaży: 1 opakowanie ","1 op.(  230 g.)",{"$f":"IF('Załącznik 1 - F.O. Części 1-2'!$V$47,VLOOKUP(C90,'Załącznik 1 - F.O. Części 1-2'!$C$43:$G$185,5,0),0)","v":0},5,0]
[null,70,"Czekoladki FERRERO ROCHER, 200 g","Wykwintne praliny o oryginalnym i niepowtarzalnym smaku. Orzech laskowy zatopiony w czekoladowym kremie zamknięto w kulistym wafelku oblanym mleczną czekoladą z kawałkami orzecha Każda pojedyncza pralina zapakowana jest w oddzielny papierek. Czekoladki pakowane są w sztywne, plastikowe opakowanie.","1 op.(  200 g.)",{"$f":"IF('Załącznik 1 - F.O. Części 1-2'!$V$47,VLOOKUP(C91,'Załącznik 1 - F.O. Części 1-2'!$C$43:$G$185,5,0),0)","v":0},37,0]
[null,71,"Cukierki Goplana Toffino Choco Toffi mleczne z kremem czekoladowym 1 kg","Toffi mleczne nadziewane kremem czekoladowym (18%). Opakowanie 1 kg.","1 op. ( 1 kg.)",{"$f":"IF('Załącznik 1 - F.O. Części 1-2'!$V$47,VLOOKUP(C92,'Załącznik 1 - F.O. Części 1-2'!$C$43:$G$185,5,0),0)","v":0},88,0]
[null,72,"Ciastka BAHLSEN HIT czekoladowe, 220 g","Dwa herbatniki z ciasta laminowanego o kształcie okrągłym przełożone kremem o smaku czekoladowym (41 %) . W obydwu herbatnikach w markizie widoczne górne strony herbatnika z napisem Hit. Jednostka sprzedaży: 1 opakowanie ","1 op.(  220 g)",{"$f":"IF('Załącznik 1 - F.O. Części 1-2'!$V$47,VLOOKUP(C93,'Załącznik 1 - F.O. Części 1-2'!$C$43:$G$185,5,0),0)","v":0},32,0]
[null,73,"Ciasta JEŻYKI Cafe, 140 g","Pyszne ciastka z orzechami laskowymi, karmelem i chrupkami ryżowymi, oblane mleczną czekoladą Masa netto: 140 g Jednostka sprzedaży: 1 opakowanie ","1 op. (140 g)",{"$f":"IF('Załącznik 1 - F.O. Części 1-2'!$V$47,VLOOKUP(C94,'Załącznik 1 - F.O. Części 1-2'!$C$43:$G$185,5,0),0)","v":0},27,0]
[null,74,"Ciasta JEŻYKI Classic, 140 g","Pyszne ciastka z orzechami laskowymi, karmelem i chrupkami ryżowymi, oblane mleczną czekoladą Masa netto: 140 g Jednostka sprzedaży: 1 opakowanie ","1 op. (140 g)",{"$f":"IF('Załącznik 1 - F.O. Części 1-2'!$V$47,VLOOKUP(C95,'Załącznik 1 - F.O. Części 1-2'!$C$43:$G$185,5,0),0)","v":0},315,0]
[null,75,"Wafle FAMILIJNE śmietankowo-kakaowe, 180 g","Pyszne wafle z nadzieniem Masa netto: 180 g Jednostka sprzedaży: 1 opakowanie ","1 op. (180 g)",{"$f":"IF('Załącznik 1 - F.O. Części 1-2'!$V$47,VLOOKUP(C96,'Załącznik 1 - F.O. Części 1-2'!$C$43:$G$185,5,0),0)","v":0},99,0]
[null,76,"Ciastka SAN ŁAKOTKI deserowe z cukrem, 168 g","Ciastka pieczone według tradycyjnego, 'domowego' przepisu Jednostka sprzedaży: 1 opakowanie ","1 op. (168 g)",{"$f":"IF('Załącznik 1 - F.O. Części 1-2'!$V$47,VLOOKUP(C97,'Załącznik 1 - F.O. Części 1-2'!$C$43:$G$185,5,0),0)","v":0},142,0]
[null,77,"Ciastka SAN ŁAKOTKI kakaowe, 168 g","Ciastka pieczone według tradycyjnego, 'domowego' przepisu Jednostka sprzedaży: 1 opakowanie ","1 op. (168 g)",{"$f":"IF('Załącznik 1 - F.O. Części 1-2'!$V$47,VLOOKUP(C98,'Załącznik 1 - F.O. Części 1-2'!$C$43:$G$185,5,0),0)","v":0},64,0]
[null,78,"Ciastka SAN ŁAKOTKI kokosowe, 168 g","Ciastka pieczone według tradycyjnego, 'domowego' przepisu Jednostka sprzedaży: 1 opakowanie ","1 op. (168 g)",{"$f":"IF('Załącznik 1 - F.O. Części 1-2'!$V$47,VLOOKUP(C99,'Załącznik 1 - F.O. Części 1-2'!$C$43:$G$185,5,0),0)","v":0},82,0]
[null,79,"Czekoladki MERCI, 400 g","Niepowtarzalna kolekcja pojedynczo pakowanych, wykwintnych czekoladek w ośmiu smakach Dzięki eleganckiemu opakowaniu doskonale nadaje się na prezent Jednostka sprzedaży: 1 opakowanie ","1 op.(400 g.)",{"$f":"IF('Załącznik 1 - F.O. Części 1-2'!$V$47,VLOOKUP(C100,'Załącznik 1 - F.O. Części 1-2'!$C$43:$G$185,5,0),0)","v":0},28,0]
[null,80,"Ciastka MILKA Chocograins, 126 g","Ciastka z płatkami owsianymi i mąką pszenną oblane czekoladą mleczną z alpejskiego mleka Masa netto: 126 g Jednostka sprzedaży: 1 opakowanie ","1 op.(126 g.)",{"$f":"IF('Załącznik 1 - F.O. Części 1-2'!$V$47,VLOOKUP(C101,'Załącznik 1 - F.O. Części 1-2'!$C$43:$G$185,5,0),0)","v":0},88,0]
[null,81,"Wafle MILKA ChocoWafer, 150 g","Okrągłe wafelki przełożone kremowym nadzieniem o smaku kakaowym, oblane mleczną czekoladą z alpejskiego mleka W opakowaniu: 6 pakowanych oddzielnie wafelków Masa netto: 150 g Jednostka sprzedaży: 1 opakowanie ","1 op.(150g.)",{"$f":"IF('Załącznik 1 - F.O. Części 1-2'!$V$47,VLOOKUP(C102,'Załącznik 1 - F.O. Części 1-2'!$C$43:$G$185,5,0),0)","v":0},108,0]
[null,82,"Praliny MILKA Moments Mix, 11 czekoladek","W opakowaniu znajduje się miks smaków: oreo, toffi z orzechem laskowym, orzech laskowy, karmelowo - migdałowe, alpejskie mleko.Jednostka sprzedaży: 1 opakowanie (1 kg). ","1 op. (11 sztuk)",{"$f":"IF('Załącznik 1 - F.O. Części 1-2'!$V$47,VLOOKUP(C103,'Załącznik 1 - F.O. Części 1-2'!$C$43:$G$185,5,0),0)","v":0},7,0]
[null,83,"Praliny MILKA Moments Toffee Wholenut, 11 czekoladek","praliny z firmy Milka zapewniają 16 wspaniałych chwil podczas konsumpcji. Każda z nich jest zapakowana osobno. Praliny wypełnione są pysznym, karmelowym nadzieniem, które świetnie współgra z ukrytym orzechem laskowym. Użyta przez producenta, najwyższej jakości czekolada została wykonana z mleka alpejskiego.Jednostka sprzedaży: 1 opakowanie (16 x 97 g). ","1 op. (11 sztuk)",{"$f":"IF('Załącznik 1 - F.O. Części 1-2'!$V$47,VLOOKUP(C104,'Załącznik 1 - F.O. Części 1-2'!$C$43:$G$185,5,0),0)","v":0},59,0]
[null,84,"Ciastka MILKA Pieguski, czekolada i orzechy, 135 g","Kruche ciasteczka z kawałkami czekolady mlecznej z mleka alpejskiego oraz z orzechami Jednostka sprzedaży: 1 opakowanie ","1 op. (135 g)",{"$f":"IF('Załącznik 1 - F.O. Części 1-2'!$V$47,VLOOKUP(C105,'Załącznik 1 - F.O. Części 1-2'!$C$43:$G$185,5,0),0)","v":0},99,0]
[null,85,"Czekoladki MILKA Singles, 32 czekoladki pakowane osobno","Mieszanka czekoladek mlecznych z alpejskiego mleka. W skład mieszanki wchodzą: czekoladki mleczne, mleczne z orzechami laskowymi, mleczne z nadzieniem kakaowym, mleczne z nadzieniem truskawkowym. W opakowaniu: 32 pojedynczo zapakowane czekoladk"," 1 op. (32 szt.)",{"$f":"IF('Załącznik 1 - F.O. Części 1-2'!$V$47,VLOOKUP(C106,'Załącznik 1 - F.O. Części 1-2'!$C$43:$G$185,5,0),0)","v":0},39,0]
[null,86,"Czekoladki NESPRESSO blond, 200 g","Czekoladki NESPRESSO blond, 200 g Opakowanie zawiera 40 pojedynczo pakowanych czekoladek. Jednostka sprzedaży: 1 opakowanie (200 g)","1 op ( 200 g.)",{"$f":"IF('Załącznik 1 - F.O. Części 1-2'!$V$47,VLOOKUP(C107,'Załącznik 1 - F.O. Części 1-2'!$C$43:$G$185,5,0),0)","v":0},12,0]
[null,87,"Czekoladki NESPRESSO mleczne, 200 g","Klasyczne czekoladki mleczne, które zadowolą każdego miłośnika czekolady. Czekoladki mleczne Nespresso zawierają minimum 41% kakao. Opakowanie zawiera 40 pojedynczo pakowanych czekoladek. Jednostka sprzedaży: 1 opakowanie (200 g)","1 op  ( 200 g.)",{"$f":"IF('Załącznik 1 - F.O. Części 1-2'!$V$47,VLOOKUP(C108,'Załącznik 1 - F.O. Części 1-2'!$C$43:$G$185,5,0),0)","v":0},21,0]
[null,88,"Cukierki Pastylka miętowa WAWEL, 1 kg","Pastylka miętowa w deserowej czekoladzie w oryginalnym okrągłym kształcie. Produkt bez dodatku substancji konserwujących i barwników. Opakowanie w kolorze zielonym– subtelne połączenie wyśmienitej czekolady deserowej z orzeźwiającą miętą. Opakowanie 1 kg.","1 op. (1 kg)",{"$f":"IF('Załącznik 1 - F.O. Części 1-2'!$V$47,VLOOKUP(C109,'Załącznik 1 - F.O. Części 1-2'!$C$43:$G$185,5,0),0)","v":0},50,0]
[null,89,"Cukierki Śliwka Nałęczowska SOLIDARNOŚĆ, 1 kg","Śliwka kandyzowana w masie kakaowej w czekoladzie. Opakowanie 1 kg.","1 op. (1 kg)",{"$f":"IF('Załącznik 1 - F.O. Części 1-2'!$V$47,VLOOKUP(C110,'Załącznik 1 - F.O. Części 1-2'!$C$43:$G$185,5,0),0)","v":0},136,0]
[null,90,"Ciastka TAGO korzenne, 125 ciasteczek po 4,8 g","Wyśmienite ciasteczka z przyprawami korzennymi: cynamonem, imbirem, goździkami i kardamonem. W opakowaniu 125 pojedynczo pakowanych ciasteczek","1 op. (125 szt.)",{"$f":"IF('Załącznik 1 - F.O. Części 1-2'!$V$47,VLOOKUP(C111,'Załącznik 1 - F.O. Części 1-2'!$C$43:$G$185,5,0),0)","v":0},50,0]
[null,91,"Ciastka TAGO Owsiane de Lux, 210 g","Doskonałe owsiane ciasteczka w wygodnym opakowaniu Masa netto: 210 g Jednostka sprzedaży: 1 opakowanie ","1 op. (210 g)",{"$f":"IF('Załącznik 1 - F.O. Części 1-2'!$V$47,VLOOKUP(C112,'Załącznik 1 - F.O. Części 1-2'!$C$43:$G$185,5,0),0)","v":0},43,0]
[null,92,"Francuskie precle z masłem TAGO, 158 g","Delikatne i puszyste ciasteczka z masłem 25% zawartość masła Jednostka sprzedaży: 1 opakowanie (158 g) ","1 op. ( 158 g)",{"$f":"IF('Załącznik 1 - F.O. Części 1-2'!$V$47,VLOOKUP(C113,'Załącznik 1 - F.O. Części 1-2'!$C$43:$G$185,5,0),0)","v":0},27,0]
[null,93,"Cukierki WAWEL Michałki Klasyczne 1 kg","Michałki klasyczne – cukierek orzechowo-kakaowy w czekoladzie, opakowanie 300 g","1 op. (1 kg)",{"$f":"IF('Załącznik 1 - F.O. Części 1-2'!$V$47,VLOOKUP(C114,'Załącznik 1 - F.O. Części 1-2'!$C$43:$G$185,5,0),0)","v":0},131,0]
[null,94,"Cukierki WAWEL Michałki Klasyczne 300 g","Michałki klasyczne – cukierek orzechowo-kakaowy w czekoladzie, opakowanie 300 g","1 op. (300 g)",{"$f":"IF('Załącznik 1 - F.O. Części 1-2'!$V$47,VLOOKUP(C115,'Załącznik 1 - F.O. Części 1-2'!$C$43:$G$185,5,0),0)","v":0},183,0]
[null,95,"Cukierki Mieszanka krakowska WAWEL, 1 kg","Mieszanka Krakowska – owocowe galaretki w czekoladzie w 4 smakach(dojrzałej pomarańczy, orzeźwiającej cytryny, aromatycznej maliny i egzotycznego ananasa)","1 op. (1 kg)",{"$f":"IF('Załącznik 1 - F.O. Części 1-2'!$V$47,VLOOKUP(C116,'Załącznik 1 - F.O. Części 1-2'!$C$43:$G$185,5,0),0)","v":0},151,0]
[null,96,"Cukierki WAWEL Trufle","Trufle w czekoladzie – klasyczny cukierek kakaowy z aromatem rumowym. Opakowanie 1 kg.","1 op. (1 kg)",{"$f":"IF('Załącznik 1 - F.O. Części 1-2'!$V$47,VLOOKUP(C117,'Załącznik 1 - F.O. Części 1-2'!$C$43:$G$185,5,0),0)","v":0},298,0]
[null,97,"Ciastka AMERYKANKI, klasyczne, 125 g","Kruche ciastka z kawałkami ciemnej czekolady Masa netto: 126 g Jednostka sprzedaży: 1 opakowanie ","1 op. (125 g)",{"$f":"IF('Załącznik 1 - F.O. Części 1-2'!$V$47,VLOOKUP(C118,'Załącznik 1 - F.O. Części 1-2'!$C$43:$G$185,5,0),0)","v":0},18,0]
[null,98,"Cukierki MIESZANKA WEDLOWSKA Classic, 3 kg w formie dyspensera","Mieszanka cukierków czekoladowych Doskonały dodatek do kawy w bardzo poręcznym i eleganckim opakowaniu Cukierki można podawać bezpośrednio z opakowania zaprojektowanego w formie specjalnego dyspensera Masa netto: 3 kg Jednostka sprzedaży: 1 opakowanie ","1 op. (3 kg)",{"$f":"IF('Załącznik 1 - F.O. Części 1-2'!$V$47,VLOOKUP(C119,'Załącznik 1 - F.O. Części 1-2'!$C$43:$G$185,5,0),0)","v":0},183,0]
[null,99,"Ptasie mleczko WEDEL, waniliowe, 340 g","Wyjątkowo lekka i puszysta pianka pokryta kruchą warstwą wedlowskiej czekolady.Jednostka sprzedaży: 1 opakowanie 340 g","1 op.( 340 g.)",{"$f":"IF('Załącznik 1 - F.O. Części 1-2'!$V$47,VLOOKUP(C120,'Załącznik 1 - F.O. Części 1-2'!$C$43:$G$185,5,0),0)","v":0},59,0]
[null,100,"Wafle Torcikowe WEDEL MINI orzechowe, 160 g","Małe, lekkie i chrupiące wafelki Jednostka sprzedaży: 1 opakowanie (160 g) ","1 op. ( 160 g)",{"$f":"IF('Załącznik 1 - F.O. Części 1-2'!$V$47,VLOOKUP(C121,'Załącznik 1 - F.O. Części 1-2'!$C$43:$G$185,5,0),0)","v":0},34,0]
[null,101,"Migdały lekko solone BAKALLAND, 90 g","Migdały łuskane prażone 99%, sól. Opakowanie w kolorze żółtym - struna, w którą wyposażone jest opakowanie umożliwia wielorazowe otwieranie i szczelne zamykanie. Migdały lekko solone nie zawierają dodatku tłuszczu – prażone są w piecu. Bogactwo witaminy E, potasu i magnezu, opakowanie 90 g","1 op. (90 g)",{"$f":"IF('Załącznik 1 - F.O. Części 1-2'!$V$47,VLOOKUP(C122,'Załącznik 1 - F.O. Części 1-2'!$C$43:$G$185,5,0),0)","v":0},34,0]
[null,102,"Orzechy laskowe BAKALLAND, 300 g","Opakowanie w kolorze żółtym - struna, w którą wyposażone jest opakowanie umożliwia wielorazowe otwieranie i szczelne zamykanie; orzechy laskowe.","1 op. (300 g)",{"$f":"IF('Załącznik 1 - F.O. Części 1-2'!$V$47,VLOOKUP(C123,'Załącznik 1 - F.O. Części 1-2'!$C$43:$G$185,5,0),0)","v":0},86,0]
[null,103,"Orzechy nerkowca  solone BAKALLAND, 70 g","Orzechy nerkowca Bakalland dorodne, delikatne orzechy o nienagannej skórce i wysokiej jakości o której świadczy ich chrupkość oraz charakterystyczny, nieco maślany smak. Solone opakowanie 70 g.","1 op. (70 g)",{"$f":"IF('Załącznik 1 - F.O. Części 1-2'!$V$47,VLOOKUP(C124,'Załącznik 1 - F.O. Części 1-2'!$C$43:$G$185,5,0),0)","v":0},113,0]
[null,104,"Orzechy włoskie BAKALLAND, 200 g","Orzech włoski łuskany. Opakowanie 200 g","1 op. (200 g)",{"$f":"IF('Załącznik 1 - F.O. Części 1-2'!$V$47,VLOOKUP(C125,'Załącznik 1 - F.O. Części 1-2'!$C$43:$G$185,5,0),0)","v":0},109,0]
[null,105,"Paluszki LAJKONIK solone, 200 g","Paluszki słone w opakowaniu 200 g Jednostka sprzedaży: 1 opakowanie ","1 op. (200 g)",{"$f":"IF('Załącznik 1 - F.O. Części 1-2'!$V$47,VLOOKUP(C126,'Załącznik 1 - F.O. Części 1-2'!$C$43:$G$185,5,0),0)","v":0},599,0]
[null,106,"Nektar multiwitamina CAPPY, 12 butelek x 0,33 l","Doskonały nektar owocowy W butelkach PET 0,33 l Jednostka sprzedaży: 1 zgrzewka (12 butelek)","1 op. (12 butelek)",{"$f":"IF('Załącznik 1 - F.O. Części 1-2'!$V$47,VLOOKUP(C127,'Załącznik 1 - F.O. Części 1-2'!$C$43:$G$185,5,0),0)","v":0},12,0]
[null,107,"Sok pomarańczowy CAPPY, 12 butelek x 0,33 l","Doskonały sok owocowy W butelkach PET 0,33 l Jednostka sprzedaży: 1 zgrzewka (12 butelek)","1 op. (12 butelek)",{"$f":"IF('Załącznik 1 - F.O. Części 1-2'!$V$47,VLOOKUP(C128,'Załącznik 1 - F.O. Części 1-2'!$C$43:$G$185,5,0),0)","v":0},21,0]
[null,108,"Zagęszczony sok cytrynowy CHAMPION, 10 kubeczków x 7,5 g","100% sok z cytryny z naturalnego zagęszczonego, naturalnie mętnego soku cytrynowego Bez konserwantów i sztucznych barwników Jednostka sprzedaży: 1 opakowanie (10 x 7,5 g) ","1 op. (10 kubeczków)",{"$f":"IF('Załącznik 1 - F.O. Części 1-2'!$V$47,VLOOKUP(C129,'Załącznik 1 - F.O. Części 1-2'!$C$43:$G$185,5,0),0)","v":0},18,0]
[null,109,"Napój gazowany COCA-COLA, zgrzewka 18 butelek x 0,5 l","Napókj gazowany.Bez konserwantów, w butelce plastikowej PET.Jednostka sprzedaży: 1 zgrzewka (18 butelek)","1 op. (18 butelek)",{"$f":"IF('Załącznik 1 - F.O. Części 1-2'!$V$47,VLOOKUP(C130,'Załącznik 1 - F.O. Części 1-2'!$C$43:$G$185,5,0),0)","v":0},153,0]
[null,110,"Napój gazowany COCA-COLA, 24 puszki x 0,33 l","Lider wśród napojów gazowanych Bez konserwantów dostępny w puszce Jednostka sprzedaży: 1 zgrzewka (24 puszki 0,33 l)","1 op. (24 puszki 0,33 l)",{"$f":"IF('Załącznik 1 - F.O. Części 1-2'!$V$47,VLOOKUP(C131,'Załącznik 1 - F.O. Części 1-2'!$C$43:$G$185,5,0),0)","v":0},16,0]
[null,111,"Napój gazowany COCA-COLA Zero, 12 butelek x 0,5 l","Lider wśród napojów gazowanych Bez konserwantów, dostępny w plastikowej butelce Jednostka sprzedaży: 1 zgrzewka (12 butelek 0,5 l)","1 op. (12 butelek)",{"$f":"IF('Załącznik 1 - F.O. Części 1-2'!$V$47,VLOOKUP(C132,'Załącznik 1 - F.O. Części 1-2'!$C$43:$G$185,5,0),0)","v":0},7,0]
[null,112,"Nektar czarna porzeczka FORTUNA, 15 butelek x 0,3 l","Nektar w butelce szklanej 0,3 l Opakowanie 15 butelek","1 op. (15 butelek)",{"$f":"IF('Załącznik 1 - F.O. Części 1-2'!$V$47,VLOOKUP(C133,'Załącznik 1 - F.O. Części 1-2'!$C$43:$G$185,5,0),0)","v":0},39,0]
[null,113,"Sok multiwitamina FORTUNA, 15 butelek x 0,3 l","Sok multiwitamina FORTUNA, 15 butelek x 0,3 lSok w butelce szklanej 0,3 l Opakowanie 15 butelek","1 op. (15 butelek)",{"$f":"IF('Załącznik 1 - F.O. Części 1-2'!$V$47,VLOOKUP(C134,'Załącznik 1 - F.O. Części 1-2'!$C$43:$G$185,5,0),0)","v":0},234,0]
[null,114,"Sok pomarańczowy FORTUNA, 15 butelek x 0,3 l","Sok w butelce szklanej 0,3 l Opakowanie 15 butelek","1 op. (15 butelek)",{"$f":"IF('Załącznik 1 - F.O. Części 1-2'!$V$47,VLOOKUP(C135,'Załącznik 1 - F.O. Części 1-2'!$C$43:$G$185,5,0),0)","v":0},43,0]
[null,115,"Sok pomidorowy FORTUNA, 15 butelek x 0,3 l","Sok pomidorowy w szklanej butelce 0,3 l Jednostka sprzedaży: 1 zgrzewka (15 butelek)","1 op. (15 butelek)",{"$f":"IF('Załącznik 1 - F.O. Części 1-2'!$V$47,VLOOKUP(C136,'Załącznik 1 - F.O. Części 1-2'!$C$43:$G$185,5,0),0)","v":0},18,0]
[null,116,"Nektar czarna porzeczka TARCZYN, 15 butelek x 0,3 l","Esencjonalny napój w szklanych butelkach z nakrętką z ciekawostkami Jednostka sprzedaży: 1 zgrzewka (15 butelek)","1 op. (15 butelek)",{"$f":"IF('Załącznik 1 - F.O. Części 1-2'!$V$47,VLOOKUP(C137,'Załącznik 1 - F.O. Części 1-2'!$C$43:$G$185,5,0),0)","v":0},16,0]
[null,117,"Nektar czerwony grejpfrut TARCZYN, zgrzewka 15 butelek x 0,3 l","Nektar czerwony grejpfrut TARCZYN, zgrzewka 15 butelek szklanych o pojemnosci 300 ml","1 op. (15 butelek)",{"$f":"IF('Załącznik 1 - F.O. Części 1-2'!$V$47,VLOOKUP(C138,'Załącznik 1 - F.O. Części 1-2'!$C$43:$G$185,5,0),0)","v":0},82,0]
[null,118,"Sok jabłkowy TARCZYN, 15 butelek x 0,3 l","Esencjonalny sok w szklanych butelkach z nakrętką z ciekawostkami Jednostka sprzedaży: 1 zgrzewka (15 butelek)","1 op. (15 butelek)",{"$f":"IF('Załącznik 1 - F.O. Części 1-2'!$V$47,VLOOKUP(C139,'Załącznik 1 - F.O. Części 1-2'!$C$43:$G$185,5,0),0)","v":0},55,0]
[null,119,"Nektar pomarańczowy TARCZYN, 15 butelek x 0,25 l","Esencjonalny nektar w szklanych butelkach z nakrętką z ciekawostkami Jednostka sprzedaży: 1 zgrzewka (15 butelek)","1 op. (15 butelek)",{"$f":"IF('Załącznik 1 - F.O. Części 1-2'!$V$47,VLOOKUP(C140,'Załącznik 1 - F.O. Części 1-2'!$C$43:$G$185,5,0),0)","v":0},77,0]
[null,120,"Sok pomidorowy TARCZYN, zgrzewka 15 butelek x 0,3 l","Sok pomidorowy TARCZYN, zgrzewka 15 butelek  szklanych o pojemności  300ml","1 op. (15 butelek)",{"$f":"IF('Załącznik 1 - F.O. Części 1-2'!$V$47,VLOOKUP(C141,'Załącznik 1 - F.O. Części 1-2'!$C$43:$G$185,5,0),0)","v":0},239,0]
[null,121,"Sok TYMBARK jabłko 100%, 12 butelek x 300 ml","Sok TYMBARK jabłko 100%, 12 butelek x 300 ml Sok został stworzony w 100% ze starannie wyselekcjonowanych gatunków owoców. ","1 op. (12 butelek)",{"$f":"IF('Załącznik 1 - F.O. Części 1-2'!$V$47,VLOOKUP(C142,'Załącznik 1 - F.O. Części 1-2'!$C$43:$G$185,5,0),0)","v":0},113,0]
[null,122,"Sok TYMBARK pomarańcza 100%, 12 butelek x 300 ml","Sok TYMBARK pomarańcza 100%, 12 butelek x 300 ml Sok został stworzony w 100% ze starannie wyselekcjonowanych gatunków owoców. ","1 op. (12 butelek)",{"$f":"IF('Załącznik 1 - F.O. Części 1-2'!$V$47,VLOOKUP(C143,'Załącznik 1 - F.O. Części 1-2'!$C$43:$G$185,5,0),0)","v":0},16,0]
[null,123,"Sok TYMBARK pomidor 100%, 12 butelek x 250 ml","Sok TYMBARK pomidor 100%, 12 butelek x 250 ml Sok został stworzony w 100% ze starannie wyselekcjonowanych gatunków owoców. ","1 op. (12 butelek)",{"$f":"IF('Załącznik 1 - F.O. Części 1-2'!$V$47,VLOOKUP(C144,'Załącznik 1 - F.O. Części 1-2'!$C$43:$G$185,5,0),0)","v":0},16,0]
[null,124,"Sok TYMBARK Vitamini banan, marchewka, jabłko, 12 butelek x 300 ml","Sok TYMBARK Vitamini banan, marchewka, jabłko, 12 butelek x 300 ml Vitamini ma smak bananowo – jabłkowo - marchewkowy ","1 op. (12 butelek)",{"$f":"IF('Załącznik 1 - F.O. Części 1-2'!$V$47,VLOOKUP(C145,'Załącznik 1 - F.O. Części 1-2'!$C$43:$G$185,5,0),0)","v":0},5,0]
[null,125,"Woda mineralna CISOWIANKA lekko gazowana, zgrzewka 12 butelek x 0,5 l","Naturalnie niskosodowa woda mineralna, odpowiednia dla diety ubogiej w sód Średnia mineralizacja i subtelny smak sprawiają, że Cisowianka jest idealną wodą na każdą okazję Jednostka sprzedaży: 1 zgrzewka (12 sztuk) ","1 op. (12 butelek)",{"$f":"IF('Załącznik 1 - F.O. Części 1-2'!$V$47,VLOOKUP(C146,'Załącznik 1 - F.O. Części 1-2'!$C$43:$G$185,5,0),0)","v":0},174,0]
[null,126,"Woda mineralna CISOWIANKA Perlage gazowana, zgrzewka 24 butelki x 300 ml","Woda musująca w szklanej butelce Subtelnie orzeźwiająca Zamknięta w eleganckiej szklanej butelce Pasuje zarówno do kameralnego spotkania służbowego, jak i dużej konferencji Nie zakłóca smaku dań Niskosodowa Pojemność butelki: 0,3 l Jednostka sprzedaży: 1 karton (24 butelki)","1 op. (24 butelki)",{"$f":"IF('Załącznik 1 - F.O. Części 1-2'!$V$47,VLOOKUP(C147,'Załącznik 1 - F.O. Części 1-2'!$C$43:$G$185,5,0),0)","v":0},113,0]
[null,127,"Woda mineralna CISOWIANKA gazowana, zgrzewka 6 butelek x 1,5 l","Naturalnie niskosodowa woda mineralna, odpowiednia dla diety ubogiej w sód Średnia mineralizacja i subtelny smak sprawiają, że Cisowianka jest idealną wodą na każdą okazję Jednostka sprzedaży: 1 zgrzewka (6 butelek) ","1 op. (6 butelek)",{"$f":"IF('Załącznik 1 - F.O. Części 1-2'!$V$47,VLOOKUP(C148,'Załącznik 1 - F.O. Części 1-2'!$C$43:$G$185,5,0),0)","v":0},7,0]
[null,128,"Woda mineralna CISOWIANKA niegazowana szklane butelki 24 x 300 ml","Woda mineralna CISOWIANKA niegazowana Subtelnie orzeźwiająca Zamknięta w eleganckiej szklanej butelce Niskosodowa, średniozmineralizowana","1 op. (24 butelki)",{"$f":"IF('Załącznik 1 - F.O. Części 1-2'!$V$47,VLOOKUP(C149,'Załącznik 1 - F.O. Części 1-2'!$C$43:$G$185,5,0),0)","v":0},54,0]
[null,129,"Woda mineralna CISOWIANKA niegazowana, zgrzewka 12 butelek x 0,5 l","Naturalnie niskosodowa woda mineralna, odpowiednia dla diety ubogiej w sód Średnia mineralizacja i subtelny smak sprawiają, że Cisowianka jest idealną wodą na każdą okazję Jednostka sprzedaży: 1 zgrzewka (12 butelek) ","1 op. (12 butelek)",{"$f":"IF('Załącznik 1 - F.O. Części 1-2'!$V$47,VLOOKUP(C150,'Załącznik 1 - F.O. Części 1-2'!$C$43:$G$185,5,0),0)","v":0},300,0]
[null,130,"Woda mineralna CISOWIANKA niegazowana, zgrzewka 6 butelek x 1,5 l","Naturalnie niskosodowa woda mineralna, odpowiednia dla diety ubogiej w sód Średnia mineralizacja i subtelny smak sprawiają, że Cisowianka jest idealną wodą na każdą okazję Jednostka sprzedaży: 1 zgrzewka (6 butelek) ","1 op. (6 butelek)",{"$f":"IF('Załącznik 1 - F.O. Części 1-2'!$V$47,VLOOKUP(C151,'Załącznik 1 - F.O. Części 1-2'!$C$43:$G$185,5,0),0)","v":0},167,{"$f":"G151*F151","v":0}]
[null,131,"Woda mineralna CISOWIANKA Sport niegazowana, zgrzewka 8 butelek x 0,7 l","Naturalnie niskosodowa woda mineralna odpowiednia dla diety ubogiej w sód Średnio zmineralizowana W wygodnej butelce z dziubkiem Jednostka sprzedaży: 1 zgrzewka (8 butelek) ","1 op. (8 butelek)",{"$f":"IF('Załącznik 1 - F.O. Części 1-2'!$V$47,VLOOKUP(C152,'Załącznik 1 - F.O. Części 1-2'!$C$43:$G$185,5,0),0)","v":0},7,0]
[null,132,"Woda mineralna KINGA PIENIŃSKA gazowana zgrzewka 12 butelek x 0,5 l","Naturalna woda mineralna czerpana w otulinie Pienińskiego Parku Narodowego. Niskosodowa o średniej mineralizacji","1 op. (12 butelek)",{"$f":"IF('Załącznik 1 - F.O. Części 1-2'!$V$47,VLOOKUP(C153,'Załącznik 1 - F.O. Części 1-2'!$C$43:$G$185,5,0),0)","v":0},1,0]
[null,133,"Woda mineralna KINGA PIENIŃSKA niegazowana, zgrzewka 12 butelek x 0,5 l","Naturalna woda mineralna czerpana w otulinie Pienińskiego Parku Narodowego Niskosodowa o średniej mineralizacji Górska, orzeźwiająca, z podziemnych źródeł Pienin Polecana przez sommelierów i szefów kuchni Jednostka sprzedaży: 1 zgrzewka (12 butelek)","1 op. (12 butelek)",{"$f":"IF('Załącznik 1 - F.O. Części 1-2'!$V$47,VLOOKUP(C154,'Załącznik 1 - F.O. Części 1-2'!$C$43:$G$185,5,0),0)","v":0},10,0]
[null,134,"Woda mineralna KROPLA BESKIDU gazowana, zgrzewka 12 butelek x 0,5 l","Naturalna woda mineralna z górskich źródeł Beskidu Sądeckiego Niskozmineralizowana - do spożywania bez ograniczeń, dla osób w każdym wieku Jednostka sprzedaży: 1 zgrzewka (12 butelek) ","1 op. (12 butelek)",{"$f":"IF('Załącznik 1 - F.O. Części 1-2'!$V$47,VLOOKUP(C155,'Załącznik 1 - F.O. Części 1-2'!$C$43:$G$185,5,0),0)","v":0},18,0]
[null,135,"Woda mineralna KROPLA BESKIDU gazowana, zgrzewka 6 butelek x 1,5 l","Naturalna woda mineralna z górskich źródeł Beskidu Sądeckiego Niskozmineralizowana - do spożywania bez ograniczeń, dla osób w każdym wieku Jednostka sprzedaży: 1 zgrzewka (6 butelek)","1 op. (6 butelek)",{"$f":"IF('Załącznik 1 - F.O. Części 1-2'!$V$47,VLOOKUP(C156,'Załącznik 1 - F.O. Części 1-2'!$C$43:$G$185,5,0),0)","v":0},1,0]
[null,136,"Woda mineralna KROPLA BESKIDU niegazowana, zgrzewka 12 butelek x 0,5 l","Naturalna woda mineralna z górskich źródeł Beskidu Sądeckiego Niskozmineralizowana - do spożywania bez ograniczeń, dla osób w każdym wieku Jednostka sprzedaży: 1 zgrzewka (12 butelek) ","1 op. (12 butelek)",{"$f":"IF('Załącznik 1 - F.O. Części 1-2'!$V$47,VLOOKUP(C157,'Załącznik 1 - F.O. Części 1-2'!$C$43:$G$185,5,0),0)","v":0},27,0]
[null,137,"Woda mineralna NAŁĘCZOWIANKA niegazowana, zgrzewka 12 butelek x 0,5 l","Naturalna woda mineralna wydobywana z krystalicznie czystego, doskonale chronionego przez naturę źródła w sercu Nałęczowa Posiada pozytywną opinię Instytutu Matki i Dziecka Średniozmineralizowana, niskosodowa Jednostka sprzedaży: 1 zgrzewka (12 butelek) ","1 op. (12 butelek)",{"$f":"IF('Załącznik 1 - F.O. Części 1-2'!$V$47,VLOOKUP(C158,'Załącznik 1 - F.O. Części 1-2'!$C$43:$G$185,5,0),0)","v":0},5,0]
[null,138,"Woda mineralna NAŁĘCZOWIANKA niegazowana, zgrzewka 6 butelek x 1,5 l","Naturalna woda mineralna wydobywana z krystalicznie czystego, doskonale chronionego przez naturę źródła w sercu Nałęczowa Posiada pozytywną opinię Instytutu Matki i Dziecka Średniozmineralizowana, niskosodowa Jednostka sprzedaży: 1 zgrzewka (6 butelek) ","1 op. (6 butelek)",{"$f":"IF('Załącznik 1 - F.O. Części 1-2'!$V$47,VLOOKUP(C159,'Załącznik 1 - F.O. Części 1-2'!$C$43:$G$185,5,0),0)","v":0},1,0]
[null,139,"Woda źródlana ŻYWIOŁ od ŻYWIEC ZDRÓJ gazowana, 24 butelki x 0,5 l","Niskozmineralizowana woda żródlana najwyższej jakości Jednostka sprzedaży: 1 zgrzewka (24 butelki x 0,5 l) ","1 op. (24 butelki)",{"$f":"IF('Załącznik 1 - F.O. Części 1-2'!$V$47,VLOOKUP(C160,'Załącznik 1 - F.O. Części 1-2'!$C$43:$G$185,5,0),0)","v":0},61,0]
[null,140,"Woda źródlana ŻYWIOŁ od ŻYWIEC ZDRÓJ gazowana, zgrzewka 6 butelek x 1,5 l","Niskozmineralizowana woda żródlana najwyższej jakości Jednostka sprzedaży: 1 zgrzewka (6 butelek) ","1 op. ( 6 butelek)",{"$f":"IF('Załącznik 1 - F.O. Części 1-2'!$V$47,VLOOKUP(C161,'Załącznik 1 - F.O. Części 1-2'!$C$43:$G$185,5,0),0)","v":0},66,0]
[null,141,"Woda źródlana ŻYWIEC ZDRÓJ niegazowana, 24 butelki x 0,5 l","Niskozmineralizowana woda żródlana najwyższej jakości Niskosodowa Rekomendowana przez Instytut Matki i Dziecka w żywieniu niemowląt i dzieci Jednostka sprzedaży: 1 zgrzewka (24 butelki x 0,5 l) ","1 op. (24 butelki)",{"$f":"IF('Załącznik 1 - F.O. Części 1-2'!$V$47,VLOOKUP(C162,'Załącznik 1 - F.O. Części 1-2'!$C$43:$G$185,5,0),0)","v":0},400,0]
[null,142,"Woda źródlana ŻYWIEC ZDRÓJ niegazowana, zgrzewka 6 butelek x 1,5 l","Niskozmineralizowana woda żródlana najwyższej jakości Niskosodowa Rekomendowana przez Instytut Matki i Dziecka w żywieniu niemowląt i dzieci Jednostka sprzedaży: 1 zgrzewka (6 butelek) ","1 op. (6 butelek)",{"$f":"IF('Załącznik 1 - F.O. Części 1-2'!$V$47,VLOOKUP(C163,'Załącznik 1 - F.O. Części 1-2'!$C$43:$G$185,5,0),0)","v":0},1,0]
[null,null,null,null,null,null,"Łączna wartość dla Części 2",{"$f":"SUM(H21:H163)","v":0}]
[]
[]
[]
[]
[null,null,{"$f":"'Załącznik 1 - F.O. Części 1-2'!B188","v":"00:00:00"}]
[null,null,"miejscowość i data",null,null,"Pieczęć imienna i podpis przedstawiciela(i) Wykonawcy"]

{"sheet":"zad1","index":5,"n_rows":13,"n_cols":10,"rows_kept":13,"cut":false,"hidden":true,"merged":[[0,6,0,7]]}
[{"$f":"'Załącznik 1 - F.O. Części 1-2'!D19","v":0},null,null,null,null,null,"jeżeli \"naście\""]
[null,null,"0-5","6-9","0-5","6-9","0-5","6-9","dodatek","sumuj te ciągi"]
[{"$f":"INT(A$1/10000000)","v":0},null,{"$f":"IF(AND(A3>=0,A3<=5),1,0)","v":1},{"$f":"IF(AND(A3>=6,A3<=9),1,0)","v":0},{"$f":"IF(A3=0,\"\",IF(A3=1,IF(A4=0,\"dziesięć milionów \",\"\"),IF(A3=2,\"dwadzieścia \",IF(A3=3,\"trzydzieści \",IF(A3=4,\"czterdzieści \",IF(A3=5,\"pięćdziesiąt \",\"\"))))))","v":""},{"$f":"IF(A3=6,\"sześćdziesiąt \",IF(A3=7,\"siedemdziesiąt \",IF(A3=8,\"osiemdziesiąt \",IF(A3=9,\"dziewięćdziesiąt \",\"\"))))","v":""},null,null,null,{"$f":"IF(C3,E3&I3,IF(D3,F3&I3,\"\"))","v":""}]
[{"$f":"INT(A$1/1000000)-A3*10","v":0},null,1,0,{"$f":"IF(A4=0,IF(AND(A3<>0,A3<>1),\"milionów \",\"\"),IF(A4=1,IF(A3=0,\"jeden milion \",\"jeden milionów \"),IF(A4=2,\"dwa miliony \",IF(A4=3,\"trzy miliony \",IF(A4=4,\"cztery miliony \",IF(A4=5,\"pięć milionów \",\"\"))))))","v":""},{"$f":"IF(A4=6,\"sześć milionów \",IF(A4=7,\"siedem milionów \",IF(A4=8,\"osiem milionów \",IF(A4=9,\"dziewięć milionów \",\"\"))))","v":""},{"$f":"IF(A4=0,\"\",IF(A4=1,\"jedenaście milionów \",IF(A4=2,\"dwanaście milionów \",IF(A4=3,\"trzynaście milionów \",IF(A4=4,\"czternaście milionów \",IF(A4=5,\"piętnaście milionów \",\"\"))))))","v":""},{"$f":"IF(A4=6,\"szesnaście milionów \",IF(A4=7,\"siedemnaście milionów \",IF(A4=8,\"osiemnaście milionów \",IF(A4=9,\"dziewiętnaście milionów \",\"\"))))","v":""},null,{"$f":"IF(A3=1,IF(C4,G4,IF(D4,H4)),IF(C4,E4,IF(D4,F4,\"\")))","v":""}]
[{"$f":"INT(A$1/100000)-10*A4-100*A3","v":0},null,1,0,{"$f":"IF(A5=0,\"\",IF(A5=1,\"sto \",IF(A5=2,\"dwieście \",IF(A5=3,\"trzysta \",IF(A5=4,\"czterysta \",IF(A5=5,\"pięćset \",\"\"))))))","v":""},{"$f":"IF(A5=6,\"sześćset \",IF(A5=7,\"siedemset \",IF(A5=8,\"osiemset \",IF(A5=9,\"dziewięćset \",\"\"))))","v":""},null,null,null,{"$f":"IF(C5,E5&I5,IF(D5,F5&I5,\"\"))","v":""}]
[{"$f":"INT(A$1/10000)-10*A5-100*A4-1000*A3","v":0},null,1,0,{"$f":"IF(A6=0,\"\",IF(A6=1,IF(A7=0,\"dziesięć tysięcy \",\"\"),IF(A6=2,\"dwadzieścia \",IF(A6=3,\"trzydzieści \",IF(A6=4,\"czterdzieści \",IF(A6=5,\"pięćdziesiąt \",\"\"))))))","v":""},{"$f":"IF(A6=6,\"sześćdziesiąt \",IF(A6=7,\"siedemdziesiąt \",IF(A6=8,\"osiemdziesiąt \",IF(A6=9,\"dziewięćdziesiąt \",\"\"))))","v":""},null,null,null,{"$f":"IF(C6,E6&I6,IF(D6,F6&I6,\"\"))","v":""}]
[{"$f":"INT(A$1/1000)-10*A6-100*A5-1000*A4-10000*A3","v":0},null,1,0,{"$f":"IF(A7=0,IF(OR(AND(A6<>0,A6<>1),AND(A5<>0,A6=0)),\"tysięcy \",\"\"),IF(A7=1,IF(AND(A5=0,A6=0),\"jeden tysiąc \",\"jeden tysięcy \"),IF(A7=2,\"dwa tysiące \",IF(A7=3,\"trzy tysiące \",IF(A7=4,\"cztery tysiące \",IF(A7=5,\"pięć tysięcy \",\"\"))))))","v":""},{"$f":"IF(A7=6,\"sześć tysięcy \",IF(A7=7,\"siedem tysięcy \",IF(A7=8,\"osiem tysięcy \",IF(A7=9,\"dziewięć tysięcy \",\"\"))))","v":""},{"$f":"IF(A7=0,\"\",IF(A7=1,\"jedenaście tysięcy \",IF(A7=2,\"dwanaście tysięcy \",IF(A7=3,\"trzynaście tysięcy \",IF(A7=4,\"czternaście tysięcy \",IF(A7=5,\"piętnaście tysięcy \",\"\"))))))","v":""},{"$f":"IF(A7=6,\"szesnaście tysięcy \",IF(A7=7,\"siedemnaście tysięcy \",IF(A7=8,\"osiemnaście tysięcy \",IF(A7=9,\"dziewiętnaście tysięcy \",\"\"))))","v":""},null,{"$f":"IF(A6=1,IF(C7,G7,IF(D7,H7)),IF(C7,E7,IF(D7,F7,\"\")))","v":""}]
[{"$f":"INT(A$1/100)-10*A7-100*A6-1000*A5-10000*A4-100000*A3","v":0},null,1,0,{"$f":"IF(A8=0,\"\",IF(A8=1,\"sto \",IF(A8=2,\"dwieście \",IF(A8=3,\"trzysta \",IF(A8=4,\"czterysta \",IF(A8=5,\"pięćset \",\"\"))))))","v":""},{"$f":"IF(A8=6,\"sześćset \",IF(A8=7,\"siedemset \",IF(A8=8,\"osiemset \",IF(A8=9,\"dziewięćset \",\"\"))))","v":""},null,null,null,{"$f":"IF(C8,E8&I8,IF(D8,F8&I8,\"\"))","v":""}]
[{"$f":"INT(A$1/10)-10*A8-100*A7-1000*A6-10000*A5-100000*A4-1000000*A3","v":0},null,1,0,{"$f":"IF(A9=0,\"\",IF(A9=1,IF(A10=0,\"dziesięć \",\"\"),IF(A9=2,\"dwadzieścia \",IF(A9=3,\"trzydzieści \",IF(A9=4,\"czterdzieści \",IF(A9=5,\"pięćdziesiąt \",\"\"))))))","v":""},{"$f":"IF(A9=6,\"sześćdziesiąt \",IF(A9=7,\"siedemdziesiąt \",IF(A9=8,\"osiemdziesiąt \",IF(A9=9,\"dziewięćdziesiąt \",\"\"))))","v":""},null,null,null,{"$f":"IF(C9,E9&I9,IF(D9,F9&I9,\"\"))","v":""}]
[{"$f":"INT(A$1)-10*A9-100*A8-1000*A7-10000*A6-100000*A5-1000000*A4-10000000*A3","v":0},null,1,0,{"$f":"IF(A10=0,\"\",IF(A10=1,\"jeden \",IF(A10=2,\"dwa \",IF(A10=3,\"trzy \",IF(A10=4,\"cztery \",IF(A10=5,\"pięć \",\"\"))))))","v":""},{"$f":"IF(A10=6,\"sześć \",IF(A10=7,\"siedem \",IF(A10=8,\"osiem \",IF(A10=9,\"dziewięć \",\"\"))))","v":""},{"$f":"IF(A10=0,\"\",IF(A10=1,\"jedenaście \",IF(A10=2,\"dwanaście \",IF(A10=3,\"trzynaście \",IF(A10=4,\"czternaście \",IF(A10=5,\"piętnaście \",\"\"))))))","v":""},{"$f":"IF(A10=6,\"szesnaście \",IF(A10=7,\"siedemnaście \",IF(A10=8,\"osiemnaście \",IF(A10=9,\"dziewiętnaście \",\"\"))))","v":""},null,{"$f":"IF(A9=1,IF(C10,G10,IF(D10,H10)),IF(C10,E10,IF(D10,F10,\"\")))","v":""}]
[{"$f":"ROUND((A1-TRUNC(A1,0))*100,0)","v":0},null,null,null,null,null,null,null,null,{"$f":"\"zł \"&TEXT(A11,\"00\")&\"/100\"","v":"zł 00/100"}]
[null,null,null,null,"Słownie:"]
[{"$f":"TRUNC(A1,1)","v":0},null,null,null,{"$f":"J3&J4&J5&J6&J7&J8&J9&J10&J11","v":"zł 00/100"}]

{"sheet":"zad2","index":6,"n_rows":13,"n_cols":10,"rows_kept":13,"cut":false,"hidden":true,"merged":[[0,6,0,7]]}
[{"$f":"'Załącznik 1 - F.O. Części 1-2'!D22","v":0},null,null,null,null,null,"jeżeli \"naście\""]
[null,null,"0-5","6-9","0-5","6-9","0-5","6-9","dodatek","sumuj te ciągi"]
[{"$f":"INT(A$1/10000000)","v":0},null,{"$f":"IF(AND(A3>=0,A3<=5),1,0)","v":1},{"$f":"IF(AND(A3>=6,A3<=9),1,0)","v":0},{"$f":"IF(A3=0,\"\",IF(A3=1,IF(A4=0,\"dziesięć milionów \",\"\"),IF(A3=2,\"dwadzieścia \",IF(A3=3,\"trzydzieści \",IF(A3=4,\"czterdzieści \",IF(A3=5,\"pięćdziesiąt \",\"\"))))))","v":""},{"$f":"IF(A3=6,\"sześćdziesiąt \",IF(A3=7,\"siedemdziesiąt \",IF(A3=8,\"osiemdziesiąt \",IF(A3=9,\"dziewięćdziesiąt \",\"\"))))","v":""},null,null,null,{"$f":"IF(C3,E3&I3,IF(D3,F3&I3,\"\"))","v":""}]
[{"$f":"INT(A$1/1000000)-A3*10","v":0},null,1,0,{"$f":"IF(A4=0,IF(AND(A3<>0,A3<>1),\"milionów \",\"\"),IF(A4=1,IF(A3=0,\"jeden milion \",\"jeden milionów \"),IF(A4=2,\"dwa miliony \",IF(A4=3,\"trzy miliony \",IF(A4=4,\"cztery miliony \",IF(A4=5,\"pięć milionów \",\"\"))))))","v":""},{"$f":"IF(A4=6,\"sześć milionów \",IF(A4=7,\"siedem milionów \",IF(A4=8,\"osiem milionów \",IF(A4=9,\"dziewięć milionów \",\"\"))))","v":""},{"$f":"IF(A4=0,\"\",IF(A4=1,\"jedenaście milionów \",IF(A4=2,\"dwanaście milionów \",IF(A4=3,\"trzynaście milionów \",IF(A4=4,\"czternaście milionów \",IF(A4=5,\"piętnaście milionów \",\"\"))))))","v":""},{"$f":"IF(A4=6,\"szesnaście milionów \",IF(A4=7,\"siedemnaście milionów \",IF(A4=8,\"osiemnaście milionów \",IF(A4=9,\"dziewiętnaście milionów \",\"\"))))","v":""},null,{"$f":"IF(A3=1,IF(C4,G4,IF(D4,H4)),IF(C4,E4,IF(D4,F4,\"\")))","v":""}]
[{"$f":"INT(A$1/100000)-10*A4-100*A3","v":0},null,1,0,{"$f":"IF(A5=0,\"\",IF(A5=1,\"sto \",IF(A5=2,\"dwieście \",IF(A5=3,\"trzysta \",IF(A5=4,\"czterysta \",IF(A5=5,\"pięćset \",\"\"))))))","v":""},{"$f":"IF(A5=6,\"sześćset \",IF(A5=7,\"siedemset \",IF(A5=8,\"osiemset \",IF(A5=9,\"dziewięćset \",\"\"))))","v":""},null,null,null,{"$f":"IF(C5,E5&I5,IF(D5,F5&I5,\"\"))","v":""}]
[{"$f":"INT(A$1/10000)-10*A5-100*A4-1000*A3","v":0},null,1,0,{"$f":"IF(A6=0,\"\",IF(A6=1,IF(A7=0,\"dziesięć tysięcy \",\"\"),IF(A6=2,\"dwadzieścia \",IF(A6=3,\"trzydzieści \",IF(A6=4,\"czterdzieści \",IF(A6=5,\"pięćdziesiąt \",\"\"))))))","v":""},{"$f":"IF(A6=6,\"sześćdziesiąt \",IF(A6=7,\"siedemdziesiąt \",IF(A6=8,\"osiemdziesiąt \",IF(A6=9,\"dziewięćdziesiąt \",\"\"))))","v":""},null,null,null,{"$f":"IF(C6,E6&I6,IF(D6,F6&I6,\"\"))","v":""}]
[{"$f":"INT(A$1/1000)-10*A6-100*A5-1000*A4-10000*A3","v":0},null,1,0,{"$f":"IF(A7=0,IF(OR(AND(A6<>0,A6<>1),AND(A5<>0,A6=0)),\"tysięcy \",\"\"),IF(A7=1,IF(AND(A5=0,A6=0),\"jeden tysiąc \",\"jeden tysięcy \"),IF(A7=2,\"dwa tysiące \",IF(A7=3,\"trzy tysiące \",IF(A7=4,\"cztery tysiące \",IF(A7=5,\"pięć tysięcy \",\"\"))))))","v":""},{"$f":"IF(A7=6,\"sześć tysięcy \",IF(A7=7,\"siedem tysięcy \",IF(A7=8,\"osiem tysięcy \",IF(A7=9,\"dziewięć tysięcy \",\"\"))))","v":""},{"$f":"IF(A7=0,\"\",IF(A7=1,\"jedenaście tysięcy \",IF(A7=2,\"dwanaście tysięcy \",IF(A7=3,\"trzynaście tysięcy \",IF(A7=4,\"czternaście tysięcy \",IF(A7=5,\"piętnaście tysięcy \",\"\"))))))","v":""},{"$f":"IF(A7=6,\"szesnaście tysięcy \",IF(A7=7,\"siedemnaście tysięcy \",IF(A7=8,\"osiemnaście tysięcy \",IF(A7=9,\"dziewiętnaście tysięcy \",\"\"))))","v":""},null,{"$f":"IF(A6=1,IF(C7,G7,IF(D7,H7)),IF(C7,E7,IF(D7,F7,\"\")))","v":""}]
[{"$f":"INT(A$1/100)-10*A7-100*A6-1000*A5-10000*A4-100000*A3","v":0},null,1,0,{"$f":"IF(A8=0,\"\",IF(A8=1,\"sto \",IF(A8=2,\"dwieście \",IF(A8=3,\"trzysta \",IF(A8=4,\"czterysta \",IF(A8=5,\"pięćset \",\"\"))))))","v":""},{"$f":"IF(A8=6,\"sześćset \",IF(A8=7,\"siedemset \",IF(A8=8,\"osiemset \",IF(A8=9,\"dziewięćset \",\"\"))))","v":""},null,null,null,{"$f":"IF(C8,E8&I8,IF(D8,F8&I8,\"\"))","v":""}]
[{"$f":"INT(A$1/10)-10*A8-100*A7-1000*A6-10000*A5-100000*A4-1000000*A3","v":0},null,1,0,{"$f":"IF(A9=0,\"\",IF(A9=1,IF(A10=0,\"dziesięć \",\"\"),IF(A9=2,\"dwadzieścia \",IF(A9=3,\"trzydzieści \",IF(A9=4,\"czterdzieści \",IF(A9=5,\"pięćdziesiąt \",\"\"))))))","v":""},{"$f":"IF(A9=6,\"sześćdziesiąt \",IF(A9=7,\"siedemdziesiąt \",IF(A9=8,\"osiemdziesiąt \",IF(A9=9,\"dziewięćdziesiąt \",\"\"))))","v":""},null,null,null,{"$f":"IF(C9,E9&I9,IF(D9,F9&I9,\"\"))","v":""}]
[{"$f":"INT(A$1)-10*A9-100*A8-1000*A7-10000*A6-100000*A5-1000000*A4-10000000*A3","v":0},null,1,0,{"$f":"IF(A10=0,\"\",IF(A10=1,\"jeden \",IF(A10=2,\"dwa \",IF(A10=3,\"trzy \",IF(A10=4,\"cztery \",IF(A10=5,\"pięć \",\"\"))))))","v":""},{"$f":"IF(A10=6,\"sześć \",IF(A10=7,\"siedem \",IF(A10=8,\"osiem \",IF(A10=9,\"dziewięć \",\"\"))))","v":""},{"$f":"IF(A10=0,\"\",IF(A10=1,\"jedenaście \",IF(A10=2,\"dwanaście \",IF(A10=3,\"trzynaście \",IF(A10=4,\"czternaście \",IF(A10=5,\"piętnaście \",\"\"))))))","v":""},{"$f":"IF(A10=6,\"szesnaście \",IF(A10=7,\"siedemnaście \",IF(A10=8,\"osiemnaście \",IF(A10=9,\"dziewiętnaście \",\"\"))))","v":""},null,{"$f":"IF(A9=1,IF(C10,G10,IF(D10,H10)),IF(C10,E10,IF(D10,F10,\"\")))","v":""}]
[{"$f":"ROUND((A1-TRUNC(A1,0))*100,0)","v":0},null,null,null,null,null,null,null,null,{"$f":"\"zł \"&TEXT(A11,\"00\")&\"/100\"","v":"zł 00/100"}]
[null,null,null,null,"Słownie:"]
[{"$f":"TRUNC(A1,1)","v":0},null,null,null,{"$f":"J3&J4&J5&J6&J7&J8&J9&J10&J11","v":"zł 00/100"}]

{"sheet":"zad3","index":7,"n_rows":13,"n_cols":10,"rows_kept":13,"cut":false,"hidden":true,"merged":[[0,6,0,7]]}
[{"$f":"'Załącznik 1 - F.O. Części 1-2'!#REF!","v":{"$error":"#REF!"}},null,null,null,null,null,"jeżeli \"naście\""]
[null,null,"0-5","6-9","0-5","6-9","0-5","6-9","dodatek","sumuj te ciągi"]
[{"$f":"INT(A$1/10000000)","v":{"$error":"#REF!"}},null,{"$f":"IF(AND(A3>=0,A3<=5),1,0)","v":{"$error":"#REF!"}},{"$f":"IF(AND(A3>=6,A3<=9),1,0)","v":{"$error":"#REF!"}},{"$f":"IF(A3=0,\"\",IF(A3=1,IF(A4=0,\"dziesięć milionów \",\"\"),IF(A3=2,\"dwadzieścia \",IF(A3=3,\"trzydzieści \",IF(A3=4,\"czterdzieści \",IF(A3=5,\"pięćdziesiąt \",\"\"))))))","v":{"$error":"#REF!"}},{"$f":"IF(A3=6,\"sześćdziesiąt \",IF(A3=7,\"siedemdziesiąt \",IF(A3=8,\"osiemdziesiąt \",IF(A3=9,\"dziewięćdziesiąt \",\"\"))))","v":{"$error":"#REF!"}},null,null,null,{"$f":"IF(C3,E3&I3,IF(D3,F3&I3,\"\"))","v":{"$error":"#REF!"}}]
[{"$f":"INT(A$1/1000000)-A3*10","v":{"$error":"#REF!"}},null,{"$error":"#REF!"},{"$error":"#REF!"},{"$f":"IF(A4=0,IF(AND(A3<>0,A3<>1),\"milionów \",\"\"),IF(A4=1,IF(A3=0,\"jeden milion \",\"jeden milionów \"),IF(A4=2,\"dwa miliony \",IF(A4=3,\"trzy miliony \",IF(A4=4,\"cztery miliony \",IF(A4=5,\"pięć milionów \",\"\"))))))","v":{"$error":"#REF!"}},{"$f":"IF(A4=6,\"sześć milionów \",IF(A4=7,\"siedem milionów \",IF(A4=8,\"osiem milionów \",IF(A4=9,\"dziewięć milionów \",\"\"))))","v":{"$error":"#REF!"}},{"$f":"IF(A4=0,\"\",IF(A4=1,\"jedenaście milionów \",IF(A4=2,\"dwanaście milionów \",IF(A4=3,\"trzynaście milionów \",IF(A4=4,\"czternaście milionów \",IF(A4=5,\"piętnaście milionów \",\"\"))))))","v":{"$error":"#REF!"}},{"$f":"IF(A4=6,\"szesnaście milionów \",IF(A4=7,\"siedemnaście milionów \",IF(A4=8,\"osiemnaście milionów \",IF(A4=9,\"dziewiętnaście milionów \",\"\"))))","v":{"$error":"#REF!"}},null,{"$f":"IF(A3=1,IF(C4,G4,IF(D4,H4)),IF(C4,E4,IF(D4,F4,\"\")))","v":{"$error":"#REF!"}}]
[{"$f":"INT(A$1/100000)-10*A4-100*A3","v":{"$error":"#REF!"}},null,{"$error":"#REF!"},{"$error":"#REF!"},{"$f":"IF(A5=0,\"\",IF(A5=1,\"sto \",IF(A5=2,\"dwieście \",IF(A5=3,\"trzysta \",IF(A5=4,\"czterysta \",IF(A5=5,\"pięćset \",\"\"))))))","v":{"$error":"#REF!"}},{"$f":"IF(A5=6,\"sześćset \",IF(A5=7,\"siedemset \",IF(A5=8,\"osiemset \",IF(A5=9,\"dziewięćset \",\"\"))))","v":{"$error":"#REF!"}},null,null,null,{"$f":"IF(C5,E5&I5,IF(D5,F5&I5,\"\"))","v":{"$error":"#REF!"}}]
[{"$f":"INT(A$1/10000)-10*A5-100*A4-1000*A3","v":{"$error":"#REF!"}},null,{"$error":"#REF!"},{"$error":"#REF!"},{"$f":"IF(A6=0,\"\",IF(A6=1,IF(A7=0,\"dziesięć tysięcy \",\"\"),IF(A6=2,\"dwadzieścia \",IF(A6=3,\"trzydzieści \",IF(A6=4,\"czterdzieści \",IF(A6=5,\"pięćdziesiąt \",\"\"))))))","v":{"$error":"#REF!"}},{"$f":"IF(A6=6,\"sześćdziesiąt \",IF(A6=7,\"siedemdziesiąt \",IF(A6=8,\"osiemdziesiąt \",IF(A6=9,\"dziewięćdziesiąt \",\"\"))))","v":{"$error":"#REF!"}},null,null,null,{"$f":"IF(C6,E6&I6,IF(D6,F6&I6,\"\"))","v":{"$error":"#REF!"}}]
[{"$f":"INT(A$1/1000)-10*A6-100*A5-1000*A4-10000*A3","v":{"$error":"#REF!"}},null,{"$error":"#REF!"},{"$error":"#REF!"},{"$f":"IF(A7=0,IF(OR(AND(A6<>0,A6<>1),AND(A5<>0,A6=0)),\"tysięcy \",\"\"),IF(A7=1,IF(AND(A5=0,A6=0),\"jeden tysiąc \",\"jeden tysięcy \"),IF(A7=2,\"dwa tysiące \",IF(A7=3,\"trzy tysiące \",IF(A7=4,\"cztery tysiące \",IF(A7=5,\"pięć tysięcy \",\"\"))))))","v":{"$error":"#REF!"}},{"$f":"IF(A7=6,\"sześć tysięcy \",IF(A7=7,\"siedem tysięcy \",IF(A7=8,\"osiem tysięcy \",IF(A7=9,\"dziewięć tysięcy \",\"\"))))","v":{"$error":"#REF!"}},{"$f":"IF(A7=0,\"\",IF(A7=1,\"jedenaście tysięcy \",IF(A7=2,\"dwanaście tysięcy \",IF(A7=3,\"trzynaście tysięcy \",IF(A7=4,\"czternaście tysięcy \",IF(A7=5,\"piętnaście tysięcy \",\"\"))))))","v":{"$error":"#REF!"}},{"$f":"IF(A7=6,\"szesnaście tysięcy \",IF(A7=7,\"siedemnaście tysięcy \",IF(A7=8,\"osiemnaście tysięcy \",IF(A7=9,\"dziewiętnaście tysięcy \",\"\"))))","v":{"$error":"#REF!"}},null,{"$f":"IF(A6=1,IF(C7,G7,IF(D7,H7)),IF(C7,E7,IF(D7,F7,\"\")))","v":{"$error":"#REF!"}}]
[{"$f":"INT(A$1/100)-10*A7-100*A6-1000*A5-10000*A4-100000*A3","v":{"$error":"#REF!"}},null,{"$error":"#REF!"},{"$error":"#REF!"},{"$f":"IF(A8=0,\"\",IF(A8=1,\"sto \",IF(A8=2,\"dwieście \",IF(A8=3,\"trzysta \",IF(A8=4,\"czterysta \",IF(A8=5,\"pięćset \",\"\"))))))","v":{"$error":"#REF!"}},{"$f":"IF(A8=6,\"sześćset \",IF(A8=7,\"siedemset \",IF(A8=8,\"osiemset \",IF(A8=9,\"dziewięćset \",\"\"))))","v":{"$error":"#REF!"}},null,null,null,{"$f":"IF(C8,E8&I8,IF(D8,F8&I8,\"\"))","v":{"$error":"#REF!"}}]
[{"$f":"INT(A$1/10)-10*A8-100*A7-1000*A6-10000*A5-100000*A4-1000000*A3","v":{"$error":"#REF!"}},null,{"$error":"#REF!"},{"$error":"#REF!"},{"$f":"IF(A9=0,\"\",IF(A9=1,IF(A10=0,\"dziesięć \",\"\"),IF(A9=2,\"dwadzieścia \",IF(A9=3,\"trzydzieści \",IF(A9=4,\"czterdzieści \",IF(A9=5,\"pięćdziesiąt \",\"\"))))))","v":{"$error":"#REF!"}},{"$f":"IF(A9=6,\"sześćdziesiąt \",IF(A9=7,\"siedemdziesiąt \",IF(A9=8,\"osiemdziesiąt \",IF(A9=9,\"dziewięćdziesiąt \",\"\"))))","v":{"$error":"#REF!"}},null,null,null,{"$f":"IF(C9,E9&I9,IF(D9,F9&I9,\"\"))","v":{"$error":"#REF!"}}]
[{"$f":"INT(A$1)-10*A9-100*A8-1000*A7-10000*A6-100000*A5-1000000*A4-10000000*A3","v":{"$error":"#REF!"}},null,{"$error":"#REF!"},{"$error":"#REF!"},{"$f":"IF(A10=0,\"\",IF(A10=1,\"jeden \",IF(A10=2,\"dwa \",IF(A10=3,\"trzy \",IF(A10=4,\"cztery \",IF(A10=5,\"pięć \",\"\"))))))","v":{"$error":"#REF!"}},{"$f":"IF(A10=6,\"sześć \",IF(A10=7,\"siedem \",IF(A10=8,\"osiem \",IF(A10=9,\"dziewięć \",\"\"))))","v":{"$error":"#REF!"}},{"$f":"IF(A10=0,\"\",IF(A10=1,\"jedenaście \",IF(A10=2,\"dwanaście \",IF(A10=3,\"trzynaście \",IF(A10=4,\"czternaście \",IF(A10=5,\"piętnaście \",\"\"))))))","v":{"$error":"#REF!"}},{"$f":"IF(A10=6,\"szesnaście \",IF(A10=7,\"siedemnaście \",IF(A10=8,\"osiemnaście \",IF(A10=9,\"dziewiętnaście \",\"\"))))","v":{"$error":"#REF!"}},null,{"$f":"IF(A9=1,IF(C10,G10,IF(D10,H10)),IF(C10,E10,IF(D10,F10,\"\")))","v":{"$error":"#REF!"}}]
[{"$f":"ROUND((A1-TRUNC(A1,0))*100,0)","v":{"$error":"#REF!"}},null,null,null,null,null,null,null,null,{"$f":"\"zł \"&TEXT(A11,\"00\")&\"/100\"","v":{"$error":"#REF!"}}]
[null,null,null,null,"Słownie:"]
[{"$f":"TRUNC(A1,1)","v":{"$error":"#REF!"}},null,null,null,{"$f":"J3&J4&J5&J6&J7&J8&J9&J10&J11","v":{"$error":"#REF!"}}]

{"sheet":"zad4","index":8,"n_rows":13,"n_cols":10,"rows_kept":13,"cut":false,"hidden":true,"merged":[[0,6,0,7]]}
[{"$f":"'Załącznik 1 - F.O. Części 1-2'!#REF!","v":{"$error":"#REF!"}},null,null,null,null,null,"jeżeli \"naście\""]
[null,null,"0-5","6-9","0-5","6-9","0-5","6-9","dodatek","sumuj te ciągi"]
[{"$f":"INT(A$1/10000000)","v":{"$error":"#REF!"}},null,{"$f":"IF(AND(A3>=0,A3<=5),1,0)","v":{"$error":"#REF!"}},{"$f":"IF(AND(A3>=6,A3<=9),1,0)","v":{"$error":"#REF!"}},{"$f":"IF(A3=0,\"\",IF(A3=1,IF(A4=0,\"dziesięć milionów \",\"\"),IF(A3=2,\"dwadzieścia \",IF(A3=3,\"trzydzieści \",IF(A3=4,\"czterdzieści \",IF(A3=5,\"pięćdziesiąt \",\"\"))))))","v":{"$error":"#REF!"}},{"$f":"IF(A3=6,\"sześćdziesiąt \",IF(A3=7,\"siedemdziesiąt \",IF(A3=8,\"osiemdziesiąt \",IF(A3=9,\"dziewięćdziesiąt \",\"\"))))","v":{"$error":"#REF!"}},null,null,null,{"$f":"IF(C3,E3&I3,IF(D3,F3&I3,\"\"))","v":{"$error":"#REF!"}}]
[{"$f":"INT(A$1/1000000)-A3*10","v":{"$error":"#REF!"}},null,{"$error":"#REF!"},{"$error":"#REF!"},{"$f":"IF(A4=0,IF(AND(A3<>0,A3<>1),\"milionów \",\"\"),IF(A4=1,IF(A3=0,\"jeden milion \",\"jeden milionów \"),IF(A4=2,\"dwa miliony \",IF(A4=3,\"trzy miliony \",IF(A4=4,\"cztery miliony \",IF(A4=5,\"pięć milionów \",\"\"))))))","v":{"$error":"#REF!"}},{"$f":"IF(A4=6,\"sześć milionów \",IF(A4=7,\"siedem milionów \",IF(A4=8,\"osiem milionów \",IF(A4=9,\"dziewięć milionów \",\"\"))))","v":{"$error":"#REF!"}},{"$f":"IF(A4=0,\"\",IF(A4=1,\"jedenaście milionów \",IF(A4=2,\"dwanaście milionów \",IF(A4=3,\"trzynaście milionów \",IF(A4=4,\"czternaście milionów \",IF(A4=5,\"piętnaście milionów \",\"\"))))))","v":{"$error":"#REF!"}},{"$f":"IF(A4=6,\"szesnaście milionów \",IF(A4=7,\"siedemnaście milionów \",IF(A4=8,\"osiemnaście milionów \",IF(A4=9,\"dziewiętnaście milionów \",\"\"))))","v":{"$error":"#REF!"}},null,{"$f":"IF(A3=1,IF(C4,G4,IF(D4,H4)),IF(C4,E4,IF(D4,F4,\"\")))","v":{"$error":"#REF!"}}]
[{"$f":"INT(A$1/100000)-10*A4-100*A3","v":{"$error":"#REF!"}},null,{"$error":"#REF!"},{"$error":"#REF!"},{"$f":"IF(A5=0,\"\",IF(A5=1,\"sto \",IF(A5=2,\"dwieście \",IF(A5=3,\"trzysta \",IF(A5=4,\"czterysta \",IF(A5=5,\"pięćset \",\"\"))))))","v":{"$error":"#REF!"}},{"$f":"IF(A5=6,\"sześćset \",IF(A5=7,\"siedemset \",IF(A5=8,\"osiemset \",IF(A5=9,\"dziewięćset \",\"\"))))","v":{"$error":"#REF!"}},null,null,null,{"$f":"IF(C5,E5&I5,IF(D5,F5&I5,\"\"))","v":{"$error":"#REF!"}}]
[{"$f":"INT(A$1/10000)-10*A5-100*A4-1000*A3","v":{"$error":"#REF!"}},null,{"$error":"#REF!"},{"$error":"#REF!"},{"$f":"IF(A6=0,\"\",IF(A6=1,IF(A7=0,\"dziesięć tysięcy \",\"\"),IF(A6=2,\"dwadzieścia \",IF(A6=3,\"trzydzieści \",IF(A6=4,\"czterdzieści \",IF(A6=5,\"pięćdziesiąt \",\"\"))))))","v":{"$error":"#REF!"}},{"$f":"IF(A6=6,\"sześćdziesiąt \",IF(A6=7,\"siedemdziesiąt \",IF(A6=8,\"osiemdziesiąt \",IF(A6=9,\"dziewięćdziesiąt \",\"\"))))","v":{"$error":"#REF!"}},null,null,null,{"$f":"IF(C6,E6&I6,IF(D6,F6&I6,\"\"))","v":{"$error":"#REF!"}}]
[{"$f":"INT(A$1/1000)-10*A6-100*A5-1000*A4-10000*A3","v":{"$error":"#REF!"}},null,{"$error":"#REF!"},{"$error":"#REF!"},{"$f":"IF(A7=0,IF(OR(AND(A6<>0,A6<>1),AND(A5<>0,A6=0)),\"tysięcy \",\"\"),IF(A7=1,IF(AND(A5=0,A6=0),\"jeden tysiąc \",\"jeden tysięcy \"),IF(A7=2,\"dwa tysiące \",IF(A7=3,\"trzy tysiące \",IF(A7=4,\"cztery tysiące \",IF(A7=5,\"pięć tysięcy \",\"\"))))))","v":{"$error":"#REF!"}},{"$f":"IF(A7=6,\"sześć tysięcy \",IF(A7=7,\"siedem tysięcy \",IF(A7=8,\"osiem tysięcy \",IF(A7=9,\"dziewięć tysięcy \",\"\"))))","v":{"$error":"#REF!"}},{"$f":"IF(A7=0,\"\",IF(A7=1,\"jedenaście tysięcy \",IF(A7=2,\"dwanaście tysięcy \",IF(A7=3,\"trzynaście tysięcy \",IF(A7=4,\"czternaście tysięcy \",IF(A7=5,\"piętnaście tysięcy \",\"\"))))))","v":{"$error":"#REF!"}},{"$f":"IF(A7=6,\"szesnaście tysięcy \",IF(A7=7,\"siedemnaście tysięcy \",IF(A7=8,\"osiemnaście tysięcy \",IF(A7=9,\"dziewiętnaście tysięcy \",\"\"))))","v":{"$error":"#REF!"}},null,{"$f":"IF(A6=1,IF(C7,G7,IF(D7,H7)),IF(C7,E7,IF(D7,F7,\"\")))","v":{"$error":"#REF!"}}]
[{"$f":"INT(A$1/100)-10*A7-100*A6-1000*A5-10000*A4-100000*A3","v":{"$error":"#REF!"}},null,{"$error":"#REF!"},{"$error":"#REF!"},{"$f":"IF(A8=0,\"\",IF(A8=1,\"sto \",IF(A8=2,\"dwieście \",IF(A8=3,\"trzysta \",IF(A8=4,\"czterysta \",IF(A8=5,\"pięćset \",\"\"))))))","v":{"$error":"#REF!"}},{"$f":"IF(A8=6,\"sześćset \",IF(A8=7,\"siedemset \",IF(A8=8,\"osiemset \",IF(A8=9,\"dziewięćset \",\"\"))))","v":{"$error":"#REF!"}},null,null,null,{"$f":"IF(C8,E8&I8,IF(D8,F8&I8,\"\"))","v":{"$error":"#REF!"}}]
[{"$f":"INT(A$1/10)-10*A8-100*A7-1000*A6-10000*A5-100000*A4-1000000*A3","v":{"$error":"#REF!"}},null,{"$error":"#REF!"},{"$error":"#REF!"},{"$f":"IF(A9=0,\"\",IF(A9=1,IF(A10=0,\"dziesięć \",\"\"),IF(A9=2,\"dwadzieścia \",IF(A9=3,\"trzydzieści \",IF(A9=4,\"czterdzieści \",IF(A9=5,\"pięćdziesiąt \",\"\"))))))","v":{"$error":"#REF!"}},{"$f":"IF(A9=6,\"sześćdziesiąt \",IF(A9=7,\"siedemdziesiąt \",IF(A9=8,\"osiemdziesiąt \",IF(A9=9,\"dziewięćdziesiąt \",\"\"))))","v":{"$error":"#REF!"}},null,null,null,{"$f":"IF(C9,E9&I9,IF(D9,F9&I9,\"\"))","v":{"$error":"#REF!"}}]
[{"$f":"INT(A$1)-10*A9-100*A8-1000*A7-10000*A6-100000*A5-1000000*A4-10000000*A3","v":{"$error":"#REF!"}},null,{"$error":"#REF!"},{"$error":"#REF!"},{"$f":"IF(A10=0,\"\",IF(A10=1,\"jeden \",IF(A10=2,\"dwa \",IF(A10=3,\"trzy \",IF(A10=4,\"cztery \",IF(A10=5,\"pięć \",\"\"))))))","v":{"$error":"#REF!"}},{"$f":"IF(A10=6,\"sześć \",IF(A10=7,\"siedem \",IF(A10=8,\"osiem \",IF(A10=9,\"dziewięć \",\"\"))))","v":{"$error":"#REF!"}},{"$f":"IF(A10=0,\"\",IF(A10=1,\"jedenaście \",IF(A10=2,\"dwanaście \",IF(A10=3,\"trzynaście \",IF(A10=4,\"czternaście \",IF(A10=5,\"piętnaście \",\"\"))))))","v":{"$error":"#REF!"}},{"$f":"IF(A10=6,\"szesnaście \",IF(A10=7,\"siedemnaście \",IF(A10=8,\"osiemnaście \",IF(A10=9,\"dziewiętnaście \",\"\"))))","v":{"$error":"#REF!"}},null,{"$f":"IF(A9=1,IF(C10,G10,IF(D10,H10)),IF(C10,E10,IF(D10,F10,\"\")))","v":{"$error":"#REF!"}}]
[{"$f":"ROUND((A1-TRUNC(A1,0))*100,0)","v":{"$error":"#REF!"}},null,null,null,null,null,null,null,null,{"$f":"\"zł \"&TEXT(A11,\"00\")&\"/100\"","v":{"$error":"#REF!"}}]
[null,null,null,null,"Słownie:"]
[{"$f":"TRUNC(A1,1)","v":{"$error":"#REF!"}},null,null,null,{"$f":"J3&J4&J5&J6&J7&J8&J9&J10&J11","v":{"$error":"#REF!"}}]

{"sheet":"zad5","index":9,"n_rows":13,"n_cols":10,"rows_kept":13,"cut":false,"hidden":true,"merged":[[0,6,0,7]]}
[{"$f":"'Załącznik 1 - F.O. Części 1-2'!#REF!","v":{"$error":"#REF!"}},null,null,null,null,null,"jeżeli \"naście\""]
[null,null,"0-5","6-9","0-5","6-9","0-5","6-9","dodatek","sumuj te ciągi"]
[{"$f":"INT(A$1/10000000)","v":{"$error":"#REF!"}},null,{"$f":"IF(AND(A3>=0,A3<=5),1,0)","v":{"$error":"#REF!"}},{"$f":"IF(AND(A3>=6,A3<=9),1,0)","v":{"$error":"#REF!"}},{"$f":"IF(A3=0,\"\",IF(A3=1,IF(A4=0,\"dziesięć milionów \",\"\"),IF(A3=2,\"dwadzieścia \",IF(A3=3,\"trzydzieści \",IF(A3=4,\"czterdzieści \",IF(A3=5,\"pięćdziesiąt \",\"\"))))))","v":{"$error":"#REF!"}},{"$f":"IF(A3=6,\"sześćdziesiąt \",IF(A3=7,\"siedemdziesiąt \",IF(A3=8,\"osiemdziesiąt \",IF(A3=9,\"dziewięćdziesiąt \",\"\"))))","v":{"$error":"#REF!"}},null,null,null,{"$f":"IF(C3,E3&I3,IF(D3,F3&I3,\"\"))","v":{"$error":"#REF!"}}]
[{"$f":"INT(A$1/1000000)-A3*10","v":{"$error":"#REF!"}},null,{"$error":"#REF!"},{"$error":"#REF!"},{"$f":"IF(A4=0,IF(AND(A3<>0,A3<>1),\"milionów \",\"\"),IF(A4=1,IF(A3=0,\"jeden milion \",\"jeden milionów \"),IF(A4=2,\"dwa miliony \",IF(A4=3,\"trzy miliony \",IF(A4=4,\"cztery miliony \",IF(A4=5,\"pięć milionów \",\"\"))))))","v":{"$error":"#REF!"}},{"$f":"IF(A4=6,\"sześć milionów \",IF(A4=7,\"siedem milionów \",IF(A4=8,\"osiem milionów \",IF(A4=9,\"dziewięć milionów \",\"\"))))","v":{"$error":"#REF!"}},{"$f":"IF(A4=0,\"\",IF(A4=1,\"jedenaście milionów \",IF(A4=2,\"dwanaście milionów \",IF(A4=3,\"trzynaście milionów \",IF(A4=4,\"czternaście milionów \",IF(A4=5,\"piętnaście milionów \",\"\"))))))","v":{"$error":"#REF!"}},{"$f":"IF(A4=6,\"szesnaście milionów \",IF(A4=7,\"siedemnaście milionów \",IF(A4=8,\"osiemnaście milionów \",IF(A4=9,\"dziewiętnaście milionów \",\"\"))))","v":{"$error":"#REF!"}},null,{"$f":"IF(A3=1,IF(C4,G4,IF(D4,H4)),IF(C4,E4,IF(D4,F4,\"\")))","v":{"$error":"#REF!"}}]
[{"$f":"INT(A$1/100000)-10*A4-100*A3","v":{"$error":"#REF!"}},null,{"$error":"#REF!"},{"$error":"#REF!"},{"$f":"IF(A5=0,\"\",IF(A5=1,\"sto \",IF(A5=2,\"dwieście \",IF(A5=3,\"trzysta \",IF(A5=4,\"czterysta \",IF(A5=5,\"pięćset \",\"\"))))))","v":{"$error":"#REF!"}},{"$f":"IF(A5=6,\"sześćset \",IF(A5=7,\"siedemset \",IF(A5=8,\"osiemset \",IF(A5=9,\"dziewięćset \",\"\"))))","v":{"$error":"#REF!"}},null,null,null,{"$f":"IF(C5,E5&I5,IF(D5,F5&I5,\"\"))","v":{"$error":"#REF!"}}]
[{"$f":"INT(A$1/10000)-10*A5-100*A4-1000*A3","v":{"$error":"#REF!"}},null,{"$error":"#REF!"},{"$error":"#REF!"},{"$f":"IF(A6=0,\"\",IF(A6=1,IF(A7=0,\"dziesięć tysięcy \",\"\"),IF(A6=2,\"dwadzieścia \",IF(A6=3,\"trzydzieści \",IF(A6=4,\"czterdzieści \",IF(A6=5,\"pięćdziesiąt \",\"\"))))))","v":{"$error":"#REF!"}},{"$f":"IF(A6=6,\"sześćdziesiąt \",IF(A6=7,\"siedemdziesiąt \",IF(A6=8,\"osiemdziesiąt \",IF(A6=9,\"dziewięćdziesiąt \",\"\"))))","v":{"$error":"#REF!"}},null,null,null,{"$f":"IF(C6,E6&I6,IF(D6,F6&I6,\"\"))","v":{"$error":"#REF!"}}]
[{"$f":"INT(A$1/1000)-10*A6-100*A5-1000*A4-10000*A3","v":{"$error":"#REF!"}},null,{"$error":"#REF!"},{"$error":"#REF!"},{"$f":"IF(A7=0,IF(OR(AND(A6<>0,A6<>1),AND(A5<>0,A6=0)),\"tysięcy \",\"\"),IF(A7=1,IF(AND(A5=0,A6=0),\"jeden tysiąc \",\"jeden tysięcy \"),IF(A7=2,\"dwa tysiące \",IF(A7=3,\"trzy tysiące \",IF(A7=4,\"cztery tysiące \",IF(A7=5,\"pięć tysięcy \",\"\"))))))","v":{"$error":"#REF!"}},{"$f":"IF(A7=6,\"sześć tysięcy \",IF(A7=7,\"siedem tysięcy \",IF(A7=8,\"osiem tysięcy \",IF(A7=9,\"dziewięć tysięcy \",\"\"))))","v":{"$error":"#REF!"}},{"$f":"IF(A7=0,\"\",IF(A7=1,\"jedenaście tysięcy \",IF(A7=2,\"dwanaście tysięcy \",IF(A7=3,\"trzynaście tysięcy \",IF(A7=4,\"czternaście tysięcy \",IF(A7=5,\"piętnaście tysięcy \",\"\"))))))","v":{"$error":"#REF!"}},{"$f":"IF(A7=6,\"szesnaście tysięcy \",IF(A7=7,\"siedemnaście tysięcy \",IF(A7=8,\"osiemnaście tysięcy \",IF(A7=9,\"dziewiętnaście tysięcy \",\"\"))))","v":{"$error":"#REF!"}},null,{"$f":"IF(A6=1,IF(C7,G7,IF(D7,H7)),IF(C7,E7,IF(D7,F7,\"\")))","v":{"$error":"#REF!"}}]
[{"$f":"INT(A$1/100)-10*A7-100*A6-1000*A5-10000*A4-100000*A3","v":{"$error":"#REF!"}},null,{"$error":"#REF!"},{"$error":"#REF!"},{"$f":"IF(A8=0,\"\",IF(A8=1,\"sto \",IF(A8=2,\"dwieście \",IF(A8=3,\"trzysta \",IF(A8=4,\"czterysta \",IF(A8=5,\"pięćset \",\"\"))))))","v":{"$error":"#REF!"}},{"$f":"IF(A8=6,\"sześćset \",IF(A8=7,\"siedemset \",IF(A8=8,\"osiemset \",IF(A8=9,\"dziewięćset \",\"\"))))","v":{"$error":"#REF!"}},null,null,null,{"$f":"IF(C8,E8&I8,IF(D8,F8&I8,\"\"))","v":{"$error":"#REF!"}}]
[{"$f":"INT(A$1/10)-10*A8-100*A7-1000*A6-10000*A5-100000*A4-1000000*A3","v":{"$error":"#REF!"}},null,{"$error":"#REF!"},{"$error":"#REF!"},{"$f":"IF(A9=0,\"\",IF(A9=1,IF(A10=0,\"dziesięć \",\"\"),IF(A9=2,\"dwadzieścia \",IF(A9=3,\"trzydzieści \",IF(A9=4,\"czterdzieści \",IF(A9=5,\"pięćdziesiąt \",\"\"))))))","v":{"$error":"#REF!"}},{"$f":"IF(A9=6,\"sześćdziesiąt \",IF(A9=7,\"siedemdziesiąt \",IF(A9=8,\"osiemdziesiąt \",IF(A9=9,\"dziewięćdziesiąt \",\"\"))))","v":{"$error":"#REF!"}},null,null,null,{"$f":"IF(C9,E9&I9,IF(D9,F9&I9,\"\"))","v":{"$error":"#REF!"}}]
[{"$f":"INT(A$1)-10*A9-100*A8-1000*A7-10000*A6-100000*A5-1000000*A4-10000000*A3","v":{"$error":"#REF!"}},null,{"$error":"#REF!"},{"$error":"#REF!"},{"$f":"IF(A10=0,\"\",IF(A10=1,\"jeden \",IF(A10=2,\"dwa \",IF(A10=3,\"trzy \",IF(A10=4,\"cztery \",IF(A10=5,\"pięć \",\"\"))))))","v":{"$error":"#REF!"}},{"$f":"IF(A10=6,\"sześć \",IF(A10=7,\"siedem \",IF(A10=8,\"osiem \",IF(A10=9,\"dziewięć \",\"\"))))","v":{"$error":"#REF!"}},{"$f":"IF(A10=0,\"\",IF(A10=1,\"jedenaście \",IF(A10=2,\"dwanaście \",IF(A10=3,\"trzynaście \",IF(A10=4,\"czternaście \",IF(A10=5,\"piętnaście \",\"\"))))))","v":{"$error":"#REF!"}},{"$f":"IF(A10=6,\"szesnaście \",IF(A10=7,\"siedemnaście \",IF(A10=8,\"osiemnaście \",IF(A10=9,\"dziewiętnaście \",\"\"))))","v":{"$error":"#REF!"}},null,{"$f":"IF(A9=1,IF(C10,G10,IF(D10,H10)),IF(C10,E10,IF(D10,F10,\"\")))","v":{"$error":"#REF!"}}]
[{"$f":"ROUND((A1-TRUNC(A1,0))*100,0)","v":{"$error":"#REF!"}},null,null,null,null,null,null,null,null,{"$f":"\"zł \"&TEXT(A11,\"00\")&\"/100\"","v":{"$error":"#REF!"}}]
[null,null,null,null,"Słownie:"]
[{"$f":"TRUNC(A1,1)","v":{"$error":"#REF!"}},null,null,null,{"$f":"J3&J4&J5&J6&J7&J8&J9&J10&J11","v":{"$error":"#REF!"}}]

{"sheet":"zad6","index":10,"n_rows":13,"n_cols":10,"rows_kept":13,"cut":false,"hidden":true,"merged":[[0,6,0,7]]}
[{"$f":"'Załącznik 1 - F.O. Części 1-2'!D25","v":0},null,null,null,null,null,"jeżeli \"naście\""]
[null,null,"0-5","6-9","0-5","6-9","0-5","6-9","dodatek","sumuj te ciągi"]
[{"$f":"INT(A$1/10000000)","v":0},null,{"$f":"IF(AND(A3>=0,A3<=5),1,0)","v":1},{"$f":"IF(AND(A3>=6,A3<=9),1,0)","v":0},{"$f":"IF(A3=0,\"\",IF(A3=1,IF(A4=0,\"dziesięć milionów \",\"\"),IF(A3=2,\"dwadzieścia \",IF(A3=3,\"trzydzieści \",IF(A3=4,\"czterdzieści \",IF(A3=5,\"pięćdziesiąt \",\"\"))))))","v":""},{"$f":"IF(A3=6,\"sześćdziesiąt \",IF(A3=7,\"siedemdziesiąt \",IF(A3=8,\"osiemdziesiąt \",IF(A3=9,\"dziewięćdziesiąt \",\"\"))))","v":""},null,null,null,{"$f":"IF(C3,E3&I3,IF(D3,F3&I3,\"\"))","v":""}]
[{"$f":"INT(A$1/1000000)-A3*10","v":0},null,1,0,{"$f":"IF(A4=0,IF(AND(A3<>0,A3<>1),\"milionów \",\"\"),IF(A4=1,IF(A3=0,\"jeden milion \",\"jeden milionów \"),IF(A4=2,\"dwa miliony \",IF(A4=3,\"trzy miliony \",IF(A4=4,\"cztery miliony \",IF(A4=5,\"pięć milionów \",\"\"))))))","v":""},{"$f":"IF(A4=6,\"sześć milionów \",IF(A4=7,\"siedem milionów \",IF(A4=8,\"osiem milionów \",IF(A4=9,\"dziewięć milionów \",\"\"))))","v":""},{"$f":"IF(A4=0,\"\",IF(A4=1,\"jedenaście milionów \",IF(A4=2,\"dwanaście milionów \",IF(A4=3,\"trzynaście milionów \",IF(A4=4,\"czternaście milionów \",IF(A4=5,\"piętnaście milionów \",\"\"))))))","v":""},{"$f":"IF(A4=6,\"szesnaście milionów \",IF(A4=7,\"siedemnaście milionów \",IF(A4=8,\"osiemnaście milionów \",IF(A4=9,\"dziewiętnaście milionów \",\"\"))))","v":""},null,{"$f":"IF(A3=1,IF(C4,G4,IF(D4,H4)),IF(C4,E4,IF(D4,F4,\"\")))","v":""}]
[{"$f":"INT(A$1/100000)-10*A4-100*A3","v":0},null,1,0,{"$f":"IF(A5=0,\"\",IF(A5=1,\"sto \",IF(A5=2,\"dwieście \",IF(A5=3,\"trzysta \",IF(A5=4,\"czterysta \",IF(A5=5,\"pięćset \",\"\"))))))","v":""},{"$f":"IF(A5=6,\"sześćset \",IF(A5=7,\"siedemset \",IF(A5=8,\"osiemset \",IF(A5=9,\"dziewięćset \",\"\"))))","v":""},null,null,null,{"$f":"IF(C5,E5&I5,IF(D5,F5&I5,\"\"))","v":""}]
[{"$f":"INT(A$1/10000)-10*A5-100*A4-1000*A3","v":0},null,1,0,{"$f":"IF(A6=0,\"\",IF(A6=1,IF(A7=0,\"dziesięć tysięcy \",\"\"),IF(A6=2,\"dwadzieścia \",IF(A6=3,\"trzydzieści \",IF(A6=4,\"czterdzieści \",IF(A6=5,\"pięćdziesiąt \",\"\"))))))","v":""},{"$f":"IF(A6=6,\"sześćdziesiąt \",IF(A6=7,\"siedemdziesiąt \",IF(A6=8,\"osiemdziesiąt \",IF(A6=9,\"dziewięćdziesiąt \",\"\"))))","v":""},null,null,null,{"$f":"IF(C6,E6&I6,IF(D6,F6&I6,\"\"))","v":""}]
[{"$f":"INT(A$1/1000)-10*A6-100*A5-1000*A4-10000*A3","v":0},null,1,0,{"$f":"IF(A7=0,IF(OR(AND(A6<>0,A6<>1),AND(A5<>0,A6=0)),\"tysięcy \",\"\"),IF(A7=1,IF(AND(A5=0,A6=0),\"jeden tysiąc \",\"jeden tysięcy \"),IF(A7=2,\"dwa tysiące \",IF(A7=3,\"trzy tysiące \",IF(A7=4,\"cztery tysiące \",IF(A7=5,\"pięć tysięcy \",\"\"))))))","v":""},{"$f":"IF(A7=6,\"sześć tysięcy \",IF(A7=7,\"siedem tysięcy \",IF(A7=8,\"osiem tysięcy \",IF(A7=9,\"dziewięć tysięcy \",\"\"))))","v":""},{"$f":"IF(A7=0,\"\",IF(A7=1,\"jedenaście tysięcy \",IF(A7=2,\"dwanaście tysięcy \",IF(A7=3,\"trzynaście tysięcy \",IF(A7=4,\"czternaście tysięcy \",IF(A7=5,\"piętnaście tysięcy \",\"\"))))))","v":""},{"$f":"IF(A7=6,\"szesnaście tysięcy \",IF(A7=7,\"siedemnaście tysięcy \",IF(A7=8,\"osiemnaście tysięcy \",IF(A7=9,\"dziewiętnaście tysięcy \",\"\"))))","v":""},null,{"$f":"IF(A6=1,IF(C7,G7,IF(D7,H7)),IF(C7,E7,IF(D7,F7,\"\")))","v":""}]
[{"$f":"INT(A$1/100)-10*A7-100*A6-1000*A5-10000*A4-100000*A3","v":0},null,1,0,{"$f":"IF(A8=0,\"\",IF(A8=1,\"sto \",IF(A8=2,\"dwieście \",IF(A8=3,\"trzysta \",IF(A8=4,\"czterysta \",IF(A8=5,\"pięćset \",\"\"))))))","v":""},{"$f":"IF(A8=6,\"sześćset \",IF(A8=7,\"siedemset \",IF(A8=8,\"osiemset \",IF(A8=9,\"dziewięćset \",\"\"))))","v":""},null,null,null,{"$f":"IF(C8,E8&I8,IF(D8,F8&I8,\"\"))","v":""}]
[{"$f":"INT(A$1/10)-10*A8-100*A7-1000*A6-10000*A5-100000*A4-1000000*A3","v":0},null,1,0,{"$f":"IF(A9=0,\"\",IF(A9=1,IF(A10=0,\"dziesięć \",\"\"),IF(A9=2,\"dwadzieścia \",IF(A9=3,\"trzydzieści \",IF(A9=4,\"czterdzieści \",IF(A9=5,\"pięćdziesiąt \",\"\"))))))","v":""},{"$f":"IF(A9=6,\"sześćdziesiąt \",IF(A9=7,\"siedemdziesiąt \",IF(A9=8,\"osiemdziesiąt \",IF(A9=9,\"dziewięćdziesiąt \",\"\"))))","v":""},null,null,null,{"$f":"IF(C9,E9&I9,IF(D9,F9&I9,\"\"))","v":""}]
[{"$f":"INT(A$1)-10*A9-100*A8-1000*A7-10000*A6-100000*A5-1000000*A4-10000000*A3","v":0},null,1,0,{"$f":"IF(A10=0,\"\",IF(A10=1,\"jeden \",IF(A10=2,\"dwa \",IF(A10=3,\"trzy \",IF(A10=4,\"cztery \",IF(A10=5,\"pięć \",\"\"))))))","v":""},{"$f":"IF(A10=6,\"sześć \",IF(A10=7,\"siedem \",IF(A10=8,\"osiem \",IF(A10=9,\"dziewięć \",\"\"))))","v":""},{"$f":"IF(A10=0,\"\",IF(A10=1,\"jedenaście \",IF(A10=2,\"dwanaście \",IF(A10=3,\"trzynaście \",IF(A10=4,\"czternaście \",IF(A10=5,\"piętnaście \",\"\"))))))","v":""},{"$f":"IF(A10=6,\"szesnaście \",IF(A10=7,\"siedemnaście \",IF(A10=8,\"osiemnaście \",IF(A10=9,\"dziewiętnaście \",\"\"))))","v":""},null,{"$f":"IF(A9=1,IF(C10,G10,IF(D10,H10)),IF(C10,E10,IF(D10,F10,\"\")))","v":""}]
[{"$f":"ROUND((A1-TRUNC(A1,0))*100,0)","v":0},null,null,null,null,null,null,null,null,{"$f":"\"zł \"&TEXT(A11,\"00\")&\"/100\"","v":"zł 00/100"}]
[null,null,null,null,"Słownie:"]
[{"$f":"TRUNC(A1,1)","v":0},null,null,null,{"$f":"J3&J4&J5&J6&J7&J8&J9&J10&J11","v":"zł 00/100"}]

{"sheet":"zad7","index":11,"n_rows":13,"n_cols":10,"rows_kept":13,"cut":false,"hidden":true,"merged":[[0,6,0,7]]}
[{"$f":"'Załącznik 1 - F.O. Części 1-2'!D28","v":0},null,null,null,null,null,"jeżeli \"naście\""]
[null,null,"0-5","6-9","0-5","6-9","0-5","6-9","dodatek","sumuj te ciągi"]
[{"$f":"INT(A$1/10000000)","v":0},null,{"$f":"IF(AND(A3>=0,A3<=5),1,0)","v":1},{"$f":"IF(AND(A3>=6,A3<=9),1,0)","v":0},{"$f":"IF(A3=0,\"\",IF(A3=1,IF(A4=0,\"dziesięć milionów \",\"\"),IF(A3=2,\"dwadzieścia \",IF(A3=3,\"trzydzieści \",IF(A3=4,\"czterdzieści \",IF(A3=5,\"pięćdziesiąt \",\"\"))))))","v":""},{"$f":"IF(A3=6,\"sześćdziesiąt \",IF(A3=7,\"siedemdziesiąt \",IF(A3=8,\"osiemdziesiąt \",IF(A3=9,\"dziewięćdziesiąt \",\"\"))))","v":""},null,null,null,{"$f":"IF(C3,E3&I3,IF(D3,F3&I3,\"\"))","v":""}]
[{"$f":"INT(A$1/1000000)-A3*10","v":0},null,1,0,{"$f":"IF(A4=0,IF(AND(A3<>0,A3<>1),\"milionów \",\"\"),IF(A4=1,IF(A3=0,\"jeden milion \",\"jeden milionów \"),IF(A4=2,\"dwa miliony \",IF(A4=3,\"trzy miliony \",IF(A4=4,\"cztery miliony \",IF(A4=5,\"pięć milionów \",\"\"))))))","v":""},{"$f":"IF(A4=6,\"sześć milionów \",IF(A4=7,\"siedem milionów \",IF(A4=8,\"osiem milionów \",IF(A4=9,\"dziewięć milionów \",\"\"))))","v":""},{"$f":"IF(A4=0,\"\",IF(A4=1,\"jedenaście milionów \",IF(A4=2,\"dwanaście milionów \",IF(A4=3,\"trzynaście milionów \",IF(A4=4,\"czternaście milionów \",IF(A4=5,\"piętnaście milionów \",\"\"))))))","v":""},{"$f":"IF(A4=6,\"szesnaście milionów \",IF(A4=7,\"siedemnaście milionów \",IF(A4=8,\"osiemnaście milionów \",IF(A4=9,\"dziewiętnaście milionów \",\"\"))))","v":""},null,{"$f":"IF(A3=1,IF(C4,G4,IF(D4,H4)),IF(C4,E4,IF(D4,F4,\"\")))","v":""}]
[{"$f":"INT(A$1/100000)-10*A4-100*A3","v":0},null,1,0,{"$f":"IF(A5=0,\"\",IF(A5=1,\"sto \",IF(A5=2,\"dwieście \",IF(A5=3,\"trzysta \",IF(A5=4,\"czterysta \",IF(A5=5,\"pięćset \",\"\"))))))","v":""},{"$f":"IF(A5=6,\"sześćset \",IF(A5=7,\"siedemset \",IF(A5=8,\"osiemset \",IF(A5=9,\"dziewięćset \",\"\"))))","v":""},null,null,null,{"$f":"IF(C5,E5&I5,IF(D5,F5&I5,\"\"))","v":""}]
[{"$f":"INT(A$1/10000)-10*A5-100*A4-1000*A3","v":0},null,1,0,{"$f":"IF(A6=0,\"\",IF(A6=1,IF(A7=0,\"dziesięć tysięcy \",\"\"),IF(A6=2,\"dwadzieścia \",IF(A6=3,\"trzydzieści \",IF(A6=4,\"czterdzieści \",IF(A6=5,\"pięćdziesiąt \",\"\"))))))","v":""},{"$f":"IF(A6=6,\"sześćdziesiąt \",IF(A6=7,\"siedemdziesiąt \",IF(A6=8,\"osiemdziesiąt \",IF(A6=9,\"dziewięćdziesiąt \",\"\"))))","v":""},null,null,null,{"$f":"IF(C6,E6&I6,IF(D6,F6&I6,\"\"))","v":""}]
[{"$f":"INT(A$1/1000)-10*A6-100*A5-1000*A4-10000*A3","v":0},null,1,0,{"$f":"IF(A7=0,IF(OR(AND(A6<>0,A6<>1),AND(A5<>0,A6=0)),\"tysięcy \",\"\"),IF(A7=1,IF(AND(A5=0,A6=0),\"jeden tysiąc \",\"jeden tysięcy \"),IF(A7=2,\"dwa tysiące \",IF(A7=3,\"trzy tysiące \",IF(A7=4,\"cztery tysiące \",IF(A7=5,\"pięć tysięcy \",\"\"))))))","v":""},{"$f":"IF(A7=6,\"sześć tysięcy \",IF(A7=7,\"siedem tysięcy \",IF(A7=8,\"osiem tysięcy \",IF(A7=9,\"dziewięć tysięcy \",\"\"))))","v":""},{"$f":"IF(A7=0,\"\",IF(A7=1,\"jedenaście tysięcy \",IF(A7=2,\"dwanaście tysięcy \",IF(A7=3,\"trzynaście tysięcy \",IF(A7=4,\"czternaście tysięcy \",IF(A7=5,\"piętnaście tysięcy \",\"\"))))))","v":""},{"$f":"IF(A7=6,\"szesnaście tysięcy \",IF(A7=7,\"siedemnaście tysięcy \",IF(A7=8,\"osiemnaście tysięcy \",IF(A7=9,\"dziewiętnaście tysięcy \",\"\"))))","v":""},null,{"$f":"IF(A6=1,IF(C7,G7,IF(D7,H7)),IF(C7,E7,IF(D7,F7,\"\")))","v":""}]
[{"$f":"INT(A$1/100)-10*A7-100*A6-1000*A5-10000*A4-100000*A3","v":0},null,1,0,{"$f":"IF(A8=0,\"\",IF(A8=1,\"sto \",IF(A8=2,\"dwieście \",IF(A8=3,\"trzysta \",IF(A8=4,\"czterysta \",IF(A8=5,\"pięćset \",\"\"))))))","v":""},{"$f":"IF(A8=6,\"sześćset \",IF(A8=7,\"siedemset \",IF(A8=8,\"osiemset \",IF(A8=9,\"dziewięćset \",\"\"))))","v":""},null,null,null,{"$f":"IF(C8,E8&I8,IF(D8,F8&I8,\"\"))","v":""}]
[{"$f":"INT(A$1/10)-10*A8-100*A7-1000*A6-10000*A5-100000*A4-1000000*A3","v":0},null,1,0,{"$f":"IF(A9=0,\"\",IF(A9=1,IF(A10=0,\"dziesięć \",\"\"),IF(A9=2,\"dwadzieścia \",IF(A9=3,\"trzydzieści \",IF(A9=4,\"czterdzieści \",IF(A9=5,\"pięćdziesiąt \",\"\"))))))","v":""},{"$f":"IF(A9=6,\"sześćdziesiąt \",IF(A9=7,\"siedemdziesiąt \",IF(A9=8,\"osiemdziesiąt \",IF(A9=9,\"dziewięćdziesiąt \",\"\"))))","v":""},null,null,null,{"$f":"IF(C9,E9&I9,IF(D9,F9&I9,\"\"))","v":""}]
[{"$f":"INT(A$1)-10*A9-100*A8-1000*A7-10000*A6-100000*A5-1000000*A4-10000000*A3","v":0},null,1,0,{"$f":"IF(A10=0,\"\",IF(A10=1,\"jeden \",IF(A10=2,\"dwa \",IF(A10=3,\"trzy \",IF(A10=4,\"cztery \",IF(A10=5,\"pięć \",\"\"))))))","v":""},{"$f":"IF(A10=6,\"sześć \",IF(A10=7,\"siedem \",IF(A10=8,\"osiem \",IF(A10=9,\"dziewięć \",\"\"))))","v":""},{"$f":"IF(A10=0,\"\",IF(A10=1,\"jedenaście \",IF(A10=2,\"dwanaście \",IF(A10=3,\"trzynaście \",IF(A10=4,\"czternaście \",IF(A10=5,\"piętnaście \",\"\"))))))","v":""},{"$f":"IF(A10=6,\"szesnaście \",IF(A10=7,\"siedemnaście \",IF(A10=8,\"osiemnaście \",IF(A10=9,\"dziewiętnaście \",\"\"))))","v":""},null,{"$f":"IF(A9=1,IF(C10,G10,IF(D10,H10)),IF(C10,E10,IF(D10,F10,\"\")))","v":""}]
[{"$f":"ROUND((A1-TRUNC(A1,0))*100,0)","v":0},null,null,null,null,null,null,null,null,{"$f":"\"zł \"&TEXT(A11,\"00\")&\"/100\"","v":"zł 00/100"}]
[null,null,null,null,"Słownie:"]
[{"$f":"TRUNC(A1,1)","v":0},null,null,null,{"$f":"J3&J4&J5&J6&J7&J8&J9&J10&J11","v":"zł 00/100"}]